Body,Body Name,Supplier Name,Account Number,Invoice Date,Document File Name,Cost Centre / Project Code,Cost Centre/Project Description,Subjective Account,Subjective description,Invoice Amount (Excluding VAT)
http://statistics.data.gov.uk/id/local-authority/12UB,Cambridge City Council,Cambridge Investment Partnership LLP,10145700,31/01/2018,002413,300079,New Build - Markham Close,70002,CAPEX - Building Contractor/Works,10686.01
http://statistics.data.gov.uk/id/local-authority/12UB,Cambridge City Council,Barnwell Electrical Company Ltd,10142400,27/03/2018,002663,1761,Ronald Rolph Court,60201,Cyclical/Planned Maintenance - Building,898.00
http://statistics.data.gov.uk/id/local-authority/12UB,Cambridge City Council,Nicholls Colton Group Limited,10153700,22/03/2018,002744,100024,Essential Structural/Holding Repairs - Park Street Multi Sto,70002,CAPEX - Building Contractor/Works,4325.00
http://statistics.data.gov.uk/id/local-authority/12UB,Cambridge City Council,Stripe Consulting Limited,10099000,01/04/2018,002843,1661,Parking Administration,62400,Consultancy Fees,3112.50
http://statistics.data.gov.uk/id/local-authority/12UB,Cambridge City Council,D Carman BSSR Ltd,10118100,28/03/2018,002849,6207,Repairs Day to Day,54301,Rechargeable Repairs Income (B),1652.52
http://statistics.data.gov.uk/id/local-authority/12UB,Cambridge City Council,Greenwich Leisure Limited (GLL),10051900,29/03/2018,003403,1104,Sport - Ex Ref,62400,Consultancy Fees,540.00
http://statistics.data.gov.uk/id/local-authority/12UB,Cambridge City Council,Mercer Tree Services Ltd,10071200,10/04/2018,003413,100088,Cherry Hinton Grounds Improvements Phase 2 (S106),70013,CAPEX - Landscaping,1785.00
http://statistics.data.gov.uk/id/local-authority/12UB,Cambridge City Council,Huntingdonshire District Council,10056900,05/04/2018,003473,8021,IT Contract Costs,64073,Ict Maintenance And Support,144000.00
http://statistics.data.gov.uk/id/local-authority/12UB,Cambridge City Council,D Carman BSSR Ltd,10118100,12/04/2018,003623,6207,Repairs Day to Day,54301,Rechargeable Repairs Income (B),690.60
http://statistics.data.gov.uk/id/local-authority/12UB,Cambridge City Council,Vivid Resourcing Ltd,10149200,08/04/2018,003662,6200,Building Maintenance Response - Direct,60011,Agency Staff,1190.00
http://statistics.data.gov.uk/id/local-authority/12UB,Cambridge City Council,Cambridge Sports Hall Trust Ltd T/A Kelsey Kerridge,10021400,19/04/2018,003907,1057,Community Development Voluntary Support,64600,Grants And Contributions,2365.00
http://statistics.data.gov.uk/id/local-authority/12UB,Cambridge City Council,Marshall Peugeot Peterborough,10069501,29/03/2018,003983,100171,Vehicle Replacement Programme,70016,CAPEX - Purchase of Vehicles,18907.70
http://statistics.data.gov.uk/id/local-authority/12UB,Cambridge City Council,Marshall Peugeot Peterborough,10069501,29/03/2018,003986,100171,Vehicle Replacement Programme,70016,CAPEX - Purchase of Vehicles,18907.70
http://statistics.data.gov.uk/id/local-authority/12UB,Cambridge City Council,Richardson Heating Services,10088900,08/03/2018,004212,6211,Gas Servicing,60225,Housing Repairs - Gas Maintenance Contract,1040.00
http://statistics.data.gov.uk/id/local-authority/12UB,Cambridge City Council,Cambridge City Council,10153901,01/04/2018,004438,1935,Markets,60500,Refuse Collection /Skips,12050.48
http://statistics.data.gov.uk/id/local-authority/12UB,Cambridge City Council,Bidwells LLP,10161000,23/04/2018,004458,1453,Finance General Recharges,62200,Bank Charges,2500.00
http://statistics.data.gov.uk/id/local-authority/12UB,Cambridge City Council,Bidwells LLP,10161000,23/04/2018,004458,1750,Property Services,62400,Consultancy Fees,7500.00
http://statistics.data.gov.uk/id/local-authority/12UB,Cambridge City Council,Cambridge Investment Partnership LLP,10145700,31/01/2018,002392,300064,New Build - Akeman Street,70002,CAPEX - Building Contractor/Works,13044.81
http://statistics.data.gov.uk/id/local-authority/12UB,Cambridge City Council,Cambridge Investment Partnership LLP,10145700,28/02/2018,002412,300078,New Build - Gunhild Way,70002,CAPEX - Building Contractor/Works,3041.10
http://statistics.data.gov.uk/id/local-authority/12UB,Cambridge City Council,MLM Consulting Engineers Ltd,10072500,23/03/2018,002484,300035,Ditchburn Place,70010,CAPEX - Other Professional Fees,1000.00
http://statistics.data.gov.uk/id/local-authority/12UB,Cambridge City Council,Compserve Ltd,10032400,28/03/2018,002569,1211,130 Cowley Road (OAS),63000,"Insurance Premiums (Excl Employee, Premises And Transport)",924.82
http://statistics.data.gov.uk/id/local-authority/12UB,Cambridge City Council,Landlord Furniture Packages UK Ltd,10160900,01/03/2018,003415,1517,Syrian Resettlement,60700,Fixtures & Fittings,5412.08
http://statistics.data.gov.uk/id/local-authority/12UB,Cambridge City Council,Willingham Medical Practice,10127300,29/03/2018,003429,1001,Cambridge Crematorium,63900,Miscellaneous Expenses,3360.00
http://statistics.data.gov.uk/id/local-authority/12UB,Cambridge City Council,AON UK Limited,10006800,06/04/2018,003441,8009,Insurance Fund,67302,Insurance Claim,1428.00
http://statistics.data.gov.uk/id/local-authority/12UB,Cambridge City Council,Clanpress (Kings Lynn) Ltd,10030500,21/03/2018,003450,6002,Resident Involvement,62001,Printing,1448.00
http://statistics.data.gov.uk/id/local-authority/12UB,Cambridge City Council,Global Self Drive Ltd,10049900,01/04/2018,003949,6200,Building Maintenance Response - Direct,60904,Vehicle Repairs And Maintenance,500.00
http://statistics.data.gov.uk/id/local-authority/12UB,Cambridge City Council,Marshall Peugeot Peterborough,10069501,29/03/2018,003989,100171,Vehicle Replacement Programme,70016,CAPEX - Purchase of Vehicles,18973.70
http://statistics.data.gov.uk/id/local-authority/12UB,Cambridge City Council,AON UK Limited,10006800,11/04/2018,004035,8009,Insurance Fund,67302,Insurance Claim,4385.20
http://statistics.data.gov.uk/id/local-authority/12UB,Cambridge City Council,Saunders Boston Ltd,10091900,31/12/2017,004228,300075,New Build - Kendal Way,70002,CAPEX - Building Contractor/Works,6000.00
http://statistics.data.gov.uk/id/local-authority/12UB,Cambridge City Council,Comensura Ltd,10031900,15/04/2018,004380,5024,E_invoicing Suspense Accounts,69100,Expenditure In Holding Account Awaiting Allocation,43881.16
http://statistics.data.gov.uk/id/local-authority/12UB,Cambridge City Council,City View Digital Media Ltd,10030200,01/11/2017,004437,1862,Open Space Asset Management,62006,Statutory Advertising,1000.00
http://statistics.data.gov.uk/id/local-authority/12UB,Cambridge City Council,HBINFO Ltd,10053800,28/02/2018,002752,1802,Housing Benefits,64300,Conference Expenses,500.00
http://statistics.data.gov.uk/id/local-authority/12UB,Cambridge City Council,The GET Group,10103000,11/04/2018,003258,1057,Community Development Voluntary Support,64600,Grants And Contributions,6000.00
http://statistics.data.gov.uk/id/local-authority/12UB,Cambridge City Council,Edenred (UK Group) Ltd,10158100,11/04/2018,003402,8001,Human Resources Operations (Staff-General),60117,Staff Other Expenses,2406.25
http://statistics.data.gov.uk/id/local-authority/12UB,Cambridge City Council,Trevor Roberts Associates Ltd,10137200,19/03/2018,003561,1303,Corporate Business Processing,60115,Staff Development And Training,538.12
http://statistics.data.gov.uk/id/local-authority/12UB,Cambridge City Council,Northgate Public Services (UK) Ltd,10076700,12/04/2018,003620,1802,Housing Benefits,64073,Ict Maintenance And Support,1400.00
http://statistics.data.gov.uk/id/local-authority/12UB,Cambridge City Council,Carol Alderton t/a Dannic Designs,10140000,13/03/2018,002743,100071,Improvements to Gwydir Enterprise Centre,70010,CAPEX - Other Professional Fees,540.00
http://statistics.data.gov.uk/id/local-authority/12UB,Cambridge City Council,Cambridge Online Trading Ltd,10020400,17/04/2018,004361,1063,The Meadows Community Centre,62900,Events,1625.00
http://statistics.data.gov.uk/id/local-authority/12UB,Cambridge City Council,Eastern Cash Registers (Norwich) Ltd,10130200,08/03/2018,002359,100022,Clay Farm Community Centre -Phase 2 (Construction),70024,CAPEX - Other Capital Expenditure,2040.00
http://statistics.data.gov.uk/id/local-authority/12UB,Cambridge City Council,Thurlow Nunn Standen Ltd,10106100,31/03/2018,002869,1856,Streets & Open Spaces (Operations) - Indirect Costs,61703,"Purchase - Equipment, Furniture And Materials",1590.00
http://statistics.data.gov.uk/id/local-authority/12UB,Cambridge City Council,Clare Hayes Music Services,10162400,24/04/2018,004229,1251,Culture and Community,62400,Consultancy Fees,966.50
http://statistics.data.gov.uk/id/local-authority/12UB,Cambridge City Council,HQN Ltd,10056500,22/03/2018,003931,6012,City Homes Expenditure,60115,Staff Development And Training,1300.00
http://statistics.data.gov.uk/id/local-authority/12UB,Cambridge City Council,RA Information Systems,10143900,10/04/2018,003229,1876,Arboriculture,64073,Ict Maintenance And Support,4585.00
http://statistics.data.gov.uk/id/local-authority/12UB,Cambridge City Council,Emap Ltd,10041200,28/03/2018,002464,1200,Corporate Management,64800,Membership And Subscriptions,1273.00
http://statistics.data.gov.uk/id/local-authority/12UB,Cambridge City Council,Rebecca Osborne,10140800,18/03/2018,002979,1251,Culture and Community,62900,Events,1295.00
http://statistics.data.gov.uk/id/local-authority/12UB,Cambridge City Council,Reed Business Information Ltd,10087300,18/04/2018,004028,8000,Human Resources - Business Support,64073,Ict Maintenance And Support,6090.00
http://statistics.data.gov.uk/id/local-authority/12UB,Cambridge City Council,ESPO,10043700,05/03/2018,003486,100201,Guildhall Welfare Improvements (OAS),70024,CAPEX - Other Capital Expenditure,1502.00
http://statistics.data.gov.uk/id/local-authority/12UB,Cambridge City Council,C F Hunter T/A C & M Haulage,10016900,28/02/2018,003526,6200,Building Maintenance Response - Direct,64050,Waste Disposal Costs,900.00
http://statistics.data.gov.uk/id/local-authority/12UB,Cambridge City Council,C F Hunter T/A C & M Haulage,10016900,28/02/2018,003526,1855,Street Cleaning - Direct,64050,Waste Disposal Costs,4700.00
http://statistics.data.gov.uk/id/local-authority/12UB,Cambridge City Council,Swatch Group (UK) Ltd T/A Swiss Timing,10100500,12/04/2018,003284,1100,Sport & Recreation Administration,60202,Cyclical/Planned Maintenance - Fixed Plant,1956.00
http://statistics.data.gov.uk/id/local-authority/12UB,Cambridge City Council,Pestbusters (Midlands) Ltd,10081000,18/04/2018,004500,6114,Ditton Court,60207,Health And Safety Supplies And Services,1830.00
http://statistics.data.gov.uk/id/local-authority/12UB,Cambridge City Council,Smith & Ouzman Ltd,10095300,29/03/2018,003554,1801,Local Taxation,62001,Printing,3386.75
http://statistics.data.gov.uk/id/local-authority/12UB,Cambridge City Council,Tudor UK Ltd T/A Tudor Environmental,10109000,27/03/2018,002903,1856,Streets & Open Spaces (Operations) - Indirect Costs,61703,"Purchase - Equipment, Furniture And Materials",670.00
http://statistics.data.gov.uk/id/local-authority/12UB,Cambridge City Council,Cambridgeshire County Council,10022800,21/03/2018,002166,1550,Employee Travel Plan,60117,Staff Other Expenses,3600.00
http://statistics.data.gov.uk/id/local-authority/12UB,Cambridge City Council,New International Encounter,10161400,23/04/2018,004195,1251,Culture and Community,62900,Events,1515.00
http://statistics.data.gov.uk/id/local-authority/12UB,Cambridge City Council,Hometrack Data Systems Limited,10055800,28/03/2018,004320,1512,Sub-Regional Housing Strategy Co-ordinator,64800,Membership And Subscriptions,12000.00
http://statistics.data.gov.uk/id/local-authority/12UB,Cambridge City Council,Penna PLC,10080400,19/04/2018,004209,1303,Corporate Business Processing,62005,"Advertising, Publicity And Marketing",548.23
http://statistics.data.gov.uk/id/local-authority/12UB,Cambridge City Council,Junction CDC Ltd,10062700,25/04/2018,004354,1251,Culture and Community,62900,Events,15896.00
http://statistics.data.gov.uk/id/local-authority/12UB,Cambridge City Council,Childcare Vouchers Limited,10028300,10/04/2018,003233,8008,Shared Payroll Service,60106,Childcare Admin Vouchers,9439.00
http://statistics.data.gov.uk/id/local-authority/12UB,Cambridge City Council,Cowens Ltd,10146900,29/03/2018,002781,1883,Flood Risk Management,60501,Cleaning Services,1068.00
http://statistics.data.gov.uk/id/local-authority/12UB,Cambridge City Council,Lucion Environmental Ltd T/A Redhills,10067800,29/03/2018,002877,1758,Other Commercial Properties,60201,Cyclical/Planned Maintenance - Building,1000.00
http://statistics.data.gov.uk/id/local-authority/12UB,Cambridge City Council,Idox Software Limited,10057600,19/03/2018,003609,1708,Urban Design & Conservation,64073,Ict Maintenance And Support,1425.00
http://statistics.data.gov.uk/id/local-authority/12UB,Cambridge City Council,Northgate Public Services (UK) Ltd,10076700,11/04/2018,003619,1802,Housing Benefits,64073,Ict Maintenance And Support,1875.00
http://statistics.data.gov.uk/id/local-authority/12UB,Cambridge City Council,Local Government Association,10067300,06/04/2018,003638,1200,Corporate Management,64800,Membership And Subscriptions,10450.00
http://statistics.data.gov.uk/id/local-authority/12UB,Cambridge City Council,Fire Security (Sprinkler Installations) Ltd,10126300,22/03/2018,003608,100150,Grand Arcade and Queen Anne Terrace car parks sprinkler Syst,70002,CAPEX - Building Contractor/Works,58592.08
http://statistics.data.gov.uk/id/local-authority/12UB,Cambridge City Council,Cambridge Community Arts,10018200,06/04/2018,003285,1057,Community Development Voluntary Support,64600,Grants And Contributions,2500.00
http://statistics.data.gov.uk/id/local-authority/12UB,Cambridge City Council,East of England Local Government Association,10040000,23/03/2018,002217,8003,Human Resources - Organisational Development,64300,Conference Expenses,625.00
http://statistics.data.gov.uk/id/local-authority/12UB,Cambridge City Council,Mowell & Co Ltd,10121800,23/03/2018,002266,1100,Sport & Recreation Administration,61703,"Purchase - Equipment, Furniture And Materials",2725.00
http://statistics.data.gov.uk/id/local-authority/12UB,Cambridge City Council,Cambridge Investment Partnership LLP,10145700,31/01/2018,002401,300069,New Build - Ventress Close,70002,CAPEX - Building Contractor/Works,55785.11
http://statistics.data.gov.uk/id/local-authority/12UB,Cambridge City Council,Aecom Ltd,10003200,20/03/2018,002481,300035,Ditchburn Place,70010,CAPEX - Other Professional Fees,2228.70
http://statistics.data.gov.uk/id/local-authority/12UB,Cambridge City Council,Bsg Property Services Ltd,10015900,21/03/2018,002559,200001,Mandatory Disabled Facilities Grants (Tenants),70015,CAPEX - Grants Paid,1521.00
http://statistics.data.gov.uk/id/local-authority/12UB,Cambridge City Council,Cocksedge Building Contractors Limited,10117400,19/03/2018,002573,300035,Ditchburn Place,70002,CAPEX - Building Contractor/Works,168262.17
http://statistics.data.gov.uk/id/local-authority/12UB,Cambridge City Council,Huntingdonshire District Council,10056900,27/03/2018,002643,1803,Revenue Overheads,64073,Ict Maintenance And Support,800.00
http://statistics.data.gov.uk/id/local-authority/12UB,Cambridge City Council,Royal Mail Group Ltd,10128400,21/03/2018,003451,6002,Resident Involvement,64100,Postage And Courier Services,2983.44
http://statistics.data.gov.uk/id/local-authority/12UB,Cambridge City Council,Cambridge Live Limited,10019900,29/03/2018,003595,1250,Cultural Facilities Administration,62400,Consultancy Fees,5000.00
http://statistics.data.gov.uk/id/local-authority/12UB,Cambridge City Council,Sunseeker Windows Ltd,10099900,06/04/2018,003644,300012,External Doors,70003,CAPEX - Building Contractor/Works - Voids & Emergencies,540.00
http://statistics.data.gov.uk/id/local-authority/12UB,Cambridge City Council,University of Cambridge,10110200,04/04/2018,003684,100188,Public art grant for Kettle's Yard - Antony Gormley Performa,70009,CAPEX - Engineers Fees,5000.00
http://statistics.data.gov.uk/id/local-authority/12UB,Cambridge City Council,Cambridge & District Citizen's Advice Bureau,10017500,01/12/2017,003775,1509,Grants to Housing Agencies,64600,Grants And Contributions,8139.25
http://statistics.data.gov.uk/id/local-authority/12UB,Cambridge City Council,Marshall Peugeot Peterborough,10069501,29/03/2018,003980,100171,Vehicle Replacement Programme,70016,CAPEX - Purchase of Vehicles,18907.70
http://statistics.data.gov.uk/id/local-authority/12UB,Cambridge City Council,M Watson Construction Ltd,10122200,28/03/2018,004119,300000,Disabled Adaptions,70007,CAPEX - Building Contractor/Works - Major Adaptations (HRA),1365.90
http://statistics.data.gov.uk/id/local-authority/12UB,Cambridge City Council,Zurich Insurance PLC,10115100,20/04/2018,004216,8009,Insurance Fund,67302,Insurance Claim,1120.00
http://statistics.data.gov.uk/id/local-authority/12UB,Cambridge City Council,Anglian Water Business (National) Ltd T/A Wave,10006400,30/03/2018,004338,6122,Lichfield Road,60302,Water And Sewerage,548.10
http://statistics.data.gov.uk/id/local-authority/12UB,Cambridge City Council,Marino Partnership,10069100,02/02/2018,002222,6005,Area Offices Premises Costs,62400,Consultancy Fees,1950.00
http://statistics.data.gov.uk/id/local-authority/12UB,Cambridge City Council,D Carman BSSR Ltd,10118100,28/03/2018,002254,6207,Repairs Day to Day,60233,Housing Repairs - Work Given To External Contractors,5069.60
http://statistics.data.gov.uk/id/local-authority/12UB,Cambridge City Council,Stripe Consulting Limited,10099000,30/03/2018,002292,100150,Grand Arcade and Queen Anne Terrace car parks sprinkler Syst,70010,CAPEX - Other Professional Fees,1448.00
http://statistics.data.gov.uk/id/local-authority/12UB,Cambridge City Council,Engineering & Design Plastics Ltd,10042100,12/02/2018,002344,1866,Open Space Asset Maintenance,61702,"Maintenance - Equipment, Furniture And Materials",642.00
http://statistics.data.gov.uk/id/local-authority/12UB,Cambridge City Council,Cambridge Investment Partnership LLP,10145700,31/01/2018,002394,6007,Departmental Overheads-Client,62400,Consultancy Fees,6305.65
http://statistics.data.gov.uk/id/local-authority/12UB,Cambridge City Council,Lucion Environmental Ltd T/A Redhills,10067800,05/03/2018,002510,6205,Citywide Schemes,60235,Housing Repairs - Other Premises Related Costs,1010.82
http://statistics.data.gov.uk/id/local-authority/12UB,Cambridge City Council,Compton & Casburn Ltd,10117600,05/03/2018,002529,6207,Repairs Day to Day,60233,Housing Repairs - Work Given To External Contractors,600.00
http://statistics.data.gov.uk/id/local-authority/12UB,Cambridge City Council,Cheffins,10152100,28/02/2018,002557,1758,Other Commercial Properties,62400,Consultancy Fees,3115.00
http://statistics.data.gov.uk/id/local-authority/12UB,Cambridge City Council,Peter Dann Ltd,10081100,28/02/2018,002574,300018,Roof Structure,70010,CAPEX - Other Professional Fees,1500.00
http://statistics.data.gov.uk/id/local-authority/12UB,Cambridge City Council,Aecom Ltd,10003200,07/02/2018,002599,300035,Ditchburn Place,70002,CAPEX - Building Contractor/Works,34379.60
http://statistics.data.gov.uk/id/local-authority/12UB,Cambridge City Council,R J Warren Ltd,10123500,04/04/2018,002709,1868,Play Maintenance,60503,Grounds Maintenance,8319.70
http://statistics.data.gov.uk/id/local-authority/12UB,Cambridge City Council,D Carman BSSR Ltd,10118100,03/04/2018,002804,6207,Repairs Day to Day,60233,Housing Repairs - Work Given To External Contractors,973.78
http://statistics.data.gov.uk/id/local-authority/12UB,Cambridge City Council,Simpsons (East Anglia) Ltd Ta Drain Doctor Plumbing,10094700,05/04/2018,003091,6207,Repairs Day to Day,60233,Housing Repairs - Work Given To External Contractors,630.00
http://statistics.data.gov.uk/id/local-authority/12UB,Cambridge City Council,Cambridge Eco Living Initiative Ltd,10159300,11/04/2018,003367,1209,Sustainability Grants,64600,Grants And Contributions,4000.00
http://statistics.data.gov.uk/id/local-authority/12UB,Cambridge City Council,Sports Surface Maintenance Ltd,10144600,29/03/2018,003464,1102,Leisure Contract Client Costs,60201,Cyclical/Planned Maintenance - Building,608.00
http://statistics.data.gov.uk/id/local-authority/12UB,Cambridge City Council,Sunseeker Windows Ltd,10099900,23/03/2018,003667,300012,External Doors,70003,CAPEX - Building Contractor/Works - Voids & Emergencies,570.00
http://statistics.data.gov.uk/id/local-authority/12UB,Cambridge City Council,Technology One (UK) Limited,10101100,31/03/2018,003740,100067,Replacement Financial Management System,70023,CAPEX - ICT Software,10038.46
http://statistics.data.gov.uk/id/local-authority/12UB,Cambridge City Council,Probitas (UK) Ltd,10084300,11/04/2018,003780,1203,Corporate Policy,62400,Consultancy Fees,2671.80
http://statistics.data.gov.uk/id/local-authority/12UB,Cambridge City Council,APSE / Association for Public Service Excellence,10127800,03/04/2018,003858,1857,Head of Streets & Open Spaces,64800,Membership And Subscriptions,2358.00
http://statistics.data.gov.uk/id/local-authority/12UB,Cambridge City Council,Forward Vision Solutions Ltd,10167200,23/03/2018,004151,400016,Clay Farm,61703,"Purchase - Equipment, Furniture And Materials",8231.00
http://statistics.data.gov.uk/id/local-authority/12UB,Cambridge City Council,Cambridge Garage Doors,10117100,27/02/2018,004172,6200,Building Maintenance Response - Direct,61703,"Purchase - Equipment, Furniture And Materials",798.00
http://statistics.data.gov.uk/id/local-authority/12UB,Cambridge City Council,Cambridge Garage Doors,10117100,27/02/2018,004172,6200,Building Maintenance Response - Direct,61703,"Purchase - Equipment, Furniture And Materials",798.00
http://statistics.data.gov.uk/id/local-authority/12UB,Cambridge City Council,The BSS Group PLC - Pts Plumbing Trade Supplies,10102000,11/04/2018,004172,9900,General Fund Balance Sheet,11600,Consumable Stores,622.75
http://statistics.data.gov.uk/id/local-authority/12UB,Cambridge City Council,The BSS Group PLC - Pts Plumbing Trade Supplies,10102000,12/04/2018,004172,9900,General Fund Balance Sheet,11600,Consumable Stores,912.22
http://statistics.data.gov.uk/id/local-authority/12UB,Cambridge City Council,Come Clean Ltd T/A CCL Supplies,10031800,18/04/2018,004172,9900,General Fund Balance Sheet,11600,Consumable Stores,2080.00
http://statistics.data.gov.uk/id/local-authority/12UB,Cambridge City Council,Come Clean Ltd T/A CCL Supplies,10031800,19/04/2018,004172,9900,General Fund Balance Sheet,11600,Consumable Stores,2080.00
http://statistics.data.gov.uk/id/local-authority/12UB,Cambridge City Council,Edmundson Electrical Ltd,10040600,17/04/2018,004172,9900,General Fund Balance Sheet,11600,Consumable Stores,1242.77
http://statistics.data.gov.uk/id/local-authority/12UB,Cambridge City Council,Cambridgeshire County Council,10022800,12/03/2018,003791,1702,City Development,62400,Consultancy Fees,610.00
http://statistics.data.gov.uk/id/local-authority/12UB,Cambridge City Council,MLM Consulting Engineers Ltd,10072500,26/04/2018,004156,300035,Ditchburn Place,70010,CAPEX - Other Professional Fees,1100.00
http://statistics.data.gov.uk/id/local-authority/12UB,Cambridge City Council,HMRC VAT,10055300,25/04/2018,004189,100154,Acquisition of land adjacent to Huntingdon Road Crematorium,70001,CAPEX - Acquisition of Land & Exisiting Building,1500.00
http://statistics.data.gov.uk/id/local-authority/12UB,Cambridge City Council,Smith & Ouzman Ltd,10095300,03/04/2018,004529,1801,Local Taxation,62001,Printing,3162.21
http://statistics.data.gov.uk/id/local-authority/12UB,Cambridge City Council,Clare Hopkins,10169100,09/04/2018,004536,1504,Housing Advice Service,62400,Consultancy Fees,1996.50
http://statistics.data.gov.uk/id/local-authority/12UB,Cambridge City Council,Clare Hopkins,10169100,09/04/2018,004536,6203,Technical Services,62400,Consultancy Fees,3993.00
http://statistics.data.gov.uk/id/local-authority/12UB,Cambridge City Council,Cambridge Investment Partnership LLP,10145700,28/02/2018,002333,6007,Departmental Overheads-Client,62400,Consultancy Fees,4859.77
http://statistics.data.gov.uk/id/local-authority/12UB,Cambridge City Council,Cambridge Investment Partnership LLP,10145700,28/02/2018,002399,300074,New Build - Colville Road Garages,70002,CAPEX - Building Contractor/Works,5172.26
http://statistics.data.gov.uk/id/local-authority/12UB,Cambridge City Council,Foster & Shackell,10118400,22/03/2018,002524,200001,Mandatory Disabled Facilities Grants (Tenants),70015,CAPEX - Grants Paid,5400.00
http://statistics.data.gov.uk/id/local-authority/12UB,Cambridge City Council,Royal Mail Group Ltd,10128400,03/04/2018,002594,1003,Bereavement Services Central Costs,61400,Goods For Resale,1952.66
http://statistics.data.gov.uk/id/local-authority/12UB,Cambridge City Council,Nuture Landscapes Ltd,10132000,31/03/2018,002714,1774,"Cambridge Road Retail Park, Haverhill",60503,Grounds Maintenance,851.89
http://statistics.data.gov.uk/id/local-authority/12UB,Cambridge City Council,Cambridge Print Solutions Ltd,10020800,29/03/2018,004576,1856,Streets & Open Spaces (Operations) - Indirect Costs,61703,"Purchase - Equipment, Furniture And Materials",598.00
http://statistics.data.gov.uk/id/local-authority/12UB,Cambridge City Council,Stepney Brothers Limited,10098600,13/04/2018,004537,8009,Insurance Fund,67302,Insurance Claim,1045.79
http://statistics.data.gov.uk/id/local-authority/12UB,Cambridge City Council,APT-Skidata Ltd,10115700,29/03/2018,002582,1655,Queen Anne Terrace Car Park,60201,Cyclical/Planned Maintenance - Building,2160.00
http://statistics.data.gov.uk/id/local-authority/12UB,Cambridge City Council,ATS Euromaster Ltd,10009301,31/03/2018,002730,1031,Fleet Management - Operational,60904,Vehicle Repairs And Maintenance,994.24
http://statistics.data.gov.uk/id/local-authority/12UB,Cambridge City Council,ADC (East Anglia) Ltd,10002500,26/04/2018,004515,400029,Hobsons Conduit Routine Works,60501,Cleaning Services,2670.00
http://statistics.data.gov.uk/id/local-authority/12UB,Cambridge City Council,C F Hunter T/A C & M Haulage,10016900,29/03/2018,003525,6200,Building Maintenance Response - Direct,64050,Waste Disposal Costs,800.00
http://statistics.data.gov.uk/id/local-authority/12UB,Cambridge City Council,C F Hunter T/A C & M Haulage,10016900,29/03/2018,003525,1855,Street Cleaning - Direct,64050,Waste Disposal Costs,4200.00
http://statistics.data.gov.uk/id/local-authority/12UB,Cambridge City Council,Cambridge Live Limited,10019900,09/04/2018,003400,1250,Cultural Facilities Administration,61800,Contract Charges,43348.27
http://statistics.data.gov.uk/id/local-authority/12UB,Cambridge City Council,Cambridge Live Limited,10019900,09/04/2018,003400,1250,Cultural Facilities Administration,61800,Contract Charges,30743.73
http://statistics.data.gov.uk/id/local-authority/12UB,Cambridge City Council,Alboro Developments Ltd,10133300,04/04/2018,002740,1031,Fleet Management - Operational,67100,Profit Share Payable,15124.00
http://statistics.data.gov.uk/id/local-authority/12UB,Cambridge City Council,IRRV - Institute of Revenues Rating & Valuation,10151200,09/04/2018,003205,1803,Revenue Overheads,64300,Conference Expenses,525.00
http://statistics.data.gov.uk/id/local-authority/12UB,Cambridge City Council,IRRV - Institute of Revenues Rating & Valuation,10151200,09/04/2018,003205,1802,Housing Benefits,64300,Conference Expenses,525.00
http://statistics.data.gov.uk/id/local-authority/12UB,Cambridge City Council,LAVAT Consulting Limited,10065800,27/03/2018,002135,8006,Accountancy and Support Services,62400,Consultancy Fees,2100.00
http://statistics.data.gov.uk/id/local-authority/12UB,Cambridge City Council,Elliott Engineering,10041100,26/03/2018,002820,1002,Bereavement Services - Burials & Grounds,60503,Grounds Maintenance,1042.00
http://statistics.data.gov.uk/id/local-authority/12UB,Cambridge City Council,Direct365online Ltd,10139700,22/03/2018,004224,1205,Quality/Health & Safety Management - Indirect,62400,Consultancy Fees,808.00
http://statistics.data.gov.uk/id/local-authority/12UB,Cambridge City Council,Rossfield Design Ltd T/A Minuteman Press,10090300,22/03/2018,002129,1251,Culture and Community,62001,Printing,518.40
http://statistics.data.gov.uk/id/local-authority/12UB,Cambridge City Council,Savills (UK) Ltd,10092000,13/03/2018,002145,1758,Other Commercial Properties,62400,Consultancy Fees,5000.00
http://statistics.data.gov.uk/id/local-authority/12UB,Cambridge City Council,Inform Communications PLC,10058500,27/03/2018,002207,1300,Customer Access Strategy - Customer Service Centre,64073,Ict Maintenance And Support,33690.00
http://statistics.data.gov.uk/id/local-authority/12UB,Cambridge City Council,Keith Hunte T/A Spider HR,10063400,03/04/2018,003398,8008,Shared Payroll Service,62400,Consultancy Fees,4900.00
http://statistics.data.gov.uk/id/local-authority/12UB,Cambridge City Council,Maximon Solutions Limited,10134200,15/03/2018,002981,1063,The Meadows Community Centre,63800,Security Services (Excluding Premises),881.99
http://statistics.data.gov.uk/id/local-authority/12UB,Cambridge City Council,Alboro Developments Ltd,10133300,31/03/2018,002732,1031,Fleet Management - Operational,60303,Electricity,1428.46
http://statistics.data.gov.uk/id/local-authority/12UB,Cambridge City Council,Openview Security Solutions Ltd,10078100,17/04/2018,003691,8015,Guildhall,60201,Cyclical/Planned Maintenance - Building,792.86
http://statistics.data.gov.uk/id/local-authority/12UB,Cambridge City Council,Outspoken Delivery LLP,10078900,30/03/2018,002793,8023,Business Support - Centralised Overheads,64100,Postage And Courier Services,2124.95
http://statistics.data.gov.uk/id/local-authority/12UB,Cambridge City Council,University of Cambridge,10110200,06/04/2018,003288,1057,Community Development Voluntary Support,64600,Grants And Contributions,7500.00
http://statistics.data.gov.uk/id/local-authority/12UB,Cambridge City Council,Portsdown Office Ltd,10148500,06/03/2018,003352,100022,Clay Farm Community Centre -Phase 2 (Construction),70024,CAPEX - Other Capital Expenditure,12664.18
http://statistics.data.gov.uk/id/local-authority/12UB,Cambridge City Council,Huntingdonshire District Council,10056900,25/01/2018,002796,8006,Accountancy and Support Services,60011,Agency Staff,675.00
http://statistics.data.gov.uk/id/local-authority/12UB,Cambridge City Council,Children's Scrapstore,10028400,29/03/2018,002824,1052,Children & Young People's Service,61400,Goods For Resale,617.50
http://statistics.data.gov.uk/id/local-authority/12UB,Cambridge City Council,D Carman BSSR Ltd,10118100,26/03/2018,002832,6207,Repairs Day to Day,60233,Housing Repairs - Work Given To External Contractors,1475.00
http://statistics.data.gov.uk/id/local-authority/12UB,Cambridge City Council,Marshall Peugeot Peterborough,10069501,29/03/2018,002900,100171,Vehicle Replacement Programme,70016,CAPEX - Purchase of Vehicles,18262.70
http://statistics.data.gov.uk/id/local-authority/12UB,Cambridge City Council,Kier Services Ltd,10120000,12/04/2018,002980,5024,E_invoicing Suspense Accounts,69100,Expenditure In Holding Account Awaiting Allocation,145718.60
http://statistics.data.gov.uk/id/local-authority/12UB,Cambridge City Council,Neopost Ltd,10137601,11/04/2018,003231,8011,Corporate Business Support,61702,"Maintenance - Equipment, Furniture And Materials",2916.00
http://statistics.data.gov.uk/id/local-authority/12UB,Cambridge City Council,Romsey Mill Trust,10090200,11/04/2018,003265,1057,Community Development Voluntary Support,64600,Grants And Contributions,4500.00
http://statistics.data.gov.uk/id/local-authority/12UB,Cambridge City Council,Romsey Mill Trust,10090200,11/04/2018,003265,1057,Community Development Voluntary Support,64600,Grants And Contributions,2000.00
http://statistics.data.gov.uk/id/local-authority/12UB,Cambridge City Council,Cambridge Ethnic Community Forum,10019300,11/04/2018,003271,1057,Community Development Voluntary Support,64600,Grants And Contributions,11000.00
http://statistics.data.gov.uk/id/local-authority/12UB,Cambridge City Council,Newlyn PLC,10075600,10/03/2018,003734,1801,Local Taxation,63900,Miscellaneous Expenses,535.30
http://statistics.data.gov.uk/id/local-authority/12UB,Cambridge City Council,Cambridge Sustainable Food,10162900,13/04/2018,003807,1057,Community Development Voluntary Support,64600,Grants And Contributions,2500.00
http://statistics.data.gov.uk/id/local-authority/12UB,Cambridge City Council,CFC Disposal Ltd,10025700,02/04/2018,003877,8005,Depot Management - Indirect,64050,Waste Disposal Costs,1742.50
http://statistics.data.gov.uk/id/local-authority/12UB,Cambridge City Council,Compton & Casburn Ltd,10117600,23/04/2018,004188,6207,Repairs Day to Day,60233,Housing Repairs - Work Given To External Contractors,730.00
http://statistics.data.gov.uk/id/local-authority/12UB,Cambridge City Council,Royal Mail Group Ltd,10128400,17/04/2018,004336,8023,Business Support - Centralised Overheads,64100,Postage And Courier Services,1292.08
http://statistics.data.gov.uk/id/local-authority/12UB,Cambridge City Council,Comensura Ltd,10031900,22/04/2018,004375,5024,E_invoicing Suspense Accounts,69100,Expenditure In Holding Account Awaiting Allocation,528.15
http://statistics.data.gov.uk/id/local-authority/12UB,Cambridge City Council,Marshall Peugeot Peterborough,10069501,29/03/2018,002915,100171,Vehicle Replacement Programme,70016,CAPEX - Purchase of Vehicles,18262.70
http://statistics.data.gov.uk/id/local-authority/12UB,Cambridge City Council,Freeths LLP,10128500,29/03/2018,003435,8014,3C Legal Practice,62400,Consultancy Fees,1237.50
http://statistics.data.gov.uk/id/local-authority/12UB,Cambridge City Council,Sharpe Pritchard LLP,10093300,31/01/2018,004178,100022,Clay Farm Community Centre -Phase 2 (Construction),70010,CAPEX - Other Professional Fees,2376.00
http://statistics.data.gov.uk/id/local-authority/12UB,Cambridge City Council,Sharpe Pritchard LLP,10093300,31/01/2018,004178,1071,Clay Farm Community Centre,62400,Consultancy Fees,1107.00
http://statistics.data.gov.uk/id/local-authority/12UB,Cambridge City Council,Richardson Heating Services,10088900,22/03/2018,004214,6211,Gas Servicing,60225,Housing Repairs - Gas Maintenance Contract,960.00
http://statistics.data.gov.uk/id/local-authority/12UB,Cambridge City Council,Newnham Bowls Club,10075700,27/03/2018,002451,1102,Leisure Contract Client Costs,64600,Grants And Contributions,5064.28
http://statistics.data.gov.uk/id/local-authority/12UB,Cambridge City Council,Hillier Nurseries Ltd,10151900,28/02/2018,002553,100088,Cherry Hinton Grounds Improvements Phase 2 (S106),70013,CAPEX - Landscaping,4005.00
http://statistics.data.gov.uk/id/local-authority/12UB,Cambridge City Council,Huntingdonshire District Council,10056900,21/03/2018,002613,8021,IT Contract Costs,64073,Ict Maintenance And Support,34841.05
http://statistics.data.gov.uk/id/local-authority/12UB,Cambridge City Council,Kestrel Fencing,10119900,27/03/2018,002722,1866,Open Space Asset Maintenance,61702,"Maintenance - Equipment, Furniture And Materials",3000.00
http://statistics.data.gov.uk/id/local-authority/12UB,Cambridge City Council,Bermuda Community Room,10012500,06/04/2018,003287,1057,Community Development Voluntary Support,64600,Grants And Contributions,850.00
http://statistics.data.gov.uk/id/local-authority/12UB,Cambridge City Council,Huntingdonshire District Council,10056900,27/03/2018,003456,6007,Departmental Overheads-Client,64073,Ict Maintenance And Support,6720.40
http://statistics.data.gov.uk/id/local-authority/12UB,Cambridge City Council,Blue Audio Visual Ltd,10146700,15/03/2018,002349,1001,Cambridge Crematorium,60201,Cyclical/Planned Maintenance - Building,4400.00
http://statistics.data.gov.uk/id/local-authority/12UB,Cambridge City Council,CGM Group (East Anglia) Ltd,10117300,04/12/2017,002518,1876,Arboriculture,64040,Tree Works,840.00
http://statistics.data.gov.uk/id/local-authority/12UB,Cambridge City Council,Foster & Shackell,10118400,06/03/2018,002523,200001,Mandatory Disabled Facilities Grants (Tenants),70015,CAPEX - Grants Paid,7092.00
http://statistics.data.gov.uk/id/local-authority/12UB,Cambridge City Council,Marshall Peugeot Peterborough,10069501,29/03/2018,002737,100171,Vehicle Replacement Programme,70016,CAPEX - Purchase of Vehicles,18907.70
http://statistics.data.gov.uk/id/local-authority/12UB,Cambridge City Council,Penna PLC,10080400,29/03/2018,002753,8014,3C Legal Practice,60116,Staff Recruitment Costs,503.00
http://statistics.data.gov.uk/id/local-authority/12UB,Cambridge City Council,Zebra Training Services Ltd,10128200,10/03/2018,002756,1802,Housing Benefits,64300,Conference Expenses,520.00
http://statistics.data.gov.uk/id/local-authority/12UB,Cambridge City Council,Comensura Ltd,10031900,28/03/2018,002968,5024,E_invoicing Suspense Accounts,69100,Expenditure In Holding Account Awaiting Allocation,1576.82
http://statistics.data.gov.uk/id/local-authority/12UB,Cambridge City Council,Cambridge Online,10154400,01/04/2018,003143,1057,Community Development Voluntary Support,64600,Grants And Contributions,5000.00
http://statistics.data.gov.uk/id/local-authority/12UB,Cambridge City Council,Kershaw Contracting Services Ltd,10063800,16/04/2018,003633,300007,Asbestos Removal,70003,CAPEX - Building Contractor/Works - Voids & Emergencies,5500.00
http://statistics.data.gov.uk/id/local-authority/12UB,Cambridge City Council,Encompass Network,10163100,13/04/2018,003832,1057,Community Development Voluntary Support,64600,Grants And Contributions,4250.00
http://statistics.data.gov.uk/id/local-authority/12UB,Cambridge City Council,AON UK Limited,10006800,16/04/2018,004029,8009,Insurance Fund,67302,Insurance Claim,104475.67
http://statistics.data.gov.uk/id/local-authority/12UB,Cambridge City Council,Currie & Brown (UK) Ltd,10034800,28/02/2018,004270,100143,Mandela House refurbishment (OAS),70010,CAPEX - Other Professional Fees,1500.00
http://statistics.data.gov.uk/id/local-authority/12UB,Cambridge City Council,Cambridge Bid Limited,10017900,18/04/2018,004530,5025,Business Improvement District (BID) Collection Fund,58702,BID Levy - Payment to BID Company,150000.00
http://statistics.data.gov.uk/id/local-authority/12UB,Cambridge City Council,Policy in Practice Ltd,10148400,08/03/2018,002201,1802,Housing Benefits,62400,Consultancy Fees,4995.00
http://statistics.data.gov.uk/id/local-authority/12UB,Cambridge City Council,Cambridge Investment Partnership LLP,10145700,31/01/2018,002411,300058,New Build - Anstey Way,70002,CAPEX - Building Contractor/Works,158842.54
http://statistics.data.gov.uk/id/local-authority/12UB,Cambridge City Council,Cambridgeshire County Council,10022800,21/03/2018,002713,1708,Urban Design & Conservation,64073,Ict Maintenance And Support,2912.50
http://statistics.data.gov.uk/id/local-authority/12UB,Cambridge City Council,Environmental Protection Strategies Ltd,10043100,24/01/2018,002757,1404,Scientific Team,62400,Consultancy Fees,860.00
http://statistics.data.gov.uk/id/local-authority/12UB,Cambridge City Council,Comensura Ltd,10031900,01/04/2018,002973,5024,E_invoicing Suspense Accounts,69100,Expenditure In Holding Account Awaiting Allocation,40576.01
http://statistics.data.gov.uk/id/local-authority/12UB,Cambridge City Council,Banner Group Ltd,10011000,28/03/2018,002976,5024,E_invoicing Suspense Accounts,69100,Expenditure In Holding Account Awaiting Allocation,3055.64
http://statistics.data.gov.uk/id/local-authority/12UB,Cambridge City Council,Pro-Flat Specialist Services Ltd,10123200,30/03/2018,003073,6207,Repairs Day to Day,60233,Housing Repairs - Work Given To External Contractors,1485.00
http://statistics.data.gov.uk/id/local-authority/12UB,Cambridge City Council,Bidwells LLP,10161000,31/03/2018,003801,100142,Relocation of services to 130 Cowley Road (OAS),70010,CAPEX - Other Professional Fees,3750.00
http://statistics.data.gov.uk/id/local-authority/12UB,Cambridge City Council,Cam Sight,10017400,13/04/2018,003811,1057,Community Development Voluntary Support,64600,Grants And Contributions,1000.00
http://statistics.data.gov.uk/id/local-authority/12UB,Cambridge City Council,HM Revenue & Customs,10144201,23/04/2018,004015,9900,General Fund Balance Sheet,10013,CCC General Account Bank Account,566622.08
http://statistics.data.gov.uk/id/local-authority/12UB,Cambridge City Council,S E H French Ltd,10149300,09/04/2018,004163,100142,Relocation of services to 130 Cowley Road (OAS),70002,CAPEX - Building Contractor/Works,47086.61
http://statistics.data.gov.uk/id/local-authority/12UB,Cambridge City Council,Cambridgeshire Vietnamese Refugee Community,10023000,17/04/2018,003709,1057,Community Development Voluntary Support,64600,Grants And Contributions,1000.00
http://statistics.data.gov.uk/id/local-authority/12UB,Cambridge City Council,Realife Trust,10086900,31/03/2018,003716,1766,Orwell House Offices-Internal,62004,General Office Expenses,1319.62
http://statistics.data.gov.uk/id/local-authority/12UB,Cambridge City Council,Frimstone Ltd,10047500,31/03/2018,003719,1031,Fleet Management - Operational,60902,Transport Fuel,947.01
http://statistics.data.gov.uk/id/local-authority/12UB,Cambridge City Council,Green Energy Switch Ltd,10051400,30/03/2018,003736,6209,Energy Rating,60230,Housing Repairs - Garden Clearance,1000.00
http://statistics.data.gov.uk/id/local-authority/12UB,Cambridge City Council,Conamar Building Services Ltd,10136200,23/03/2018,003800,100143,Mandela House refurbishment (OAS),70002,CAPEX - Building Contractor/Works,298323.61
http://statistics.data.gov.uk/id/local-authority/12UB,Cambridge City Council,Pro-Flat Specialist Services Ltd,10123200,28/02/2018,002496,6207,Repairs Day to Day,60218,Housing Repairs - Electrical Supply / Air Cooling / Lighting,2454.00
http://statistics.data.gov.uk/id/local-authority/12UB,Cambridge City Council,Huntingdonshire District Council,10056900,19/03/2018,002630,1803,Revenue Overheads,64073,Ict Maintenance And Support,773.45
http://statistics.data.gov.uk/id/local-authority/12UB,Cambridge City Council,Diners Club International,10037600,28/03/2018,002716,5024,E_invoicing Suspense Accounts,69100,Expenditure In Holding Account Awaiting Allocation,2305.15
http://statistics.data.gov.uk/id/local-authority/12UB,Cambridge City Council,Pro-Flat Specialist Services Ltd,10123200,29/03/2018,002807,6207,Repairs Day to Day,60233,Housing Repairs - Work Given To External Contractors,760.00
http://statistics.data.gov.uk/id/local-authority/12UB,Cambridge City Council,Pro-Flat Specialist Services Ltd,10123200,29/03/2018,002814,6207,Repairs Day to Day,54301,Rechargeable Repairs Income (B),710.00
http://statistics.data.gov.uk/id/local-authority/12UB,Cambridge City Council,Barker Storey Matthews,10011400,21/03/2018,002271,6005,Area Offices Premises Costs,62400,Consultancy Fees,3900.00
http://statistics.data.gov.uk/id/local-authority/12UB,Cambridge City Council,Saunders Boston Ltd,10091900,31/12/2017,004259,1073,Community Development - Admin,62400,Consultancy Fees,2250.00
http://statistics.data.gov.uk/id/local-authority/12UB,Cambridge City Council,Foster & Shackell,10118400,11/04/2018,004421,200001,Mandatory Disabled Facilities Grants (Tenants),70015,CAPEX - Grants Paid,921.60
http://statistics.data.gov.uk/id/local-authority/12UB,Cambridge City Council,Cambridge City Council,10153901,01/04/2018,004452,6102,Temporary Accommodation,60201,Cyclical/Planned Maintenance - Building,634.40
http://statistics.data.gov.uk/id/local-authority/12UB,Cambridge City Council,Cambridge City Council,10153901,01/04/2018,004455,6102,Temporary Accommodation,60201,Cyclical/Planned Maintenance - Building,1963.52
http://statistics.data.gov.uk/id/local-authority/12UB,Cambridge City Council,Smith & Ouzman Ltd,10095300,03/04/2018,004524,1801,Local Taxation,62001,Printing,4317.49
http://statistics.data.gov.uk/id/local-authority/12UB,Cambridge City Council,Businessclean (Cambridge) Ltd,10016800,31/03/2018,003543,6102,Temporary Accommodation,60501,Cleaning Services,1548.50
http://statistics.data.gov.uk/id/local-authority/12UB,Cambridge City Council,Compton & Casburn Ltd,10117600,13/04/2018,003576,6207,Repairs Day to Day,60233,Housing Repairs - Work Given To External Contractors,625.00
http://statistics.data.gov.uk/id/local-authority/12UB,Cambridge City Council,C B Groundworks & Construction Ltd,10162700,23/02/2018,003726,1102,Leisure Contract Client Costs,60201,Cyclical/Planned Maintenance - Building,2655.12
http://statistics.data.gov.uk/id/local-authority/12UB,Cambridge City Council,Newlyn PLC,10075600,03/03/2018,003729,9900,General Fund Balance Sheet,11708,Vat Debtor (Input Tax),531.44
http://statistics.data.gov.uk/id/local-authority/12UB,Cambridge City Council,Wood Green Animal Shelters,10114100,09/04/2018,003741,1858,Public Realm Enforcement,63900,Miscellaneous Expenses,832.49
http://statistics.data.gov.uk/id/local-authority/12UB,Cambridge City Council,Cambridge & District Citizen's Advice Bureau,10017500,01/04/2018,003781,1509,Grants to Housing Agencies,64600,Grants And Contributions,8139.25
http://statistics.data.gov.uk/id/local-authority/12UB,Cambridge City Council,S P Landscapes & Tree Contractors Ltd,10124100,18/04/2018,004153,6012,City Homes Expenditure,64040,Tree Works,600.00
http://statistics.data.gov.uk/id/local-authority/12UB,Cambridge City Council,Douglas Edwards Q.C,10038400,18/02/2018,002454,9900,General Fund Balance Sheet,30001,Gf Earmarked Reserves Balance,2423.33
http://statistics.data.gov.uk/id/local-authority/12UB,Cambridge City Council,City of Cambridge Bowls Club,10030000,27/03/2018,002461,1102,Leisure Contract Client Costs,64600,Grants And Contributions,5064.28
http://statistics.data.gov.uk/id/local-authority/12UB,Cambridge City Council,Manit Contractors Ltd,10120700,29/03/2018,002712,100000,Street Lighting,70002,CAPEX - Building Contractor/Works,27310.55
http://statistics.data.gov.uk/id/local-authority/12UB,Cambridge City Council,Pro-Flat Specialist Services Ltd,10123200,30/03/2018,003065,6207,Repairs Day to Day,60233,Housing Repairs - Work Given To External Contractors,1256.00
http://statistics.data.gov.uk/id/local-authority/12UB,Cambridge City Council,Parktennis Cic,10079900,11/04/2018,003198,1103,Active Lifestyles - Communities (ex Sports Development),62400,Consultancy Fees,750.00
http://statistics.data.gov.uk/id/local-authority/12UB,Cambridge City Council,Groundwork East,10052100,11/04/2018,003266,1057,Community Development Voluntary Support,64600,Grants And Contributions,2000.00
http://statistics.data.gov.uk/id/local-authority/12UB,Cambridge City Council,Altone Limited,10004700,21/03/2018,003446,6002,Resident Involvement,64100,Postage And Courier Services,1179.00
http://statistics.data.gov.uk/id/local-authority/12UB,Cambridge City Council,Rapid Racking Ltd,10086500,26/04/2018,004527,300017,Stores Review,70017,CAPEX - Purchase of Plant Machinery & Equipment,24255.91
http://statistics.data.gov.uk/id/local-authority/12UB,Cambridge City Council,Richard Castle,10088800,05/04/2018,004566,100154,Acquisition of land adjacent to Huntingdon Road Crematorium,70010,CAPEX - Other Professional Fees,2050.00
http://statistics.data.gov.uk/id/local-authority/12UB,Cambridge City Council,Cambridge Felt Roofing Ltd,10117000,05/03/2018,002340,6207,Repairs Day to Day,60233,Housing Repairs - Work Given To External Contractors,1100.00
http://statistics.data.gov.uk/id/local-authority/12UB,Cambridge City Council,Abbey Bowls Club,10001200,27/03/2018,002444,1102,Leisure Contract Client Costs,64600,Grants And Contributions,5064.28
http://statistics.data.gov.uk/id/local-authority/12UB,Cambridge City Council,Cambridgeshire County Council,10022800,01/03/2018,002766,1523,Dual Diagnosis Street Team,62900,Events,5000.00
http://statistics.data.gov.uk/id/local-authority/12UB,Cambridge City Council,Lucion Environmental Ltd T/A Redhills,10067800,05/04/2018,002864,6205,Citywide Schemes,60235,Housing Repairs - Other Premises Related Costs,856.80
http://statistics.data.gov.uk/id/local-authority/12UB,Cambridge City Council,United Agents LLP,10156000,16/03/2018,003079,1251,Culture and Community,62900,Events,850.00
http://statistics.data.gov.uk/id/local-authority/12UB,Cambridge City Council,Currie & Brown (UK) Ltd,10034800,31/01/2018,003120,100143,Mandela House refurbishment (OAS),70010,CAPEX - Other Professional Fees,1500.00
http://statistics.data.gov.uk/id/local-authority/12UB,Cambridge City Council,Glasswells Ltd,10118900,09/04/2018,003177,6207,Repairs Day to Day,54301,Rechargeable Repairs Income (B),604.00
http://statistics.data.gov.uk/id/local-authority/12UB,Cambridge City Council,Anglian Water Business (National) Ltd T/A Wave,10006400,10/03/2018,004127,8005,Depot Management - Indirect,60302,Water And Sewerage,31774.30
http://statistics.data.gov.uk/id/local-authority/12UB,Cambridge City Council,Cambridge Council For Voluntary Service CVS,10018500,27/03/2018,004366,1057,Community Development Voluntary Support,64600,Grants And Contributions,11000.00
http://statistics.data.gov.uk/id/local-authority/12UB,Cambridge City Council,Comensura Ltd,10031900,25/04/2018,004377,5024,E_invoicing Suspense Accounts,69100,Expenditure In Holding Account Awaiting Allocation,48834.87
http://statistics.data.gov.uk/id/local-authority/12UB,Cambridge City Council,Cambridge City Council,10153901,01/04/2018,004492,8021,IT Contract Costs,64073,Ict Maintenance And Support,3739.31
http://statistics.data.gov.uk/id/local-authority/12UB,Cambridge City Council,D Carman BSSR Ltd,10118100,09/04/2018,002986,8017,Mandela House,60201,Cyclical/Planned Maintenance - Building,732.00
http://statistics.data.gov.uk/id/local-authority/12UB,Cambridge City Council,ESPO,10043700,09/04/2018,003000,100201,Guildhall Welfare Improvements (OAS),70024,CAPEX - Other Capital Expenditure,732.00
http://statistics.data.gov.uk/id/local-authority/12UB,Cambridge City Council,HM Revenue & Customs,10144201,10/03/2018,003009,9900,General Fund Balance Sheet,21003,Construction Industry Tax (Cis),4333.04
http://statistics.data.gov.uk/id/local-authority/12UB,Cambridge City Council,Comensura Ltd,10031900,18/03/2018,003010,5024,E_invoicing Suspense Accounts,69100,Expenditure In Holding Account Awaiting Allocation,57111.02
http://statistics.data.gov.uk/id/local-authority/12UB,Cambridge City Council,Robert Pochin Limited,10089700,26/03/2018,003624,9900,General Fund Balance Sheet,11600,Consumable Stores,564.10
http://statistics.data.gov.uk/id/local-authority/12UB,Cambridge City Council,The BSS Group PLC - Pts Plumbing Trade Supplies,10102000,05/04/2018,003624,9900,General Fund Balance Sheet,11600,Consumable Stores,1132.05
http://statistics.data.gov.uk/id/local-authority/12UB,Cambridge City Council,The BSS Group PLC - Pts Plumbing Trade Supplies,10102000,05/04/2018,003624,9900,General Fund Balance Sheet,11600,Consumable Stores,1146.62
http://statistics.data.gov.uk/id/local-authority/12UB,Cambridge City Council,Come Clean Ltd T/A CCL Supplies,10031800,10/04/2018,003624,9900,General Fund Balance Sheet,11600,Consumable Stores,1200.00
http://statistics.data.gov.uk/id/local-authority/12UB,Cambridge City Council,Cambridge Investment Partnership LLP,10145700,31/01/2018,002335,6007,Departmental Overheads-Client,62400,Consultancy Fees,6305.65
http://statistics.data.gov.uk/id/local-authority/12UB,Cambridge City Council,RAB Consultants Ltd,10150900,12/01/2018,002414,1875,Project Delivery (Salaried),60011,Agency Staff,1894.00
http://statistics.data.gov.uk/id/local-authority/12UB,Cambridge City Council,Mercer Tree Services Ltd,10071200,29/03/2018,002586,1876,Arboriculture,64040,Tree Works,2975.00
http://statistics.data.gov.uk/id/local-authority/12UB,Cambridge City Council,James Coles & Sons (Nurseries)Ltd,10060700,13/03/2018,002767,6110,Estate Management (South),60503,Grounds Maintenance,1557.10
http://statistics.data.gov.uk/id/local-authority/12UB,Cambridge City Council,Roger Parker Associates Ltd,10089800,19/02/2018,002800,9901,Housing Revenue Account Balance Sheet,30003,Hra Earmarked Reserves Balance,600.00
http://statistics.data.gov.uk/id/local-authority/12UB,Cambridge City Council,Huntingdonshire District Council,10056900,29/03/2018,002885,5024,E_invoicing Suspense Accounts,69100,Expenditure In Holding Account Awaiting Allocation,732.50
http://statistics.data.gov.uk/id/local-authority/12UB,Cambridge City Council,Pro-Flat Specialist Services Ltd,10123200,30/03/2018,003064,6207,Repairs Day to Day,60233,Housing Repairs - Work Given To External Contractors,596.00
http://statistics.data.gov.uk/id/local-authority/12UB,Cambridge City Council,Cambridge Investment Partnership LLP,10145700,28/02/2018,002385,300064,New Build - Akeman Street,70002,CAPEX - Building Contractor/Works,5750.08
http://statistics.data.gov.uk/id/local-authority/12UB,Cambridge City Council,RAB Consultants Ltd,10150900,12/02/2018,002416,1875,Project Delivery (Salaried),60011,Agency Staff,2107.00
http://statistics.data.gov.uk/id/local-authority/12UB,Cambridge City Council,Print.UK.Com,10083800,27/03/2018,002701,9900,General Fund Balance Sheet,11721,Payments In Advance - Other Entities And Individuals,2195.86
http://statistics.data.gov.uk/id/local-authority/12UB,Cambridge City Council,Marshall Peugeot Peterborough,10069501,29/03/2018,002731,100171,Vehicle Replacement Programme,70016,CAPEX - Purchase of Vehicles,18262.70
http://statistics.data.gov.uk/id/local-authority/12UB,Cambridge City Council,Pro-Flat Specialist Services Ltd,10123200,30/03/2018,003072,6207,Repairs Day to Day,60233,Housing Repairs - Work Given To External Contractors,1570.00
http://statistics.data.gov.uk/id/local-authority/12UB,Cambridge City Council,Post office Ltd,10082800,11/04/2018,003273,6200,Building Maintenance Response - Direct,60905,Vehicle Licensing,1920.00
http://statistics.data.gov.uk/id/local-authority/12UB,Cambridge City Council,Post office Ltd,10082800,11/04/2018,003273,1034,Garage Holding Code - Shared Waste,60905,Vehicle Licensing,650.00
http://statistics.data.gov.uk/id/local-authority/12UB,Cambridge City Council,AON UK Limited,10006800,12/04/2018,004037,8009,Insurance Fund,67302,Insurance Claim,2993.76
http://statistics.data.gov.uk/id/local-authority/12UB,Cambridge City Council,St Augustines Church,10097000,27/03/2018,004069,1057,Community Development Voluntary Support,64600,Grants And Contributions,4460.00
http://statistics.data.gov.uk/id/local-authority/12UB,Cambridge City Council,Frontline Fabrication & Welding Co Ltd,10128000,29/03/2018,004479,1868,Play Maintenance,60503,Grounds Maintenance,950.00
http://statistics.data.gov.uk/id/local-authority/12UB,Cambridge City Council,AOS Security Ltd,10006900,05/04/2018,002870,8005,Depot Management - Indirect,60271,Security Of Premises,6405.12
http://statistics.data.gov.uk/id/local-authority/12UB,Cambridge City Council,AOS Security Ltd,10006900,05/04/2018,002870,1651,Grand Arcade Car Park,60271,Security Of Premises,3306.19
http://statistics.data.gov.uk/id/local-authority/12UB,Cambridge City Council,AOS Security Ltd,10006900,05/04/2018,002870,1652,Park Street Car Park,60271,Security Of Premises,1239.82
http://statistics.data.gov.uk/id/local-authority/12UB,Cambridge City Council,AOS Security Ltd,10006900,05/04/2018,002870,1653,Grafton Centre West Car Park,60271,Security Of Premises,1239.82
http://statistics.data.gov.uk/id/local-authority/12UB,Cambridge City Council,AOS Security Ltd,10006900,05/04/2018,002870,1654,Grafton Centre East Car Park,60271,Security Of Premises,3306.21
http://statistics.data.gov.uk/id/local-authority/12UB,Cambridge City Council,AOS Security Ltd,10006900,05/04/2018,002870,1655,Queen Anne Terrace Car Park,60271,Security Of Premises,1239.82
http://statistics.data.gov.uk/id/local-authority/12UB,Cambridge City Council,The BSS Group PLC - Pts Plumbing Trade Supplies,10102000,27/03/2018,003162,9900,General Fund Balance Sheet,11600,Consumable Stores,970.00
http://statistics.data.gov.uk/id/local-authority/12UB,Cambridge City Council,Travis Perkins Trading Co Ltd,10107600,03/04/2018,003162,9900,General Fund Balance Sheet,11600,Consumable Stores,1078.44
http://statistics.data.gov.uk/id/local-authority/12UB,Cambridge City Council,City Electrical Factors Ltd,10029900,21/03/2018,003162,9900,General Fund Balance Sheet,11600,Consumable Stores,607.02
http://statistics.data.gov.uk/id/local-authority/12UB,Cambridge City Council,D Carman BSSR Ltd,10118100,12/04/2018,003301,6207,Repairs Day to Day,60218,Housing Repairs - Electrical Supply / Air Cooling / Lighting,819.42
http://statistics.data.gov.uk/id/local-authority/12UB,Cambridge City Council,Power to Inspire Ltd,10158600,06/04/2018,003335,1057,Community Development Voluntary Support,64600,Grants And Contributions,1080.00
http://statistics.data.gov.uk/id/local-authority/12UB,Cambridge City Council,Shirley Primary School,10142500,10/01/2018,002279,1517,Syrian Resettlement,64300,Conference Expenses,1800.00
http://statistics.data.gov.uk/id/local-authority/12UB,Cambridge City Council,Cambridge Investment Partnership LLP,10145700,28/02/2018,002400,300058,New Build - Anstey Way,70002,CAPEX - Building Contractor/Works,76525.44
http://statistics.data.gov.uk/id/local-authority/12UB,Cambridge City Council,Lucion Environmental Ltd T/A Redhills,10067800,29/03/2018,002680,100155,Building works at the Guildhall to reduce carbon emissions a,70010,CAPEX - Other Professional Fees,525.00
http://statistics.data.gov.uk/id/local-authority/12UB,Cambridge City Council,Technology One (UK) Limited,10101100,31/03/2018,003755,100067,Replacement Financial Management System,70010,CAPEX - Other Professional Fees,11867.13
http://statistics.data.gov.uk/id/local-authority/12UB,Cambridge City Council,MLM Consulting Engineers Ltd,10072500,28/03/2018,003795,100143,Mandela House refurbishment (OAS),70002,CAPEX - Building Contractor/Works,750.00
http://statistics.data.gov.uk/id/local-authority/12UB,Cambridge City Council,Sharpe Pritchard LLP,10093300,31/10/2017,004171,100022,Clay Farm Community Centre -Phase 2 (Construction),70010,CAPEX - Other Professional Fees,747.00
http://statistics.data.gov.uk/id/local-authority/12UB,Cambridge City Council,Sharpe Pritchard LLP,10093300,31/10/2017,004171,1071,Clay Farm Community Centre,62400,Consultancy Fees,586.50
http://statistics.data.gov.uk/id/local-authority/12UB,Cambridge City Council,Foster & Shackell,10118400,10/04/2018,004419,200002,Mandatory Disabled Facilities Grants (Owner Occupiers),70015,CAPEX - Grants Paid,4500.00
http://statistics.data.gov.uk/id/local-authority/12UB,Cambridge City Council,Ernst & Young LLP,10043500,13/04/2018,004435,1453,Finance General Recharges,62400,Consultancy Fees,16764.00
http://statistics.data.gov.uk/id/local-authority/12UB,Cambridge City Council,Frontline Fabrication & Welding Co Ltd,10128000,29/03/2018,004478,1868,Play Maintenance,60503,Grounds Maintenance,2100.00
http://statistics.data.gov.uk/id/local-authority/12UB,Cambridge City Council,HQN Ltd,10056500,30/11/2017,004510,6012,City Homes Expenditure,60011,Agency Staff,2200.25
http://statistics.data.gov.uk/id/local-authority/12UB,Cambridge City Council,South Cambridgeshire District Council,10096100,14/03/2018,002393,1503,CCC Choice Based Lettings (Revenue),64075,Line Rental,7778.57
http://statistics.data.gov.uk/id/local-authority/12UB,Cambridge City Council,D Carman BSSR Ltd,10118100,09/04/2018,002990,6207,Repairs Day to Day,54301,Rechargeable Repairs Income (B),3840.00
http://statistics.data.gov.uk/id/local-authority/12UB,Cambridge City Council,David Powell t/a D J Kitchens,10137900,15/04/2018,003572,6207,Repairs Day to Day,60218,Housing Repairs - Electrical Supply / Air Cooling / Lighting,810.00
http://statistics.data.gov.uk/id/local-authority/12UB,Cambridge City Council,S E H French Ltd,10149300,08/03/2018,003678,100142,Relocation of services to 130 Cowley Road (OAS),70002,CAPEX - Building Contractor/Works,16342.09
http://statistics.data.gov.uk/id/local-authority/12UB,Cambridge City Council,South Cambridgeshire District Council,10096100,01/05/2018,003844,1707,Shared Director of Planning and Economic Development,62400,Consultancy Fees,5646.31
http://statistics.data.gov.uk/id/local-authority/12UB,Cambridge City Council,AON UK Limited,10006800,12/04/2018,004039,8009,Insurance Fund,67302,Insurance Claim,62571.04
http://statistics.data.gov.uk/id/local-authority/12UB,Cambridge City Council,Sunseeker Windows Ltd,10099900,16/03/2018,004269,6200,Building Maintenance Response - Direct,61703,"Purchase - Equipment, Furniture And Materials",970.00
http://statistics.data.gov.uk/id/local-authority/12UB,Cambridge City Council,Iken Business Ltd,10057900,23/02/2018,004434,8014,3C Legal Practice,64073,Ict Maintenance And Support,4050.00
http://statistics.data.gov.uk/id/local-authority/12UB,Cambridge City Council,Bsg Property Services Ltd,10015900,04/04/2018,004440,200001,Mandatory Disabled Facilities Grants (Tenants),70015,CAPEX - Grants Paid,8077.20
http://statistics.data.gov.uk/id/local-authority/12UB,Cambridge City Council,Bsg Property Services Ltd,10015900,21/03/2018,004477,200001,Mandatory Disabled Facilities Grants (Tenants),70015,CAPEX - Grants Paid,5610.00
http://statistics.data.gov.uk/id/local-authority/12UB,Cambridge City Council,CGM Group (East Anglia) Ltd,10117300,29/03/2018,004558,1883,Flood Risk Management,60501,Cleaning Services,1451.67
http://statistics.data.gov.uk/id/local-authority/12UB,Cambridge City Council,Cambridge Live Limited,10019900,29/03/2018,003618,1250,Cultural Facilities Administration,62400,Consultancy Fees,5000.00
http://statistics.data.gov.uk/id/local-authority/12UB,Cambridge City Council,Simpsons (East Anglia) Ltd Ta Drain Doctor Plumbing,10094700,11/04/2018,003625,6207,Repairs Day to Day,60233,Housing Repairs - Work Given To External Contractors,800.22
http://statistics.data.gov.uk/id/local-authority/12UB,Cambridge City Council,Mercer Tree Services Ltd,10071200,15/03/2018,002572,1876,Arboriculture,64040,Tree Works,2500.00
http://statistics.data.gov.uk/id/local-authority/12UB,Cambridge City Council,Mercer Tree Services Ltd,10071200,15/03/2018,002572,1885,Reverse Agency (formerly Unclassified Routine),64040,Tree Works,2500.00
http://statistics.data.gov.uk/id/local-authority/12UB,Cambridge City Council,David Powell t/a D J Kitchens,10137900,02/04/2018,002682,6207,Repairs Day to Day,60233,Housing Repairs - Work Given To External Contractors,630.00
http://statistics.data.gov.uk/id/local-authority/12UB,Cambridge City Council,Jewellery Evaluation & Mediation Services,10152800,26/03/2018,002690,1350,Civic Affairs and Twinning,60804,Other Premises Related Costs,2160.00
http://statistics.data.gov.uk/id/local-authority/12UB,Cambridge City Council,South Cambridgeshire District Council,10096100,31/03/2018,002708,6012,City Homes Expenditure,64060,Shared Service Contribution,11582.00
http://statistics.data.gov.uk/id/local-authority/12UB,Cambridge City Council,S P Landscapes & Tree Contractors Ltd,10124100,28/03/2018,003025,1876,Arboriculture,64040,Tree Works,1995.00
http://statistics.data.gov.uk/id/local-authority/12UB,Cambridge City Council,PSI2000 Ltd - Performance Support International,10084900,10/04/2018,003135,6205,Citywide Schemes,60235,Housing Repairs - Other Premises Related Costs,10400.00
http://statistics.data.gov.uk/id/local-authority/12UB,Cambridge City Council,1st Glass Services,10000100,29/03/2018,003164,6207,Repairs Day to Day,60233,Housing Repairs - Work Given To External Contractors,689.34
http://statistics.data.gov.uk/id/local-authority/12UB,Cambridge City Council,Technology One (UK) Limited,10101100,23/02/2018,003175,100067,Replacement Financial Management System,70010,CAPEX - Other Professional Fees,825.00
http://statistics.data.gov.uk/id/local-authority/12UB,Cambridge City Council,LGSS - Cambridgeshire Pension Fund,10022801,15/03/2018,003442,8010,Pensions Costs Recharged,60002,Pensions - Employers Contribution,68296.94
http://statistics.data.gov.uk/id/local-authority/12UB,Cambridge City Council,Wesley Media,10112900,28/03/2018,002197,1001,Cambridge Crematorium,63900,Miscellaneous Expenses,10569.64
http://statistics.data.gov.uk/id/local-authority/12UB,Cambridge City Council,Cambridge Investment Partnership LLP,10145700,26/03/2018,002377,6007,Departmental Overheads-Client,62400,Consultancy Fees,4016.89
http://statistics.data.gov.uk/id/local-authority/12UB,Cambridge City Council,D2D Distribution Ltd,10035400,26/03/2018,002388,1202,Corporate Marketing,62005,"Advertising, Publicity And Marketing",3638.00
http://statistics.data.gov.uk/id/local-authority/12UB,Cambridge City Council,D Carman BSSR Ltd,10118100,18/04/2018,004110,6207,Repairs Day to Day,60219,Housing Repairs - Insurances,12819.30
http://statistics.data.gov.uk/id/local-authority/12UB,Cambridge City Council,Saunders Boston Ltd,10091900,29/03/2018,004174,300076,New Build - Kingsway,70008,CAPEX - Architects Fees,1750.00
http://statistics.data.gov.uk/id/local-authority/12UB,Cambridge City Council,APT-Skidata Ltd,10115700,26/03/2018,002273,100075,Car parking control equipment at multi storey car parks,70002,CAPEX - Building Contractor/Works,24657.69
http://statistics.data.gov.uk/id/local-authority/12UB,Cambridge City Council,S P Landscapes & Tree Contractors Ltd,10124100,30/01/2018,002355,1876,Arboriculture,64040,Tree Works,720.00
http://statistics.data.gov.uk/id/local-authority/12UB,Cambridge City Council,RAB Consultants Ltd,10150900,27/03/2018,002631,1875,Project Delivery (Salaried),60011,Agency Staff,1836.00
http://statistics.data.gov.uk/id/local-authority/12UB,Cambridge City Council,Huntingdonshire District Council,10056900,19/03/2018,002656,1202,Corporate Marketing,64073,Ict Maintenance And Support,773.45
http://statistics.data.gov.uk/id/local-authority/12UB,Cambridge City Council,Huntingdonshire District Council,10056900,19/03/2018,002656,1803,Revenue Overheads,62400,Consultancy Fees,1100.00
http://statistics.data.gov.uk/id/local-authority/12UB,Cambridge City Council,Huntingdonshire District Council,10056900,19/03/2018,002656,8021,IT Contract Costs,64073,Ict Maintenance And Support,2319.00
http://statistics.data.gov.uk/id/local-authority/12UB,Cambridge City Council,OASIS - Offsite Storage & Integrated Services UK Ltd,10155800,31/03/2018,002913,8023,Business Support - Centralised Overheads,63700,Removal Services,591.69
http://statistics.data.gov.uk/id/local-authority/12UB,Cambridge City Council,Marshall Peugeot Peterborough,10069501,29/03/2018,002916,100171,Vehicle Replacement Programme,70016,CAPEX - Purchase of Vehicles,18262.70
http://statistics.data.gov.uk/id/local-authority/12UB,Cambridge City Council,EMFcomp Ltd,10145800,22/03/2018,003123,100155,Building works at the Guildhall to reduce carbon emissions a,70010,CAPEX - Other Professional Fees,2393.10
http://statistics.data.gov.uk/id/local-authority/12UB,Cambridge City Council,Currie & Brown (UK) Ltd,10034800,29/03/2018,003227,100143,Mandela House refurbishment (OAS),70010,CAPEX - Other Professional Fees,1500.00
http://statistics.data.gov.uk/id/local-authority/12UB,Cambridge City Council,Pro-Flat Specialist Services Ltd,10123200,30/03/2018,003420,6207,Repairs Day to Day,60233,Housing Repairs - Work Given To External Contractors,735.00
http://statistics.data.gov.uk/id/local-authority/12UB,Cambridge City Council,Bidwells LLP,10161000,31/03/2018,003445,1750,Property Services,62400,Consultancy Fees,24000.00
http://statistics.data.gov.uk/id/local-authority/12UB,Cambridge City Council,Bidwells LLP,10161000,31/03/2018,003445,1453,Finance General Recharges,62200,Bank Charges,6000.00
http://statistics.data.gov.uk/id/local-authority/12UB,Cambridge City Council,Department For Communities & Local Government,10037200,20/04/2018,003903,9901,Housing Revenue Account Balance Sheet,30004,Capital Receipts Reserve,245372.28
http://statistics.data.gov.uk/id/local-authority/12UB,Cambridge City Council,Marshall Peugeot Peterborough,10069501,29/03/2018,003982,100171,Vehicle Replacement Programme,70016,CAPEX - Purchase of Vehicles,19318.70
http://statistics.data.gov.uk/id/local-authority/12UB,Cambridge City Council,AON UK Limited,10006800,12/04/2018,004038,8009,Insurance Fund,67302,Insurance Claim,2130.17
http://statistics.data.gov.uk/id/local-authority/12UB,Cambridge City Council,Hughes Hall,10146600,29/03/2018,004063,1504,Housing Advice Service,60402,Premises Hire - Facilities,910.00
http://statistics.data.gov.uk/id/local-authority/12UB,Cambridge City Council,Cambridge Sustainable Food,10162900,20/04/2018,004167,1064,Neighbourhood Community Development,62900,Events,8655.00
http://statistics.data.gov.uk/id/local-authority/12UB,Cambridge City Council,Law and Lawyers Ltd,10167600,25/04/2018,004186,9900,General Fund Balance Sheet,20119,Other Creditors - Other Entities And Individuals,15488.00
http://statistics.data.gov.uk/id/local-authority/12UB,Cambridge City Council,Zurich Insurance PLC,10115100,20/04/2018,004222,8009,Insurance Fund,67302,Insurance Claim,290810.59
http://statistics.data.gov.uk/id/local-authority/12UB,Cambridge City Council,Foster & Shackell,10118400,26/01/2018,004386,200001,Mandatory Disabled Facilities Grants (Tenants),70015,CAPEX - Grants Paid,7092.00
http://statistics.data.gov.uk/id/local-authority/12UB,Cambridge City Council,Newlyn PLC,10075600,07/04/2018,004412,1801,Local Taxation,63900,Miscellaneous Expenses,656.08
http://statistics.data.gov.uk/id/local-authority/12UB,Cambridge City Council,Vivid Resourcing Ltd,10149200,26/04/2018,004415,6200,Building Maintenance Response - Direct,60011,Agency Staff,1312.50
http://statistics.data.gov.uk/id/local-authority/12UB,Cambridge City Council,Sharpe Pritchard LLP,10093300,31/03/2018,004534,1661,Parking Administration,62400,Consultancy Fees,2513.00
http://statistics.data.gov.uk/id/local-authority/12UB,Cambridge City Council,Dentons Carpets Ltd,10150700,13/03/2018,002375,1754,Barnwell House Offices,60201,Cyclical/Planned Maintenance - Building,860.00
http://statistics.data.gov.uk/id/local-authority/12UB,Cambridge City Council,Cambridge Investment Partnership LLP,10145700,28/02/2018,002408,300072,New Build In-Fill - Queensmeadow,70002,CAPEX - Building Contractor/Works,12944.10
http://statistics.data.gov.uk/id/local-authority/12UB,Cambridge City Council,Cambridgeshire County Council,10022800,26/03/2018,002450,9900,General Fund Balance Sheet,30001,Gf Earmarked Reserves Balance,15833.00
http://statistics.data.gov.uk/id/local-authority/12UB,Cambridge City Council,Miss Josephine Henderson,10151700,19/03/2018,003036,6012,City Homes Expenditure,62400,Consultancy Fees,900.00
http://statistics.data.gov.uk/id/local-authority/12UB,Cambridge City Council,Cornerstone (East Anglia) Ltd,10033600,06/03/2018,003316,1865,Lettings & Events on Open Spaces,64077,Telephone And Mobile Phone Costs,2750.00
http://statistics.data.gov.uk/id/local-authority/12UB,Cambridge City Council,Oblique Arts,10159100,09/04/2018,003369,100182,Public Art Grant for Oblique Arts - Mitcham's Moving (s106),70009,CAPEX - Engineers Fees,3000.00
http://statistics.data.gov.uk/id/local-authority/12UB,Cambridge City Council,The Wildlife Trust BCN,10105800,16/04/2018,003631,1706,Planning Policy,62400,Consultancy Fees,2205.00
http://statistics.data.gov.uk/id/local-authority/12UB,Cambridge City Council,The Wildlife Trust BCN,10105800,16/04/2018,003631,1878,Local Nature Reserves,60503,Grounds Maintenance,2205.00
http://statistics.data.gov.uk/id/local-authority/12UB,Cambridge City Council,Sunseeker Windows Ltd,10099900,23/03/2018,003671,100142,Relocation of services to 130 Cowley Road (OAS),70002,CAPEX - Building Contractor/Works,970.00
http://statistics.data.gov.uk/id/local-authority/12UB,Cambridge City Council,Forward Vision Solutions Ltd,10167200,27/04/2018,004141,100022,Clay Farm Community Centre -Phase 2 (Construction),70002,CAPEX - Building Contractor/Works,44883.00
http://statistics.data.gov.uk/id/local-authority/12UB,Cambridge City Council,MLM Consulting Engineers Ltd,10072500,26/04/2018,004155,300035,Ditchburn Place,70010,CAPEX - Other Professional Fees,1100.00
http://statistics.data.gov.uk/id/local-authority/12UB,Cambridge City Council,BSI Standards Ltd,10016100,01/03/2018,004491,6203,Technical Services,64800,Membership And Subscriptions,788.00
http://statistics.data.gov.uk/id/local-authority/12UB,Cambridge City Council,Optimum Property Consultancy ltd,10126600,28/03/2018,002650,1207,Programme Office,60011,Agency Staff,5119.70
http://statistics.data.gov.uk/id/local-authority/12UB,Cambridge City Council,John Cobb and Sons Ltd,10139800,28/03/2018,002676,300066,New Build - Uphall Road,70002,CAPEX - Building Contractor/Works,3406.63
http://statistics.data.gov.uk/id/local-authority/12UB,Cambridge City Council,PHS Group Ltd,10082000,26/03/2018,002717,1001,Cambridge Crematorium,61700,Hire - Equipment Furniture And Materials,1103.95
http://statistics.data.gov.uk/id/local-authority/12UB,Cambridge City Council,Trevelyan Hall Ltd T/A Litterboss,10107700,31/03/2018,002847,1774,"Cambridge Road Retail Park, Haverhill",60503,Grounds Maintenance,1305.00
http://statistics.data.gov.uk/id/local-authority/12UB,Cambridge City Council,Pennon Water Services Ltd T/A Cambridge Water Business,10080500,26/03/2018,002875,5024,E_invoicing Suspense Accounts,69100,Expenditure In Holding Account Awaiting Allocation,875.21
http://statistics.data.gov.uk/id/local-authority/12UB,Cambridge City Council,G & S Hutchinson Ltd,10119100,20/04/2018,004569,1102,Leisure Contract Client Costs,62400,Consultancy Fees,775.00
http://statistics.data.gov.uk/id/local-authority/12UB,Cambridge City Council,Marshall Peugeot Peterborough,10069501,29/03/2018,003179,100171,Vehicle Replacement Programme,70016,CAPEX - Purchase of Vehicles,16300.73
http://statistics.data.gov.uk/id/local-authority/12UB,Cambridge City Council,Terberg Matec UK Ltd,10101500,04/04/2018,003483,1031,Fleet Management - Operational,61703,"Purchase - Equipment, Furniture And Materials",831.40
http://statistics.data.gov.uk/id/local-authority/12UB,Cambridge City Council,Dennis Eagle Ltd,10036900,07/04/2018,003483,1032,Garage- External Work,61703,"Purchase - Equipment, Furniture And Materials",571.39
http://statistics.data.gov.uk/id/local-authority/12UB,Cambridge City Council,Volvo Group UK Ltd,10111400,27/03/2018,003483,1031,Fleet Management - Operational,61703,"Purchase - Equipment, Furniture And Materials",1665.35
http://statistics.data.gov.uk/id/local-authority/12UB,Cambridge City Council,Marshall Motor Group Ltd,10069500,02/01/2018,003483,1031,Fleet Management - Operational,61703,"Purchase - Equipment, Furniture And Materials",505.00
http://statistics.data.gov.uk/id/local-authority/12UB,Cambridge City Council,Khidmat Sisters,10165500,19/04/2018,003910,1057,Community Development Voluntary Support,64600,Grants And Contributions,550.00
http://statistics.data.gov.uk/id/local-authority/12UB,Cambridge City Council,Cambridge Sports Hall Trust Ltd T/A Kelsey Kerridge,10021400,19/04/2018,003929,1057,Community Development Voluntary Support,64600,Grants And Contributions,2365.00
http://statistics.data.gov.uk/id/local-authority/12UB,Cambridge City Council,R J Warren Ltd,10123500,08/03/2018,003947,1866,Open Space Asset Maintenance,61702,"Maintenance - Equipment, Furniture And Materials",4230.00
http://statistics.data.gov.uk/id/local-authority/12UB,Cambridge City Council,Marshall Peugeot Peterborough,10069501,29/03/2018,003987,100171,Vehicle Replacement Programme,70016,CAPEX - Purchase of Vehicles,18032.70
http://statistics.data.gov.uk/id/local-authority/12UB,Cambridge City Council,Marshall Peugeot Peterborough,10069501,29/03/2018,003992,100171,Vehicle Replacement Programme,70016,CAPEX - Purchase of Vehicles,18907.70
http://statistics.data.gov.uk/id/local-authority/12UB,Cambridge City Council,D F S Trading Ltd,10161900,18/04/2018,004021,1063,The Meadows Community Centre,61703,"Purchase - Equipment, Furniture And Materials",4311.00
http://statistics.data.gov.uk/id/local-authority/12UB,Cambridge City Council,Forward Vision Solutions Ltd,10167200,23/03/2018,004135,400016,Clay Farm,61703,"Purchase - Equipment, Furniture And Materials",9581.00
http://statistics.data.gov.uk/id/local-authority/12UB,Cambridge City Council,Cambridge Meridian Academies Trust,10129100,31/03/2018,004137,400057,StreetGames,60402,Premises Hire - Facilities,921.50
http://statistics.data.gov.uk/id/local-authority/12UB,Cambridge City Council,The Urban Forest Consultancy Ltd,10105700,17/03/2018,004157,1876,Arboriculture,62400,Consultancy Fees,3630.00
http://statistics.data.gov.uk/id/local-authority/12UB,Cambridge City Council,I M Stewart t/a Adapt Design Studio,10148600,16/03/2018,002391,1202,Corporate Marketing,62005,"Advertising, Publicity And Marketing",3165.00
http://statistics.data.gov.uk/id/local-authority/12UB,Cambridge City Council,Cambridge Investment Partnership LLP,10145700,28/02/2018,002410,300069,New Build - Ventress Close,70002,CAPEX - Building Contractor/Works,4998.74
http://statistics.data.gov.uk/id/local-authority/12UB,Cambridge City Council,Pro-Flat Specialist Services Ltd,10123200,28/02/2018,002530,6207,Repairs Day to Day,54301,Rechargeable Repairs Income (B),2285.00
http://statistics.data.gov.uk/id/local-authority/12UB,Cambridge City Council,Lucion Environmental Ltd T/A Redhills,10067800,28/02/2018,002566,6205,Citywide Schemes,60235,Housing Repairs - Other Premises Related Costs,2979.42
http://statistics.data.gov.uk/id/local-authority/12UB,Cambridge City Council,Neopost Ltd,10137601,03/04/2018,002607,8011,Corporate Business Support,61702,"Maintenance - Equipment, Furniture And Materials",1873.00
http://statistics.data.gov.uk/id/local-authority/12UB,Cambridge City Council,Huntingdonshire District Council,10056900,21/03/2018,002608,5068,Individual Electoral Registration,64073,Ict Maintenance And Support,3724.84
http://statistics.data.gov.uk/id/local-authority/12UB,Cambridge City Council,P R Newson Ltd,10153200,04/04/2018,002678,1876,Arboriculture,64040,Tree Works,1550.00
http://statistics.data.gov.uk/id/local-authority/12UB,Cambridge City Council,DTZ,10039100,27/03/2018,002705,1651,Grand Arcade Car Park,60201,Cyclical/Planned Maintenance - Building,13000.00
http://statistics.data.gov.uk/id/local-authority/12UB,Cambridge City Council,Roger Parker Associates Ltd,10089800,29/03/2018,003121,100142,Relocation of services to 130 Cowley Road (OAS),70010,CAPEX - Other Professional Fees,1975.00
http://statistics.data.gov.uk/id/local-authority/12UB,Cambridge City Council,Watling JCB Ltd,10112500,26/02/2018,003207,1032,Garage- External Work,58148,Recharge Income - Other,2697.78
http://statistics.data.gov.uk/id/local-authority/12UB,Cambridge City Council,Huntingdonshire District Council,10056900,03/04/2018,003462,8006,Accountancy and Support Services,60001,National Insurance - Employers Contribution,600.00
http://statistics.data.gov.uk/id/local-authority/12UB,Cambridge City Council,Ameycespa (East) Ltd,10005100,01/03/2018,003744,6200,Building Maintenance Response - Direct,64050,Waste Disposal Costs,576.51
http://statistics.data.gov.uk/id/local-authority/12UB,Cambridge City Council,AON UK Limited,10006800,12/04/2018,004030,8009,Insurance Fund,67302,Insurance Claim,1239.10
http://statistics.data.gov.uk/id/local-authority/12UB,Cambridge City Council,Places4People Ltd,10082300,04/03/2018,004475,1706,Planning Policy,62400,Consultancy Fees,962.50
http://statistics.data.gov.uk/id/local-authority/12UB,Cambridge City Council,Places4People Ltd,10082300,04/03/2018,004475,1706,Planning Policy,53001,Fees & Charges Income (S),1549.90
http://statistics.data.gov.uk/id/local-authority/12UB,Cambridge City Council,Cambridge Bid Limited,10017900,18/04/2018,004521,5025,Business Improvement District (BID) Collection Fund,58702,BID Levy - Payment to BID Company,13230.36
http://statistics.data.gov.uk/id/local-authority/12UB,Cambridge City Council,St Matthew's Primary School,10165100,04/04/2018,004115,100086,Public art grant - 'The place where we stand' (S106),70000,CAPEX - Capital Scheme Budget,3000.00
http://statistics.data.gov.uk/id/local-authority/12UB,Cambridge City Council,Foster & Shackell,10118400,29/03/2018,004420,200001,Mandatory Disabled Facilities Grants (Tenants),70015,CAPEX - Grants Paid,3000.00
http://statistics.data.gov.uk/id/local-authority/12UB,Cambridge City Council,Foster & Shackell,10118400,22/03/2018,004474,200001,Mandatory Disabled Facilities Grants (Tenants),70015,CAPEX - Grants Paid,2934.00
http://statistics.data.gov.uk/id/local-authority/12UB,Cambridge City Council,Certas Energy UK Ltd T/A Pace Fuelcare,10025600,15/02/2018,004522,5001,City Services Holding Account,69100,Expenditure In Holding Account Awaiting Allocation,9637.00
http://statistics.data.gov.uk/id/local-authority/12UB,Cambridge City Council,Cambridge Investment Partnership LLP,10145700,31/01/2018,002397,300074,New Build - Colville Road Garages,70002,CAPEX - Building Contractor/Works,12243.66
http://statistics.data.gov.uk/id/local-authority/12UB,Cambridge City Council,Foster & Shackell,10118400,06/03/2018,002522,200001,Mandatory Disabled Facilities Grants (Tenants),70015,CAPEX - Grants Paid,4500.00
http://statistics.data.gov.uk/id/local-authority/12UB,Cambridge City Council,BMA Property Group Ltd,10151800,05/03/2018,002551,9901,Housing Revenue Account Balance Sheet,30004,Capital Receipts Reserve,2867.97
http://statistics.data.gov.uk/id/local-authority/12UB,Cambridge City Council,Fse Consult Ltd T/A Fire Safety Express,10047600,28/03/2018,002677,6205,Citywide Schemes,60205,Fire Assessment And Safety,880.00
http://statistics.data.gov.uk/id/local-authority/12UB,Cambridge City Council,Cambridge City Council,10153901,16/03/2018,003527,6102,Temporary Accommodation,60404,Council Tax,854.52
http://statistics.data.gov.uk/id/local-authority/12UB,Cambridge City Council,Businessclean (Cambridge) Ltd,10016800,13/04/2018,003721,6102,Temporary Accommodation,60501,Cleaning Services,510.00
http://statistics.data.gov.uk/id/local-authority/12UB,Cambridge City Council,Inform CPI Ltd,10164200,03/04/2018,003753,1801,Local Taxation,64073,Ict Maintenance And Support,3500.00
http://statistics.data.gov.uk/id/local-authority/12UB,Cambridge City Council,Inform CPI Ltd,10164200,03/04/2018,003753,8006,Accountancy and Support Services,60001,National Insurance - Employers Contribution,3500.00
http://statistics.data.gov.uk/id/local-authority/12UB,Cambridge City Council,Marshall Peugeot Peterborough,10069501,29/03/2018,003988,100171,Vehicle Replacement Programme,70016,CAPEX - Purchase of Vehicles,18907.70
http://statistics.data.gov.uk/id/local-authority/12UB,Cambridge City Council,MLTS Ltd,10072600,09/04/2018,003093,100071,Improvements to Gwydir Enterprise Centre,70010,CAPEX - Other Professional Fees,4000.00
http://statistics.data.gov.uk/id/local-authority/12UB,Cambridge City Council,J H Training & Development Ltd,10059700,16/03/2018,002211,8003,Human Resources - Organisational Development,64300,Conference Expenses,720.00
http://statistics.data.gov.uk/id/local-authority/12UB,Cambridge City Council,Neopost Ltd,10137601,20/03/2018,002351,6012,City Homes Expenditure,64100,Postage And Courier Services,500.00
http://statistics.data.gov.uk/id/local-authority/12UB,Cambridge City Council,Neopost Ltd,10137601,20/03/2018,002351,6004,Leasehold Property Management,64100,Postage And Courier Services,1000.00
http://statistics.data.gov.uk/id/local-authority/12UB,Cambridge City Council,Mears Ltd,10121400,06/03/2018,002458,6211,Gas Servicing,60225,Housing Repairs - Gas Maintenance Contract,70014.12
http://statistics.data.gov.uk/id/local-authority/12UB,Cambridge City Council,Mears Ltd,10121400,06/03/2018,002458,6211,Gas Servicing,60225,Housing Repairs - Gas Maintenance Contract,3229.27
http://statistics.data.gov.uk/id/local-authority/12UB,Cambridge City Council,Pro-Flat Specialist Services Ltd,10123200,28/02/2018,002526,6207,Repairs Day to Day,60233,Housing Repairs - Work Given To External Contractors,795.00
http://statistics.data.gov.uk/id/local-authority/12UB,Cambridge City Council,Huntingdonshire District Council,10056900,27/03/2018,002626,100075,Car parking control equipment at multi storey car parks,70002,CAPEX - Building Contractor/Works,11128.72
http://statistics.data.gov.uk/id/local-authority/12UB,Cambridge City Council,Huntingdonshire District Council,10056900,27/03/2018,002626,100075,Car parking control equipment at multi storey car parks,70002,CAPEX - Building Contractor/Works,8923.67
http://statistics.data.gov.uk/id/local-authority/12UB,Cambridge City Council,Gaskin Brothers Ltd,10118700,29/03/2018,002639,1866,Open Space Asset Maintenance,60503,Grounds Maintenance,650.00
http://statistics.data.gov.uk/id/local-authority/12UB,Cambridge City Council,Gaskin Brothers Ltd,10118700,29/03/2018,002646,1869,Cherry Hinton Hall,60503,Grounds Maintenance,790.00
http://statistics.data.gov.uk/id/local-authority/12UB,Cambridge City Council,Videcom Security Ltd,10110600,28/03/2018,003228,1033,CCTV,64060,Shared Service Contribution,7190.00
http://statistics.data.gov.uk/id/local-authority/12UB,Cambridge City Council,Greenwich Leisure Limited (GLL),10051900,11/04/2018,003259,1101,Leisure Contract Management Fees,61800,Contract Charges,39502.42
http://statistics.data.gov.uk/id/local-authority/12UB,Cambridge City Council,D Carman BSSR Ltd,10118100,12/04/2018,003299,6207,Repairs Day to Day,60218,Housing Repairs - Electrical Supply / Air Cooling / Lighting,1994.74
http://statistics.data.gov.uk/id/local-authority/12UB,Cambridge City Council,People & Performance Ltd,10080600,31/03/2018,003431,1000,City Cambridge Cemeteries,51203,Sale Of Goods And Services (S),502.70
http://statistics.data.gov.uk/id/local-authority/12UB,Cambridge City Council,Euclid Limited,10044300,31/03/2018,003505,1712,Taxicard Service,64073,Ict Maintenance And Support,1662.17
http://statistics.data.gov.uk/id/local-authority/12UB,Cambridge City Council,Historyworks Ltd,10141000,16/03/2018,003528,400011,Equalities,62900,Events,1690.00
http://statistics.data.gov.uk/id/local-authority/12UB,Cambridge City Council,Sunseeker Windows Ltd,10099900,13/04/2018,003643,300012,External Doors,70003,CAPEX - Building Contractor/Works - Voids & Emergencies,540.00
http://statistics.data.gov.uk/id/local-authority/12UB,Cambridge City Council,Strawberry Fair,10098900,17/04/2018,003683,1057,Community Development Voluntary Support,64600,Grants And Contributions,8000.00
http://statistics.data.gov.uk/id/local-authority/12UB,Cambridge City Council,Marshall Peugeot Peterborough,10069501,29/03/2018,003985,100171,Vehicle Replacement Programme,70016,CAPEX - Purchase of Vehicles,18907.70
http://statistics.data.gov.uk/id/local-authority/12UB,Cambridge City Council,AON UK Limited,10006800,18/04/2018,004036,8009,Insurance Fund,67302,Insurance Claim,21675.47
http://statistics.data.gov.uk/id/local-authority/12UB,Cambridge City Council,David Powell t/a D J Kitchens,10137900,23/04/2018,004184,6207,Repairs Day to Day,60233,Housing Repairs - Work Given To External Contractors,900.00
http://statistics.data.gov.uk/id/local-authority/12UB,Cambridge City Council,Realife Trust,10086900,24/04/2018,004223,1766,Orwell House Offices-Internal,62004,General Office Expenses,1319.62
http://statistics.data.gov.uk/id/local-authority/12UB,Cambridge City Council,Encon Insulation Ltd,10146100,26/01/2018,004390,9900,General Fund Balance Sheet,11600,Consumable Stores,859.25
http://statistics.data.gov.uk/id/local-authority/12UB,Cambridge City Council,Frontline Fabrication & Welding Co Ltd,10128000,29/03/2018,004461,1867,Grazing Management,60503,Grounds Maintenance,3775.00
http://statistics.data.gov.uk/id/local-authority/12UB,Cambridge City Council,D Carman BSSR Ltd,10118100,15/02/2018,002840,6207,Repairs Day to Day,60233,Housing Repairs - Work Given To External Contractors,1593.00
http://statistics.data.gov.uk/id/local-authority/12UB,Cambridge City Council,Foster Property Maintenance Ltd,10046700,03/04/2018,002845,5024,E_invoicing Suspense Accounts,69100,Expenditure In Holding Account Awaiting Allocation,378864.74
http://statistics.data.gov.uk/id/local-authority/12UB,Cambridge City Council,Cambridge Investment Partnership LLP,10145700,26/03/2018,002376,300072,New Build In-Fill - Queensmeadow,70002,CAPEX - Building Contractor/Works,769.80
http://statistics.data.gov.uk/id/local-authority/12UB,Cambridge City Council,Cambridge Investment Partnership LLP,10145700,31/01/2018,002395,300073,New Build - Wulfstan Way,70002,CAPEX - Building Contractor/Works,15576.88
http://statistics.data.gov.uk/id/local-authority/12UB,Cambridge City Council,Chesterton Bowls Club Ltd,10027600,27/03/2018,002448,1102,Leisure Contract Client Costs,64600,Grants And Contributions,5064.28
http://statistics.data.gov.uk/id/local-authority/12UB,Cambridge City Council,Huntingdonshire District Council,10056900,27/03/2018,002637,1803,Revenue Overheads,64073,Ict Maintenance And Support,2160.00
http://statistics.data.gov.uk/id/local-authority/12UB,Cambridge City Council,A T Graphics Ltd,10152400,28/02/2018,002638,1935,Markets,62005,"Advertising, Publicity And Marketing",800.00
http://statistics.data.gov.uk/id/local-authority/12UB,Cambridge City Council,Reinvigoration Limited,10152900,28/03/2018,002688,1207,Programme Office,62400,Consultancy Fees,2437.50
http://statistics.data.gov.uk/id/local-authority/12UB,Cambridge City Council,Cemplas Waterproofing & Concrete Repairs Ltd,10152500,16/03/2018,002696,100024,Essential Structural/Holding Repairs - Park Street Multi Sto,70002,CAPEX - Building Contractor/Works,6890.00
http://statistics.data.gov.uk/id/local-authority/12UB,Cambridge City Council,Wood Green Animal Shelters,10114100,22/03/2018,002721,1401,Control of Dogs,61800,Contract Charges,832.49
http://statistics.data.gov.uk/id/local-authority/12UB,Cambridge City Council,D Carman BSSR Ltd,10118100,07/03/2018,002825,6207,Repairs Day to Day,60218,Housing Repairs - Electrical Supply / Air Cooling / Lighting,1836.00
http://statistics.data.gov.uk/id/local-authority/12UB,Cambridge City Council,Marshall Peugeot Peterborough,10069501,29/03/2018,002895,100171,Vehicle Replacement Programme,70016,CAPEX - Purchase of Vehicles,18262.70
http://statistics.data.gov.uk/id/local-authority/12UB,Cambridge City Council,Pro-Flat Specialist Services Ltd,10123200,30/03/2018,003071,6207,Repairs Day to Day,60233,Housing Repairs - Work Given To External Contractors,3264.00
http://statistics.data.gov.uk/id/local-authority/12UB,Cambridge City Council,Roger Parker Associates Ltd,10089800,16/03/2018,003122,300008,Central Heating / Boilers,70010,CAPEX - Other Professional Fees,12000.00
http://statistics.data.gov.uk/id/local-authority/12UB,Cambridge City Council,Rob Ellis T/A Cambridge Tennis Academy,10089600,28/03/2018,003463,400057,StreetGames,53001,Fees & Charges Income (S),1080.00
http://statistics.data.gov.uk/id/local-authority/12UB,Cambridge City Council,HMRC VAT,10055300,25/04/2018,004192,100141,Investment in commercial property portfolio,70001,CAPEX - Acquisition of Land & Exisiting Building,79500.00
http://statistics.data.gov.uk/id/local-authority/12UB,Cambridge City Council,Gaskin Brothers Ltd,10118700,29/03/2018,002232,1883,Flood Risk Management,60501,Cleaning Services,13229.16
http://statistics.data.gov.uk/id/local-authority/12UB,Cambridge City Council,Impact (Boston) Ltd t/a Paperwork,10127500,23/03/2018,002277,1653,Grafton Centre West Car Park,61500,Consumables,870.40
http://statistics.data.gov.uk/id/local-authority/12UB,Cambridge City Council,Impact (Boston) Ltd t/a Paperwork,10127500,23/03/2018,002277,1654,Grafton Centre East Car Park,61500,Consumables,5657.60
http://statistics.data.gov.uk/id/local-authority/12UB,Cambridge City Council,Stripe Consulting Limited,10099000,15/03/2018,002288,100150,Grand Arcade and Queen Anne Terrace car parks sprinkler Syst,70010,CAPEX - Other Professional Fees,9666.67
http://statistics.data.gov.uk/id/local-authority/12UB,Cambridge City Council,Cambridge Investment Partnership LLP,10145700,31/01/2018,002334,1758,Other Commercial Properties,62400,Consultancy Fees,6305.65
http://statistics.data.gov.uk/id/local-authority/12UB,Cambridge City Council,Cambridge Investment Partnership LLP,10145700,31/01/2018,002396,300071,New Build In-Fill - Hills Avenue,70002,CAPEX - Building Contractor/Works,18208.54
http://statistics.data.gov.uk/id/local-authority/12UB,Cambridge City Council,Cambridge Investment Partnership LLP,10145700,28/02/2018,002405,300073,New Build - Wulfstan Way,70002,CAPEX - Building Contractor/Works,10289.60
http://statistics.data.gov.uk/id/local-authority/12UB,Cambridge City Council,Dennis Eagle Ltd,10036900,28/03/2018,002588,1032,Garage- External Work,61703,"Purchase - Equipment, Furniture And Materials",893.60
http://statistics.data.gov.uk/id/local-authority/12UB,Cambridge City Council,Orwell Trucks Ltd,10078700,15/01/2018,002588,1031,Fleet Management - Operational,61703,"Purchase - Equipment, Furniture And Materials",685.15
http://statistics.data.gov.uk/id/local-authority/12UB,Cambridge City Council,Dennis Eagle Ltd,10036900,04/04/2018,002588,1032,Garage- External Work,61703,"Purchase - Equipment, Furniture And Materials",782.87
http://statistics.data.gov.uk/id/local-authority/12UB,Cambridge City Council,Gloria Alexander,10153100,26/03/2018,002657,9900,General Fund Balance Sheet,30001,Gf Earmarked Reserves Balance,1104.44
http://statistics.data.gov.uk/id/local-authority/12UB,Cambridge City Council,Fse Consult Ltd T/A Fire Safety Express,10047600,30/03/2018,002683,6205,Citywide Schemes,60205,Fire Assessment And Safety,897.00
http://statistics.data.gov.uk/id/local-authority/12UB,Cambridge City Council,1st Glass Services,10000100,06/04/2018,003292,6207,Repairs Day to Day,60233,Housing Repairs - Work Given To External Contractors,570.45
http://statistics.data.gov.uk/id/local-authority/12UB,Cambridge City Council,D Carman BSSR Ltd,10118100,12/04/2018,003302,6207,Repairs Day to Day,54301,Rechargeable Repairs Income (B),3513.65
http://statistics.data.gov.uk/id/local-authority/12UB,Cambridge City Council,Sunseeker Windows Ltd,10099900,23/03/2018,003646,300012,External Doors,70003,CAPEX - Building Contractor/Works - Voids & Emergencies,650.00
http://statistics.data.gov.uk/id/local-authority/12UB,Cambridge City Council,Vivid Resourcing Ltd,10149200,28/02/2018,003658,6200,Building Maintenance Response - Direct,60011,Agency Staff,1277.50
http://statistics.data.gov.uk/id/local-authority/12UB,Cambridge City Council,Gulliver's Truck Hire Ltd,10052600,29/03/2018,003746,1855,Street Cleaning - Direct,60909,Vehicle Hire,845.60
http://statistics.data.gov.uk/id/local-authority/12UB,Cambridge City Council,Tunstall Response Ltd,10109200,21/03/2018,003764,6103,Emergency Alarms,63900,Miscellaneous Expenses,5984.68
http://statistics.data.gov.uk/id/local-authority/12UB,Cambridge City Council,We Are Digital Training Ltd,10163600,20/03/2018,003783,1203,Corporate Policy,60011,Agency Staff,5150.00
http://statistics.data.gov.uk/id/local-authority/12UB,Cambridge City Council,EZA Consulting Ltd,10153300,22/03/2018,003845,1519,Shared Home Improvement Agency,60011,Agency Staff,1600.00
http://statistics.data.gov.uk/id/local-authority/12UB,Cambridge City Council,Cambridge Womens Resource Centre,10022400,19/04/2018,004000,1057,Community Development Voluntary Support,60207,Health And Safety Supplies And Services,9825.00
http://statistics.data.gov.uk/id/local-authority/12UB,Cambridge City Council,Sunseeker Windows Ltd,10099900,16/03/2018,004266,6204,Client Repairs,60235,Housing Repairs - Other Premises Related Costs,970.00
http://statistics.data.gov.uk/id/local-authority/12UB,Cambridge City Council,Cambridge City Council,10153901,01/04/2018,004411,6102,Temporary Accommodation,60500,Refuse Collection /Skips,634.40
http://statistics.data.gov.uk/id/local-authority/12UB,Cambridge City Council,Certas Energy UK Ltd T/A Pace Fuelcare,10025600,06/03/2018,004514,5001,City Services Holding Account,69100,Expenditure In Holding Account Awaiting Allocation,9639.00
http://statistics.data.gov.uk/id/local-authority/12UB,Cambridge City Council,Shirley Primary School,10142500,10/01/2018,002278,1517,Syrian Resettlement,64300,Conference Expenses,1350.00
http://statistics.data.gov.uk/id/local-authority/12UB,Cambridge City Council,APT-Skidata Ltd,10115700,26/03/2018,002280,100075,Car parking control equipment at multi storey car parks,70002,CAPEX - Building Contractor/Works,41126.90
http://statistics.data.gov.uk/id/local-authority/12UB,Cambridge City Council,Cambridge Investment Partnership LLP,10145700,28/02/2018,002384,6007,Departmental Overheads-Client,62400,Consultancy Fees,4912.30
http://statistics.data.gov.uk/id/local-authority/12UB,Cambridge City Council,BMA Property Group Ltd,10151800,05/03/2018,002550,9901,Housing Revenue Account Balance Sheet,30004,Capital Receipts Reserve,1600.00
http://statistics.data.gov.uk/id/local-authority/12UB,Cambridge City Council,Gaskin Brothers Ltd,10118700,29/03/2018,002648,100088,Cherry Hinton Grounds Improvements Phase 2 (S106),70002,CAPEX - Building Contractor/Works,775.00
http://statistics.data.gov.uk/id/local-authority/12UB,Cambridge City Council,David Powell t/a D J Kitchens,10137900,25/03/2018,002661,6207,Repairs Day to Day,60233,Housing Repairs - Work Given To External Contractors,540.00
http://statistics.data.gov.uk/id/local-authority/12UB,Cambridge City Council,Print.UK.Com,10083800,27/03/2018,002699,9900,General Fund Balance Sheet,11721,Payments In Advance - Other Entities And Individuals,3431.70
http://statistics.data.gov.uk/id/local-authority/12UB,Cambridge City Council,Kestrel Fencing,10119900,27/03/2018,002725,1868,Play Maintenance,61702,"Maintenance - Equipment, Furniture And Materials",4980.00
http://statistics.data.gov.uk/id/local-authority/12UB,Cambridge City Council,Roger Parker Associates Ltd,10089800,26/02/2018,002745,300066,New Build - Uphall Road,70010,CAPEX - Other Professional Fees,750.00
http://statistics.data.gov.uk/id/local-authority/12UB,Cambridge City Council,Junction CDC Ltd,10062700,01/04/2018,002836,1057,Community Development Voluntary Support,64600,Grants And Contributions,13750.00
http://statistics.data.gov.uk/id/local-authority/12UB,Cambridge City Council,TSG Building Services PLC,10125300,28/03/2018,002975,5024,E_invoicing Suspense Accounts,69100,Expenditure In Holding Account Awaiting Allocation,113828.95
http://statistics.data.gov.uk/id/local-authority/12UB,Cambridge City Council,LGSS - Cambridgeshire Pension Fund,10022801,23/04/2018,004016,9900,General Fund Balance Sheet,10013,CCC General Account Bank Account,435948.55
http://statistics.data.gov.uk/id/local-authority/12UB,Cambridge City Council,Zurich Insurance PLC,10115100,18/04/2018,004102,8009,Insurance Fund,67302,Insurance Claim,10000.00
http://statistics.data.gov.uk/id/local-authority/12UB,Cambridge City Council,Sharpe Pritchard LLP,10093300,28/02/2018,004169,1071,Clay Farm Community Centre,62400,Consultancy Fees,1167.00
http://statistics.data.gov.uk/id/local-authority/12UB,Cambridge City Council,D Carman BSSR Ltd,10118100,12/03/2018,004406,6207,Repairs Day to Day,60233,Housing Repairs - Work Given To External Contractors,8472.77
http://statistics.data.gov.uk/id/local-authority/12UB,Cambridge City Council,City View Digital Media Ltd,10030200,01/01/2018,004427,1862,Open Space Asset Management,62006,Statutory Advertising,500.00
http://statistics.data.gov.uk/id/local-authority/12UB,Cambridge City Council,HSS Hire Service Group PLC,10056800,10/12/2017,003126,8005,Depot Management - Indirect,51203,Sale Of Goods And Services (S),1173.80
http://statistics.data.gov.uk/id/local-authority/12UB,Cambridge City Council,Arbury Community Association,10007500,06/04/2018,003293,1057,Community Development Voluntary Support,64600,Grants And Contributions,1000.00
http://statistics.data.gov.uk/id/local-authority/12UB,Cambridge City Council,South Cambridgeshire District Council,10096100,31/03/2018,003397,1519,Shared Home Improvement Agency,60400,Rents Payable,5000.00
http://statistics.data.gov.uk/id/local-authority/12UB,Cambridge City Council,G & S Hutchinson Ltd,10119100,16/03/2018,002223,1100,Sport & Recreation Administration,60201,Cyclical/Planned Maintenance - Building,1493.00
http://statistics.data.gov.uk/id/local-authority/12UB,Cambridge City Council,Hughes Hall,10146600,13/03/2018,002348,1504,Housing Advice Service,64300,Conference Expenses,870.00
http://statistics.data.gov.uk/id/local-authority/12UB,Cambridge City Council,Hughes Hall,10146600,13/03/2018,002348,1504,Housing Advice Service,64300,Conference Expenses,2583.00
http://statistics.data.gov.uk/id/local-authority/12UB,Cambridge City Council,D Carman BSSR Ltd,10118100,12/03/2018,002356,6203,Technical Services,62400,Consultancy Fees,1220.00
http://statistics.data.gov.uk/id/local-authority/12UB,Cambridge City Council,Cambridge Investment Partnership LLP,10145700,31/01/2018,002403,300072,New Build In-Fill - Queensmeadow,70002,CAPEX - Building Contractor/Works,16492.17
http://statistics.data.gov.uk/id/local-authority/12UB,Cambridge City Council,Mercer Tree Services Ltd,10071200,29/03/2018,002570,1885,Reverse Agency (formerly Unclassified Routine),64040,Tree Works,1200.00
http://statistics.data.gov.uk/id/local-authority/12UB,Cambridge City Council,Mercer Tree Services Ltd,10071200,29/03/2018,002570,1876,Arboriculture,64040,Tree Works,1200.00
http://statistics.data.gov.uk/id/local-authority/12UB,Cambridge City Council,Mercer Tree Services Ltd,10071200,29/03/2018,002575,1876,Arboriculture,64040,Tree Works,2800.00
http://statistics.data.gov.uk/id/local-authority/12UB,Cambridge City Council,Mercer Tree Services Ltd,10071200,29/03/2018,002575,1876,Arboriculture,64040,Tree Works,600.00
http://statistics.data.gov.uk/id/local-authority/12UB,Cambridge City Council,Gaskin Brothers Ltd,10118700,29/03/2018,002642,1102,Leisure Contract Client Costs,60201,Cyclical/Planned Maintenance - Building,1500.00
http://statistics.data.gov.uk/id/local-authority/12UB,Cambridge City Council,G & S Hutchinson Ltd,10119100,28/03/2018,002692,100145,Cowley Road Compound ex-Park and Ride site (OAS),70002,CAPEX - Building Contractor/Works,116675.37
http://statistics.data.gov.uk/id/local-authority/12UB,Cambridge City Council,Kestrel Fencing,10119900,27/03/2018,002720,1867,Grazing Management,60503,Grounds Maintenance,5000.00
http://statistics.data.gov.uk/id/local-authority/12UB,Cambridge City Council,Cobalt Telephone Technologies Limited,10031400,31/03/2018,002790,1656,Adam & Eve Street Car Park,63900,Miscellaneous Expenses,534.50
http://statistics.data.gov.uk/id/local-authority/12UB,Cambridge City Council,Smith & Ouzman Ltd,10095300,29/03/2018,002810,8023,Business Support - Centralised Overheads,64100,Postage And Courier Services,859.67
http://statistics.data.gov.uk/id/local-authority/12UB,Cambridge City Council,Shelton Development Services Ltd,10093600,11/03/2018,002914,1506,Housing Development Agency,61703,"Purchase - Equipment, Furniture And Materials",2750.77
http://statistics.data.gov.uk/id/local-authority/12UB,Cambridge City Council,Gaskin Brothers Ltd,10118700,10/04/2018,003128,1883,Flood Risk Management,60501,Cleaning Services,975.00
http://statistics.data.gov.uk/id/local-authority/12UB,Cambridge City Council,Technology One (UK) Limited,10101100,28/02/2018,003132,100067,Replacement Financial Management System,70010,CAPEX - Other Professional Fees,10800.00
http://statistics.data.gov.uk/id/local-authority/12UB,Cambridge City Council,Cambridge Housing Society Ltd,10019600,13/03/2018,003509,1509,Grants to Housing Agencies,64600,Grants And Contributions,18240.00
http://statistics.data.gov.uk/id/local-authority/12UB,Cambridge City Council,Portsdown Office Ltd,10148500,13/04/2018,003680,1071,Clay Farm Community Centre,61703,"Purchase - Equipment, Furniture And Materials",1630.51
http://statistics.data.gov.uk/id/local-authority/12UB,Cambridge City Council,Masternaut UK Ltd,10070000,31/03/2018,003756,5001,City Services Holding Account,69100,Expenditure In Holding Account Awaiting Allocation,2359.50
http://statistics.data.gov.uk/id/local-authority/12UB,Cambridge City Council,Andy Gale Housing Consultancy,10005800,25/03/2018,003796,1504,Housing Advice Service,64300,Conference Expenses,1161.32
http://statistics.data.gov.uk/id/local-authority/12UB,Cambridge City Council,Foster & Shackell,10118400,11/04/2018,004436,200001,Mandatory Disabled Facilities Grants (Tenants),70015,CAPEX - Grants Paid,4345.20
http://statistics.data.gov.uk/id/local-authority/12UB,Cambridge City Council,Cambridge Investment Partnership LLP,10145700,28/02/2018,002402,300071,New Build In-Fill - Hills Avenue,70002,CAPEX - Building Contractor/Works,11342.20
http://statistics.data.gov.uk/id/local-authority/12UB,Cambridge City Council,Thistle Insurance Services Ltd,10105900,03/04/2018,002485,9901,Housing Revenue Account Balance Sheet,20119,Other Creditors - Other Entities And Individuals,2560.53
http://statistics.data.gov.uk/id/local-authority/12UB,Cambridge City Council,Huntingdonshire District Council,10056900,27/03/2018,002634,1651,Grand Arcade Car Park,64073,Ict Maintenance And Support,570.00
http://statistics.data.gov.uk/id/local-authority/12UB,Cambridge City Council,S P Landscapes & Tree Contractors Ltd,10124100,27/03/2018,002684,6108,Estate Management (North),60503,Grounds Maintenance,550.00
http://statistics.data.gov.uk/id/local-authority/12UB,Cambridge City Council,JDI Solutions Ltd,10061100,23/03/2018,002711,1202,Corporate Marketing,60011,Agency Staff,2255.00
http://statistics.data.gov.uk/id/local-authority/12UB,Cambridge City Council,SWWB Ltd T/ACambridge Water,10134700,22/03/2018,002878,5024,E_invoicing Suspense Accounts,69100,Expenditure In Holding Account Awaiting Allocation,9477.14
http://statistics.data.gov.uk/id/local-authority/12UB,Cambridge City Council,Comensura Ltd,10031900,25/03/2018,002977,5024,E_invoicing Suspense Accounts,69100,Expenditure In Holding Account Awaiting Allocation,60396.36
http://statistics.data.gov.uk/id/local-authority/12UB,Cambridge City Council,Pro-Flat Specialist Services Ltd,10123200,30/03/2018,003068,6207,Repairs Day to Day,54301,Rechargeable Repairs Income (B),2516.00
http://statistics.data.gov.uk/id/local-authority/12UB,Cambridge City Council,Alcumus Sypol Ltd,10157100,06/04/2018,003083,6201,Building Services - Indirect,64800,Membership And Subscriptions,520.00
http://statistics.data.gov.uk/id/local-authority/12UB,Cambridge City Council,Alcumus Sypol Ltd,10157100,06/04/2018,003083,1856,Streets & Open Spaces (Operations) - Indirect Costs,64800,Membership And Subscriptions,520.00
http://statistics.data.gov.uk/id/local-authority/12UB,Cambridge City Council,Alcumus Sypol Ltd,10157100,06/04/2018,003083,1419,Environmental Health Operational Support,64800,Membership And Subscriptions,520.00
http://statistics.data.gov.uk/id/local-authority/12UB,Cambridge City Council,J W Crowther & Son Ltd,10060100,28/03/2018,003351,8005,Depot Management - Indirect,60201,Cyclical/Planned Maintenance - Building,1000.00
http://statistics.data.gov.uk/id/local-authority/12UB,Cambridge City Council,Countryside Properties (UK) Ltd,10033800,09/04/2018,003436,100020,Development Of land at Clay Farm,70010,CAPEX - Other Professional Fees,930.21
http://statistics.data.gov.uk/id/local-authority/12UB,Cambridge City Council,Countryside Properties (UK) Ltd,10033800,09/04/2018,003436,100020,Development Of land at Clay Farm,70019,CAPEX - Section 106/CIL payable,1408.61
http://statistics.data.gov.uk/id/local-authority/12UB,Cambridge City Council,COPE,10033300,17/04/2018,003711,1057,Community Development Voluntary Support,64600,Grants And Contributions,3750.00
http://statistics.data.gov.uk/id/local-authority/12UB,Cambridge City Council,C B Groundworks & Construction Ltd,10162700,23/02/2018,003728,1102,Leisure Contract Client Costs,60201,Cyclical/Planned Maintenance - Building,3811.61
http://statistics.data.gov.uk/id/local-authority/12UB,Cambridge City Council,The Urban Forest Consultancy Ltd,10105700,19/02/2018,004158,1876,Arboriculture,62400,Consultancy Fees,4455.00
http://statistics.data.gov.uk/id/local-authority/12UB,Cambridge City Council,MLTS Ltd,10072600,28/02/2018,004257,300015,Garage Improvements,70010,CAPEX - Other Professional Fees,1310.00
http://statistics.data.gov.uk/id/local-authority/12UB,Cambridge City Council,Pro-Flat Specialist Services Ltd,10123200,30/03/2018,003067,6207,Repairs Day to Day,60233,Housing Repairs - Work Given To External Contractors,2516.00
http://statistics.data.gov.uk/id/local-authority/12UB,Cambridge City Council,D Carman BSSR Ltd,10118100,12/04/2018,003243,6207,Repairs Day to Day,60233,Housing Repairs - Work Given To External Contractors,620.00
http://statistics.data.gov.uk/id/local-authority/12UB,Cambridge City Council,MLM Consulting Engineers Ltd,10072500,31/01/2018,003642,100143,Mandela House refurbishment (OAS),70010,CAPEX - Other Professional Fees,1312.63
http://statistics.data.gov.uk/id/local-authority/12UB,Cambridge City Council,Vivid Resourcing Ltd,10149200,14/03/2018,003666,6200,Building Maintenance Response - Direct,60011,Agency Staff,1295.00
http://statistics.data.gov.uk/id/local-authority/12UB,Cambridge City Council,ISG Construction Ltd,10059200,27/04/2018,003865,100022,Clay Farm Community Centre -Phase 2 (Construction),70010,CAPEX - Other Professional Fees,34961.50
http://statistics.data.gov.uk/id/local-authority/12UB,Cambridge City Council,Dawsongroup Sweepers Ltd,10153500,01/01/2018,003990,1855,Street Cleaning - Direct,60909,Vehicle Hire,3497.00
http://statistics.data.gov.uk/id/local-authority/12UB,Cambridge City Council,Turner Contracting Ltd,10125400,11/04/2018,004108,6207,Repairs Day to Day,60233,Housing Repairs - Work Given To External Contractors,656.00
http://statistics.data.gov.uk/id/local-authority/12UB,Cambridge City Council,MLM Consulting Engineers Ltd,10072500,26/04/2018,004112,300035,Ditchburn Place,70010,CAPEX - Other Professional Fees,1100.00
http://statistics.data.gov.uk/id/local-authority/12UB,Cambridge City Council,Cambridge Investment Partnership LLP,10145700,26/03/2018,002372,300058,New Build - Anstey Way,70002,CAPEX - Building Contractor/Works,39488.81
http://statistics.data.gov.uk/id/local-authority/12UB,Cambridge City Council,Alexandra & Beehive Bowls Club,10004100,27/03/2018,002455,1102,Leisure Contract Client Costs,64600,Grants And Contributions,5064.28
http://statistics.data.gov.uk/id/local-authority/12UB,Cambridge City Council,Willingham Medical Practice,10127300,03/04/2018,002457,1001,Cambridge Crematorium,63900,Miscellaneous Expenses,3585.00
http://statistics.data.gov.uk/id/local-authority/12UB,Cambridge City Council,Mercer Tree Services Ltd,10071200,29/03/2018,002577,1876,Arboriculture,64040,Tree Works,2930.00
http://statistics.data.gov.uk/id/local-authority/12UB,Cambridge City Council,Huntingdonshire District Council,10056900,21/03/2018,002645,1453,Finance General Recharges,62400,Consultancy Fees,2612.50
http://statistics.data.gov.uk/id/local-authority/12UB,Cambridge City Council,Huntingdonshire District Council,10056900,19/03/2018,002654,1202,Corporate Marketing,64073,Ict Maintenance And Support,900.05
http://statistics.data.gov.uk/id/local-authority/12UB,Cambridge City Council,Dawling Ltd T/A J & J Drake,10118000,29/03/2018,002782,300042,Aquisitions & Disposals,70002,CAPEX - Building Contractor/Works,2835.00
http://statistics.data.gov.uk/id/local-authority/12UB,Cambridge City Council,Azzurri Communications Ltd,10009800,19/03/2018,002848,5024,E_invoicing Suspense Accounts,69100,Expenditure In Holding Account Awaiting Allocation,1705.62
http://statistics.data.gov.uk/id/local-authority/12UB,Cambridge City Council,Marshall Peugeot Peterborough,10069501,29/03/2018,002873,100171,Vehicle Replacement Programme,70016,CAPEX - Purchase of Vehicles,18262.70
http://statistics.data.gov.uk/id/local-authority/12UB,Cambridge City Council,Smith & Ouzman Ltd,10095300,03/04/2018,004531,1801,Local Taxation,62001,Printing,1136.53
http://statistics.data.gov.uk/id/local-authority/12UB,Cambridge City Council,Cambridgeshire County Council,10022800,16/03/2018,002265,1512,Sub-Regional Housing Strategy Co-ordinator,64060,Shared Service Contribution,30000.00
http://statistics.data.gov.uk/id/local-authority/12UB,Cambridge City Council,D Carman BSSR Ltd,10118100,12/03/2018,002339,6203,Technical Services,62400,Consultancy Fees,1220.00
http://statistics.data.gov.uk/id/local-authority/12UB,Cambridge City Council,S P Landscapes & Tree Contractors Ltd,10124100,30/01/2018,002354,1876,Arboriculture,64040,Tree Works,1225.00
http://statistics.data.gov.uk/id/local-authority/12UB,Cambridge City Council,Gerald Eve LLP,10151600,27/03/2018,002447,1750,Property Services,62400,Consultancy Fees,7750.00
http://statistics.data.gov.uk/id/local-authority/12UB,Cambridge City Council,Power Control Panels Ltd,10123000,29/03/2018,002560,8015,Guildhall,60203,Cyclical/Planned Maintenance - Mechanical And Electrical,8931.25
http://statistics.data.gov.uk/id/local-authority/12UB,Cambridge City Council,Huntingdonshire District Council,10056900,20/03/2018,002618,1300,Customer Access Strategy - Customer Service Centre,51204,Sale Of Goods And Services (Z),14500.00
http://statistics.data.gov.uk/id/local-authority/12UB,Cambridge City Council,Huntingdonshire District Council,10056900,19/03/2018,002619,6012,City Homes Expenditure,61703,"Purchase - Equipment, Furniture And Materials",773.45
http://statistics.data.gov.uk/id/local-authority/12UB,Cambridge City Council,Huntingdonshire District Council,10056900,19/03/2018,002619,8011,Corporate Business Support,61702,"Maintenance - Equipment, Furniture And Materials",3944.00
http://statistics.data.gov.uk/id/local-authority/12UB,Cambridge City Council,D Carman BSSR Ltd,10118100,26/03/2018,002772,6207,Repairs Day to Day,60233,Housing Repairs - Work Given To External Contractors,3200.00
http://statistics.data.gov.uk/id/local-authority/12UB,Cambridge City Council,TSG Building Services PLC,10125300,28/03/2018,002978,5024,E_invoicing Suspense Accounts,69100,Expenditure In Holding Account Awaiting Allocation,42703.11
http://statistics.data.gov.uk/id/local-authority/12UB,Cambridge City Council,Newlyn PLC,10075600,10/03/2018,003732,9900,General Fund Balance Sheet,11708,Vat Debtor (Input Tax),509.51
http://statistics.data.gov.uk/id/local-authority/12UB,Cambridge City Council,Gulliver's Truck Hire Ltd,10052600,29/03/2018,003747,1855,Street Cleaning - Direct,60909,Vehicle Hire,604.00
http://statistics.data.gov.uk/id/local-authority/12UB,Cambridge City Council,Huntingdonshire District Council,10056900,19/03/2018,003750,1302,Cashiers,64073,Ict Maintenance And Support,655.00
http://statistics.data.gov.uk/id/local-authority/12UB,Cambridge City Council,The Red Hen Project,10165200,19/04/2018,003927,1057,Community Development Voluntary Support,64600,Grants And Contributions,1600.00
http://statistics.data.gov.uk/id/local-authority/12UB,Cambridge City Council,R J Warren Ltd,10123500,12/03/2018,003953,1866,Open Space Asset Maintenance,61702,"Maintenance - Equipment, Furniture And Materials",2130.00
http://statistics.data.gov.uk/id/local-authority/12UB,Cambridge City Council,AON UK Limited,10006800,11/04/2018,004034,8009,Insurance Fund,67302,Insurance Claim,3573.63
http://statistics.data.gov.uk/id/local-authority/12UB,Cambridge City Council,MLM Consulting Engineers Ltd,10072500,28/02/2018,003641,100143,Mandela House refurbishment (OAS),70010,CAPEX - Other Professional Fees,1312.62
http://statistics.data.gov.uk/id/local-authority/12UB,Cambridge City Council,Sunseeker Windows Ltd,10099900,16/03/2018,004264,6200,Building Maintenance Response - Direct,61703,"Purchase - Equipment, Furniture And Materials",970.00
http://statistics.data.gov.uk/id/local-authority/12UB,Cambridge City Council,Centre 33,10025400,16/04/2018,004295,1509,Grants to Housing Agencies,64600,Grants And Contributions,9079.50
http://statistics.data.gov.uk/id/local-authority/12UB,Cambridge City Council,Anglian Water Business (National) Ltd T/A Wave,10006400,30/03/2018,004337,6122,Lichfield Road,60302,Water And Sewerage,679.72
http://statistics.data.gov.uk/id/local-authority/12UB,Cambridge City Council,Neopost Ltd,10137601,06/04/2018,004416,6012,City Homes Expenditure,64100,Postage And Courier Services,1000.00
http://statistics.data.gov.uk/id/local-authority/12UB,Cambridge City Council,Neopost Ltd,10137601,06/04/2018,004416,6004,Leasehold Property Management,53004,Fees & Charges Income (B),1000.00
http://statistics.data.gov.uk/id/local-authority/12UB,Cambridge City Council,Foster & Shackell,10118400,28/03/2018,004430,200001,Mandatory Disabled Facilities Grants (Tenants),70015,CAPEX - Grants Paid,1747.20
http://statistics.data.gov.uk/id/local-authority/12UB,Cambridge City Council,Smith & Ouzman Ltd,10095300,03/04/2018,004532,1801,Local Taxation,62001,Printing,1371.66
http://statistics.data.gov.uk/id/local-authority/12UB,Cambridge City Council,Gaskin Brothers Ltd,10118700,19/03/2018,002270,1102,Leisure Contract Client Costs,60201,Cyclical/Planned Maintenance - Building,1048.95
http://statistics.data.gov.uk/id/local-authority/12UB,Cambridge City Council,Gaskin Brothers Ltd,10118700,06/07/2017,002272,1100,Sport & Recreation Administration,61702,"Maintenance - Equipment, Furniture And Materials",500.00
http://statistics.data.gov.uk/id/local-authority/12UB,Cambridge City Council,Cambridge Investment Partnership LLP,10145700,26/03/2018,002374,300078,New Build - Gunhild Way,70002,CAPEX - Building Contractor/Works,1231.05
http://statistics.data.gov.uk/id/local-authority/12UB,Cambridge City Council,Cambridge Investment Partnership LLP,10145700,31/01/2018,002409,300078,New Build - Gunhild Way,70002,CAPEX - Building Contractor/Works,6695.02
http://statistics.data.gov.uk/id/local-authority/12UB,Cambridge City Council,Coleridge Bowling Club,10031600,27/03/2018,002453,1102,Leisure Contract Client Costs,64600,Grants And Contributions,5064.28
http://statistics.data.gov.uk/id/local-authority/12UB,Cambridge City Council,LABC,10065100,08/03/2018,002540,1701,3C Building Control,64800,Membership And Subscriptions,4248.57
http://statistics.data.gov.uk/id/local-authority/12UB,Cambridge City Council,Huntingdonshire District Council,10056900,27/03/2018,002627,8006,Accountancy and Support Services,64073,Ict Maintenance And Support,920.00
http://statistics.data.gov.uk/id/local-authority/12UB,Cambridge City Council,Marshall Peugeot Peterborough,10069501,29/03/2018,002734,100171,Vehicle Replacement Programme,70016,CAPEX - Purchase of Vehicles,15707.70
http://statistics.data.gov.uk/id/local-authority/12UB,Cambridge City Council,ESPO,10043700,26/03/2018,002839,5024,E_invoicing Suspense Accounts,69100,Expenditure In Holding Account Awaiting Allocation,24904.75
http://statistics.data.gov.uk/id/local-authority/12UB,Cambridge City Council,ESPO,10043700,26/03/2018,002839,5024,E_invoicing Suspense Accounts,69100,Expenditure In Holding Account Awaiting Allocation,1502.03
http://statistics.data.gov.uk/id/local-authority/12UB,Cambridge City Council,Vivid Resourcing Ltd,10149200,12/04/2018,003253,6200,Building Maintenance Response - Direct,60011,Agency Staff,1050.00
http://statistics.data.gov.uk/id/local-authority/12UB,Cambridge City Council,Businessclean (Cambridge) Ltd,10016800,31/03/2018,003513,6102,Temporary Accommodation,60501,Cleaning Services,1159.30
http://statistics.data.gov.uk/id/local-authority/12UB,Cambridge City Council,Cocksedge Building Contractors Limited,10117400,12/04/2018,003778,300035,Ditchburn Place,70001,CAPEX - Acquisition of Land & Exisiting Building,135232.34
http://statistics.data.gov.uk/id/local-authority/12UB,Cambridge City Council,The Pink Festival Group,10104500,05/04/2018,004233,100185,Public Art Grant for Pink Festival Group - showcase of queer,70015,CAPEX - Grants Paid,7500.00
http://statistics.data.gov.uk/id/local-authority/12UB,Cambridge City Council,Sunseeker Windows Ltd,10099900,16/03/2018,004267,6204,Client Repairs,60235,Housing Repairs - Other Premises Related Costs,970.00
http://statistics.data.gov.uk/id/local-authority/12UB,Cambridge City Council,Foster & Shackell,10118400,22/03/2018,004382,200001,Mandatory Disabled Facilities Grants (Tenants),70015,CAPEX - Grants Paid,5400.00
http://statistics.data.gov.uk/id/local-authority/12UB,Cambridge City Council,Foster & Shackell,10118400,06/03/2018,004384,200001,Mandatory Disabled Facilities Grants (Tenants),70015,CAPEX - Grants Paid,4500.00
http://statistics.data.gov.uk/id/local-authority/12UB,Cambridge City Council,Acting Now C I C,10002200,17/04/2018,003692,1057,Community Development Voluntary Support,60207,Health And Safety Supplies And Services,1050.00
http://statistics.data.gov.uk/id/local-authority/12UB,Cambridge City Council,Lucion Environmental Ltd T/A Redhills,10067800,29/03/2018,002256,6205,Citywide Schemes,60235,Housing Repairs - Other Premises Related Costs,1703.40
http://statistics.data.gov.uk/id/local-authority/12UB,Cambridge City Council,Cambridge Investment Partnership LLP,10145700,31/01/2018,002382,6007,Departmental Overheads-Client,62400,Consultancy Fees,20175.86
http://statistics.data.gov.uk/id/local-authority/12UB,Cambridge City Council,Sharpe Pritchard LLP,10093300,20/03/2018,002479,1758,Other Commercial Properties,63200,Legal Fees,5000.00
http://statistics.data.gov.uk/id/local-authority/12UB,Cambridge City Council,Huntingdonshire District Council,10056900,27/03/2018,002611,400040,FMS Replacement,62400,Consultancy Fees,16450.00
http://statistics.data.gov.uk/id/local-authority/12UB,Cambridge City Council,Penna PLC,10080400,20/03/2018,002668,1203,Corporate Policy,60116,Staff Recruitment Costs,819.26
http://statistics.data.gov.uk/id/local-authority/12UB,Cambridge City Council,Marshall Peugeot Peterborough,10069501,29/03/2018,002876,100171,Vehicle Replacement Programme,70016,CAPEX - Purchase of Vehicles,18262.70
http://statistics.data.gov.uk/id/local-authority/12UB,Cambridge City Council,Elior UK PLC,10040900,31/03/2018,002879,6123,Ditchburn Place,61902,Catering Services,12626.20
http://statistics.data.gov.uk/id/local-authority/12UB,Cambridge City Council,ACAS,10001800,09/04/2018,002988,8003,Human Resources - Organisational Development,64300,Conference Expenses,835.00
http://statistics.data.gov.uk/id/local-authority/12UB,Cambridge City Council,COPRG Cambs Older Peoples Reference Group,10033400,06/04/2018,003282,1057,Community Development Voluntary Support,64600,Grants And Contributions,2000.00
http://statistics.data.gov.uk/id/local-authority/12UB,Cambridge City Council,Sharpe Pritchard LLP,10093300,28/02/2018,003484,1250,Cultural Facilities Administration,62400,Consultancy Fees,4913.00
http://statistics.data.gov.uk/id/local-authority/12UB,Cambridge City Council,Panther Taxis Ltd,10079600,31/03/2018,003504,1712,Taxicard Service,63900,Miscellaneous Expenses,2949.10
http://statistics.data.gov.uk/id/local-authority/12UB,Cambridge City Council,Businessclean (Cambridge) Ltd,10016800,13/04/2018,003725,6208,Voids,60220,Housing Repairs - Work To Void Properties,1398.00
http://statistics.data.gov.uk/id/local-authority/12UB,Cambridge City Council,AON UK Limited,10006800,12/04/2018,004032,8009,Insurance Fund,67302,Insurance Claim,37326.30
http://statistics.data.gov.uk/id/local-authority/12UB,Cambridge City Council,Turner Contracting Ltd,10125400,11/04/2018,004109,6207,Repairs Day to Day,60233,Housing Repairs - Work Given To External Contractors,528.00
http://statistics.data.gov.uk/id/local-authority/12UB,Cambridge City Council,D Carman BSSR Ltd,10118100,18/04/2018,004185,6207,Repairs Day to Day,60233,Housing Repairs - Work Given To External Contractors,3504.00
http://statistics.data.gov.uk/id/local-authority/12UB,Cambridge City Council,1st Glass Services,10000100,25/05/2018,006374,6207,Repairs Day to Day,60233,Housing Repairs - Work Given To External Contractors,628.10
http://statistics.data.gov.uk/id/local-authority/12UB,Cambridge City Council,Abbey People,10001300,02/05/2018,005177,1065,Akeman Street Community House,64600,Grants And Contributions,12002.00
http://statistics.data.gov.uk/id/local-authority/12UB,Cambridge City Council,Acorn Architectural Ironmongery Ltd,10149700,16/04/2018,004981,100022,Clay Farm Community Centre -Phase 2 (Construction),70024,CAPEX - Other Capital Expenditure,1168.00
http://statistics.data.gov.uk/id/local-authority/12UB,Cambridge City Council,ADC (East Anglia) Ltd,10002500,20/04/2018,005676,1883,Flood Risk Management,60501,Cleaning Services,10520.37
http://statistics.data.gov.uk/id/local-authority/12UB,Cambridge City Council,Adpak Ltd,10002600,23/05/2018,006164,100022,Clay Farm Community Centre -Phase 2 (Construction),70010,CAPEX - Other Professional Fees,9616.00
http://statistics.data.gov.uk/id/local-authority/12UB,Cambridge City Council,ADT Fire & Security PLC,10002800,11/05/2018,006300,100022,Clay Farm Community Centre -Phase 2 (Construction),70024,CAPEX - Other Capital Expenditure,725.00
http://statistics.data.gov.uk/id/local-authority/12UB,Cambridge City Council,Aecom Ltd,10003200,18/04/2018,005088,300035,Ditchburn Place,70010,CAPEX - Other Professional Fees,2228.70
http://statistics.data.gov.uk/id/local-authority/12UB,Cambridge City Council,Aecom Ltd,10003200,18/04/2018,005085,300062,New Build - Fulbourn Road,70010,CAPEX - Other Professional Fees,1581.16
http://statistics.data.gov.uk/id/local-authority/12UB,Cambridge City Council,Aecom Ltd,10003200,18/04/2018,005080,300048,New Build - Aylesborough (Phase 1),70010,CAPEX - Other Professional Fees,2198.40
http://statistics.data.gov.uk/id/local-authority/12UB,Cambridge City Council,Air Products PLC,10003500,01/02/2018,006299,1031,Fleet Management - Operational,61702,"Maintenance - Equipment, Furniture And Materials",683.58
http://statistics.data.gov.uk/id/local-authority/12UB,Cambridge City Council,Algar Signcraft Services (Cambridge) Ltd,10004300,20/04/2018,006792,100156,Cycleways,70002,CAPEX - Building Contractor/Works,1000.00
http://statistics.data.gov.uk/id/local-authority/12UB,Cambridge City Council,Algar Signcraft Services (Cambridge) Ltd,10004300,17/05/2018,006826,1865,Lettings & Events on Open Spaces,63900,Miscellaneous Expenses,576.00
http://statistics.data.gov.uk/id/local-authority/12UB,Cambridge City Council,Amazon UK Services Ltd,10175400,02/05/2018,005175,5077,Collection Fund - Business,69402,Collection Fund-NNDR Refund,27427.67
http://statistics.data.gov.uk/id/local-authority/12UB,Cambridge City Council,Amazon UK Services Ltd,10175400,02/05/2018,005185,5077,Collection Fund - Business,69402,Collection Fund-NNDR Refund,13742.05
http://statistics.data.gov.uk/id/local-authority/12UB,Cambridge City Council,Ameycespa (East) Ltd,10005100,03/04/2018,004959,1002,Bereavement Services - Burials & Grounds,60500,Refuse Collection /Skips,1269.10
http://statistics.data.gov.uk/id/local-authority/12UB,Cambridge City Council,Anglia Ruskin University,10006300,17/04/2018,005223,1251,Culture and Community,61902,Catering Services,1392.00
http://statistics.data.gov.uk/id/local-authority/12UB,Cambridge City Council,Anglian Water Business (National) Ltd T/A Wave,10006400,18/05/2018,005679,1102,Leisure Contract Client Costs,60302,Water And Sewerage,1870.60
http://statistics.data.gov.uk/id/local-authority/12UB,Cambridge City Council,Anglian Water Business (National) Ltd T/A Wave,10006400,28/04/2018,005616,1762,Barnwell Drive-excl Barnwell House,60302,Water And Sewerage,2244.70
http://statistics.data.gov.uk/id/local-authority/12UB,Cambridge City Council,Anglian Water Services Ltd,10006501,02/05/2018,005179,5077,Collection Fund - Business,69402,Collection Fund-NNDR Refund,251603.20
http://statistics.data.gov.uk/id/local-authority/12UB,Cambridge City Council,AON UK Limited,10006800,12/04/2018,006789,8009,Insurance Fund,67302,Insurance Claim,2693.60
http://statistics.data.gov.uk/id/local-authority/12UB,Cambridge City Council,AON UK Limited,10006800,27/04/2018,005404,8009,Insurance Fund,67302,Insurance Claim,2000.00
http://statistics.data.gov.uk/id/local-authority/12UB,Cambridge City Council,AOS Security Ltd,10006900,30/04/2018,005684,5024,E_invoicing Suspense Accounts,69100,Expenditure In Holding Account Awaiting Allocation,17119.49
http://statistics.data.gov.uk/id/local-authority/12UB,Cambridge City Council,Apex Training Centres (UK) Ltd,10007000,09/03/2018,005761,1857,Head of Streets & Open Spaces,64300,Conference Expenses,927.50
http://statistics.data.gov.uk/id/local-authority/12UB,Cambridge City Council,APTO Solutions Ltd,10184300,31/03/2018,006238,400040,FMS Replacement,62400,Consultancy Fees,750.00
http://statistics.data.gov.uk/id/local-authority/12UB,Cambridge City Council,APT-Skidata Ltd,10115700,10/05/2018,006304,1654,Grafton Centre East Car Park,61702,"Maintenance - Equipment, Furniture And Materials",1320.00
http://statistics.data.gov.uk/id/local-authority/12UB,Cambridge City Council,APT-Skidata Ltd,10115700,10/05/2018,006274,1653,Grafton Centre West Car Park,61702,"Maintenance - Equipment, Furniture And Materials",1320.00
http://statistics.data.gov.uk/id/local-authority/12UB,Cambridge City Council,APT-Skidata Ltd,10115700,12/04/2018,006416,1651,Grand Arcade Car Park,61702,"Maintenance - Equipment, Furniture And Materials",1610.00
http://statistics.data.gov.uk/id/local-authority/12UB,Cambridge City Council,APT-Skidata Ltd,10115700,10/05/2018,006282,1655,Queen Anne Terrace Car Park,61702,"Maintenance - Equipment, Furniture And Materials",1320.00
http://statistics.data.gov.uk/id/local-authority/12UB,Cambridge City Council,APT-Skidata Ltd,10115700,06/04/2018,005083,1651,Grand Arcade Car Park,61702,"Maintenance - Equipment, Furniture And Materials",3041.51
http://statistics.data.gov.uk/id/local-authority/12UB,Cambridge City Council,APT-Skidata Ltd,10115700,29/03/2018,006006,1663,Shopmobility-Grafton,61703,"Purchase - Equipment, Furniture And Materials",1378.57
http://statistics.data.gov.uk/id/local-authority/12UB,Cambridge City Council,Arbury Community Association,10007500,11/05/2018,005500,1057,Community Development Voluntary Support,64600,Grants And Contributions,1000.00
http://statistics.data.gov.uk/id/local-authority/12UB,Cambridge City Council,Arts & Minds,10171200,01/05/2018,004896,1057,Community Development Voluntary Support,64600,Grants And Contributions,4000.00
http://statistics.data.gov.uk/id/local-authority/12UB,Cambridge City Council,ATS Euromaster Ltd,10009301,30/04/2018,006521,1031,Fleet Management - Operational,60907,Other Vehicle Costs,2493.04
http://statistics.data.gov.uk/id/local-authority/12UB,Cambridge City Council,Azzurri Communications Ltd,10009800,17/04/2018,005511,5024,E_invoicing Suspense Accounts,69100,Expenditure In Holding Account Awaiting Allocation,1701.94
http://statistics.data.gov.uk/id/local-authority/12UB,Cambridge City Council,Azzurri Communications Ltd,10009800,18/05/2018,006621,5024,E_invoicing Suspense Accounts,69100,Expenditure In Holding Account Awaiting Allocation,1703.36
http://statistics.data.gov.uk/id/local-authority/12UB,Cambridge City Council,B & Q plc,10157200,30/04/2018,004855,6208,Voids,60222,Housing Repairs - Internal Decorations,550.00
http://statistics.data.gov.uk/id/local-authority/12UB,Cambridge City Council,Bangladesh Welfare & Cultural Association Cambridge,10010800,24/05/2018,006933,1057,Community Development Voluntary Support,64600,Grants And Contributions,1560.00
http://statistics.data.gov.uk/id/local-authority/12UB,Cambridge City Council,Banner Group Ltd,10011000,30/04/2018,005515,5024,E_invoicing Suspense Accounts,69100,Expenditure In Holding Account Awaiting Allocation,2916.36
http://statistics.data.gov.uk/id/local-authority/12UB,Cambridge City Council,Barclays Nominees (George Yard) Ltd,10011301,02/05/2018,005159,5077,Collection Fund - Business,69402,Collection Fund-NNDR Refund,33180.92
http://statistics.data.gov.uk/id/local-authority/12UB,Cambridge City Council,Beach Energy Ltd,10012000,21/05/2018,006931,1761,Ronald Rolph Court,60201,Cyclical/Planned Maintenance - Building,625.00
http://statistics.data.gov.uk/id/local-authority/12UB,Cambridge City Council,Big - Brady Corporation Ltd,10013100,27/04/2018,004591,5015,Rechargeable Stationery and Supplies and Services costs,62000,"Clothes, Uniform And Laundry",736.00
http://statistics.data.gov.uk/id/local-authority/12UB,Cambridge City Council,BMA Property Group Ltd,10151800,03/04/2018,004799,300063,New Build - Homerton,70002,CAPEX - Building Contractor/Works,700.00
http://statistics.data.gov.uk/id/local-authority/12UB,Cambridge City Council,BMA Property Group Ltd,10151800,03/04/2018,004963,9901,Housing Revenue Account Balance Sheet,30004,Capital Receipts Reserve,3082.40
http://statistics.data.gov.uk/id/local-authority/12UB,Cambridge City Council,British Parking Association,10015500,15/05/2018,006437,1661,Parking Administration,64800,Membership And Subscriptions,1158.00
http://statistics.data.gov.uk/id/local-authority/12UB,Cambridge City Council,Brookgate Property Ltd,10172600,02/05/2018,005178,5077,Collection Fund - Business,69402,Collection Fund-NNDR Refund,62548.87
http://statistics.data.gov.uk/id/local-authority/12UB,Cambridge City Council,Brookgate Property Ltd,10172600,02/05/2018,005163,5077,Collection Fund - Business,69402,Collection Fund-NNDR Refund,20499.89
http://statistics.data.gov.uk/id/local-authority/12UB,Cambridge City Council,Broxap Ltd,10015800,16/04/2018,005591,100019,City Centre Cycle Parking,70002,CAPEX - Building Contractor/Works,1367.38
http://statistics.data.gov.uk/id/local-authority/12UB,Cambridge City Council,Businessclean (Cambridge) Ltd,10016800,30/04/2018,004786,1502,Homelessness Costs,60501,Cleaning Services,506.34
http://statistics.data.gov.uk/id/local-authority/12UB,Cambridge City Council,Businessclean (Cambridge) Ltd,10016800,11/05/2018,006340,6102,Temporary Accommodation,60501,Cleaning Services,570.00
http://statistics.data.gov.uk/id/local-authority/12UB,Cambridge City Council,Businessclean (Cambridge) Ltd,10016800,11/05/2018,006351,6208,Voids,60220,Housing Repairs - Work To Void Properties,1868.75
http://statistics.data.gov.uk/id/local-authority/12UB,Cambridge City Council,Businessclean (Cambridge) Ltd,10016800,30/04/2018,004774,6102,Temporary Accommodation,60201,Cyclical/Planned Maintenance - Building,1010.65
http://statistics.data.gov.uk/id/local-authority/12UB,Cambridge City Council,Businessclean (Cambridge) Ltd,10016800,30/04/2018,005284,6208,Voids,60220,Housing Repairs - Work To Void Properties,1569.12
http://statistics.data.gov.uk/id/local-authority/12UB,Cambridge City Council,C F Hunter T/A C & M Haulage,10016900,30/04/2018,006567,6200,Building Maintenance Response - Direct,64050,Waste Disposal Costs,2400.00
http://statistics.data.gov.uk/id/local-authority/12UB,Cambridge City Council,C F Hunter T/A C & M Haulage,10016900,30/04/2018,006567,1855,Street Cleaning - Direct,64050,Waste Disposal Costs,2400.00
http://statistics.data.gov.uk/id/local-authority/12UB,Cambridge City Council,Cambridge Bid Limited,10017900,16/04/2018,004985,1935,Markets,62005,"Advertising, Publicity And Marketing",3860.00
http://statistics.data.gov.uk/id/local-authority/12UB,Cambridge City Council,Cambridge Carbon Footprint Ltd,10018000,17/05/2018,006388,1209,Sustainability Grants,64600,Grants And Contributions,7750.00
http://statistics.data.gov.uk/id/local-authority/12UB,Cambridge City Council,Cambridge Carbon Footprint Ltd,10018000,31/05/2018,006896,1209,Sustainability Grants,64600,Grants And Contributions,7750.00
http://statistics.data.gov.uk/id/local-authority/12UB,Cambridge City Council,Cambridge Community Arts,10018200,11/05/2018,005499,1057,Community Development Voluntary Support,64600,Grants And Contributions,2500.00
http://statistics.data.gov.uk/id/local-authority/12UB,Cambridge City Council,Cambridge Community Church,10018300,09/05/2018,005820,1517,Syrian Resettlement,64600,Grants And Contributions,1050.00
http://statistics.data.gov.uk/id/local-authority/12UB,Cambridge City Council,Cambridge Dial a Ride,10018900,24/04/2018,006787,1713,Transport Initiatives for Disabled,64600,Grants And Contributions,20000.00
http://statistics.data.gov.uk/id/local-authority/12UB,Cambridge City Council,Cambridge Disabled Kids Swimming Club,10177100,11/05/2018,005530,1057,Community Development Voluntary Support,64600,Grants And Contributions,3000.00
http://statistics.data.gov.uk/id/local-authority/12UB,Cambridge City Council,Cambridge Ethnic Community Forum,10019300,09/05/2018,005814,1517,Syrian Resettlement,63900,Miscellaneous Expenses,3000.00
http://statistics.data.gov.uk/id/local-authority/12UB,Cambridge City Council,Cambridge Felt Roofing Ltd,10117000,11/05/2018,005704,6207,Repairs Day to Day,60233,Housing Repairs - Work Given To External Contractors,977.55
http://statistics.data.gov.uk/id/local-authority/12UB,Cambridge City Council,Cambridge Gateway Club,10019500,22/05/2018,006575,1057,Community Development Voluntary Support,64600,Grants And Contributions,800.00
http://statistics.data.gov.uk/id/local-authority/12UB,Cambridge City Council,Cambridge Gymnastics Academy CIC,10169600,27/04/2018,004911,1103,Active Lifestyles - Communities (ex Sports Development),62404,Instructors/Tutors,620.00
http://statistics.data.gov.uk/id/local-authority/12UB,Cambridge City Council,Cambridge Housing Society Ltd,10019600,11/05/2018,005538,1057,Community Development Voluntary Support,64600,Grants And Contributions,6000.00
http://statistics.data.gov.uk/id/local-authority/12UB,Cambridge City Council,Cambridge Investment Partnership LLP,10145700,31/03/2018,005045,300079,New Build - Markham Close,70002,CAPEX - Building Contractor/Works,3004.04
http://statistics.data.gov.uk/id/local-authority/12UB,Cambridge City Council,Cambridge Investment Partnership LLP,10145700,31/03/2018,004976,300064,New Build - Akeman Street,70002,CAPEX - Building Contractor/Works,16646.92
http://statistics.data.gov.uk/id/local-authority/12UB,Cambridge City Council,Cambridge Investment Partnership LLP,10145700,31/03/2018,005044,300074,New Build - Colville Road Garages,70002,CAPEX - Building Contractor/Works,8345.22
http://statistics.data.gov.uk/id/local-authority/12UB,Cambridge City Council,Cambridge Investment Partnership LLP,10145700,31/03/2018,004949,6007,Departmental Overheads-Client,62400,Consultancy Fees,37060.00
http://statistics.data.gov.uk/id/local-authority/12UB,Cambridge City Council,Cambridge Investment Partnership LLP,10145700,31/03/2018,004974,300058,New Build - Anstey Way,70002,CAPEX - Building Contractor/Works,39938.20
http://statistics.data.gov.uk/id/local-authority/12UB,Cambridge City Council,Cambridge Investment Partnership LLP,10145700,31/03/2018,004967,6007,Departmental Overheads-Client,62400,Consultancy Fees,25996.50
http://statistics.data.gov.uk/id/local-authority/12UB,Cambridge City Council,Cambridge Investment Partnership LLP,10145700,31/03/2018,005048,300078,New Build - Gunhild Way,70002,CAPEX - Building Contractor/Works,6330.89
http://statistics.data.gov.uk/id/local-authority/12UB,Cambridge City Council,Cambridge Investment Partnership LLP,10145700,31/03/2018,005049,300073,New Build - Wulfstan Way,70002,CAPEX - Building Contractor/Works,10794.94
http://statistics.data.gov.uk/id/local-authority/12UB,Cambridge City Council,Cambridge Investment Partnership LLP,10145700,31/03/2018,004972,300071,New Build In-Fill - Hills Avenue,70002,CAPEX - Building Contractor/Works,4973.67
http://statistics.data.gov.uk/id/local-authority/12UB,Cambridge City Council,Cambridge Investment Partnership LLP,10145700,31/03/2018,004978,300072,New Build In-Fill - Queensmeadow,70002,CAPEX - Building Contractor/Works,6849.56
http://statistics.data.gov.uk/id/local-authority/12UB,Cambridge City Council,Cambridge Investment Partnership LLP,10145700,28/02/2018,006347,300079,New Build - Markham Close,70002,CAPEX - Building Contractor/Works,3144.65
http://statistics.data.gov.uk/id/local-authority/12UB,Cambridge City Council,Cambridge Investment Partnership LLP,10145700,31/01/2018,006348,6007,Departmental Overheads-Client,62900,Events,7397.24
http://statistics.data.gov.uk/id/local-authority/12UB,Cambridge City Council,Cambridge Live (Trading) Limited,10019800,04/05/2018,005726,1207,Programme Office,64300,Conference Expenses,1380.00
http://statistics.data.gov.uk/id/local-authority/12UB,Cambridge City Council,Cambridge Live Limited,10019900,16/05/2018,006215,9900,General Fund Balance Sheet,20119,Other Creditors - Other Entities And Individuals,10944.34
http://statistics.data.gov.uk/id/local-authority/12UB,Cambridge City Council,Cambridge Malayalee Association,10186900,18/05/2018,006419,1057,Community Development Voluntary Support,64600,Grants And Contributions,1100.00
http://statistics.data.gov.uk/id/local-authority/12UB,Cambridge City Council,Cambridge Master Locksmiths,10020000,24/04/2018,004768,6211,Gas Servicing,60225,Housing Repairs - Gas Maintenance Contract,640.00
http://statistics.data.gov.uk/id/local-authority/12UB,Cambridge City Council,Cambridge Master Locksmiths,10020000,01/05/2018,005774,6211,Gas Servicing,60225,Housing Repairs - Gas Maintenance Contract,960.00
http://statistics.data.gov.uk/id/local-authority/12UB,Cambridge City Council,Cambridge Online,10154400,25/04/2018,004961,1203,Corporate Policy,62900,Events,5136.00
http://statistics.data.gov.uk/id/local-authority/12UB,Cambridge City Council,Cambridge Szeged Society,10021500,17/05/2018,006026,400001,Twinning,62900,Events,1300.00
http://statistics.data.gov.uk/id/local-authority/12UB,Cambridge City Council,Cambridge United Youth & Community Trust,10170800,16/05/2018,006151,1057,Community Development Voluntary Support,64600,Grants And Contributions,5900.00
http://statistics.data.gov.uk/id/local-authority/12UB,Cambridge City Council,Cambridge United Youth & Community Trust,10170800,16/05/2018,006151,1057,Community Development Voluntary Support,64600,Grants And Contributions,3500.00
http://statistics.data.gov.uk/id/local-authority/12UB,Cambridge City Council,Cambridge University Hospitals NHS Foundation Trust,10175500,02/05/2018,005181,5077,Collection Fund - Business,69402,Collection Fund-NNDR Refund,55380.51
http://statistics.data.gov.uk/id/local-authority/12UB,Cambridge City Council,Cambridge Womens Aid,10022300,11/05/2018,005479,1057,Community Development Voluntary Support,64600,Grants And Contributions,2500.00
http://statistics.data.gov.uk/id/local-authority/12UB,Cambridge City Council,Cambridgeshire & Peterborough Fire Authority,10022500,20/04/2018,004789,1201,Emergency Planning,62400,Consultancy Fees,5000.00
http://statistics.data.gov.uk/id/local-authority/12UB,Cambridge City Council,Cambridgeshire County Council,10022800,31/08/2017,004676,6200,Building Maintenance Response - Direct,64050,Waste Disposal Costs,2029.70
http://statistics.data.gov.uk/id/local-authority/12UB,Cambridge City Council,Cambridgeshire County Council,10022800,25/04/2018,005503,1450,Central Provisions to be Allocated,64600,Grants And Contributions,1908178.24
http://statistics.data.gov.uk/id/local-authority/12UB,Cambridge City Council,Cambridgeshire County Council,10022800,31/08/2017,004668,6200,Building Maintenance Response - Direct,64050,Waste Disposal Costs,2029.70
http://statistics.data.gov.uk/id/local-authority/12UB,Cambridge City Council,Cambridgeshire County Council,10022800,02/05/2018,005875,6200,Building Maintenance Response - Direct,64050,Waste Disposal Costs,2029.70
http://statistics.data.gov.uk/id/local-authority/12UB,Cambridge City Council,Cambridgeshire County Council,10022800,31/08/2017,004680,6200,Building Maintenance Response - Direct,64050,Waste Disposal Costs,2029.70
http://statistics.data.gov.uk/id/local-authority/12UB,Cambridge City Council,Cambridgeshire Football Association Ltd,10171500,10/05/2018,005656,1100,Sport & Recreation Administration,60201,Cyclical/Planned Maintenance - Building,800.00
http://statistics.data.gov.uk/id/local-authority/12UB,Cambridge City Council,Cambs Lock & Safe Ltd,10023300,27/04/2018,005218,8015,Guildhall,60201,Cyclical/Planned Maintenance - Building,1226.77
http://statistics.data.gov.uk/id/local-authority/12UB,Cambridge City Council,Capers Catering Ltd,10024300,09/05/2018,005971,400000,Civic Receptions,62900,Events,1193.00
http://statistics.data.gov.uk/id/local-authority/12UB,Cambridge City Council,Capers Catering Ltd,10024300,31/03/2018,006208,400001,Twinning,62900,Events,1872.00
http://statistics.data.gov.uk/id/local-authority/12UB,Cambridge City Council,Carbon Orange,10130600,08/05/2018,005416,1052,Children & Young People's Service,62005,"Advertising, Publicity And Marketing",700.00
http://statistics.data.gov.uk/id/local-authority/12UB,Cambridge City Council,Cerc - Cambridge Environmental Research Consultants Ltd,10025500,17/05/2018,006473,1404,Scientific Team,64073,Ict Maintenance And Support,1890.00
http://statistics.data.gov.uk/id/local-authority/12UB,Cambridge City Council,CFC Disposal Ltd,10025700,09/05/2018,006129,8005,Depot Management - Indirect,64050,Waste Disposal Costs,2416.50
http://statistics.data.gov.uk/id/local-authority/12UB,Cambridge City Council,CFH Docmail Ltd,10025900,26/04/2018,005658,1353,Elections,64100,Postage And Courier Services,586.62
http://statistics.data.gov.uk/id/local-authority/12UB,Cambridge City Council,CGM Group (East Anglia) Ltd,10117300,29/03/2018,004595,1883,Flood Risk Management,60501,Cleaning Services,1975.00
http://statistics.data.gov.uk/id/local-authority/12UB,Cambridge City Council,CGM Group (East Anglia) Ltd,10117300,29/03/2018,004923,1883,Flood Risk Management,60501,Cleaning Services,1104.73
http://statistics.data.gov.uk/id/local-authority/12UB,Cambridge City Council,Chassis Cab Ltd,10027000,03/07/2017,006609,1032,Garage- External Work,61703,"Purchase - Equipment, Furniture And Materials",1592.16
http://statistics.data.gov.uk/id/local-authority/12UB,Cambridge City Council,Chassis Cab Ltd,10027000,02/11/2017,006500,1031,Fleet Management - Operational,61703,"Purchase - Equipment, Furniture And Materials",3400.00
http://statistics.data.gov.uk/id/local-authority/12UB,Cambridge City Council,Cherry Hinton Community Festival Committee,10027300,25/04/2018,006054,1057,Community Development Voluntary Support,64600,Grants And Contributions,663.00
http://statistics.data.gov.uk/id/local-authority/12UB,Cambridge City Council,Chesterton Carpets,10027700,27/03/2018,004737,200002,Mandatory Disabled Facilities Grants (Owner Occupiers),70015,CAPEX - Grants Paid,985.00
http://statistics.data.gov.uk/id/local-authority/12UB,Cambridge City Council,Chesterton Community Association Charity,10027800,18/05/2018,006401,1057,Community Development Voluntary Support,64600,Grants And Contributions,1000.00
http://statistics.data.gov.uk/id/local-authority/12UB,Cambridge City Council,Chesterton Festival Committee,10028000,18/05/2018,006430,1057,Community Development Voluntary Support,64600,Grants And Contributions,2500.00
http://statistics.data.gov.uk/id/local-authority/12UB,Cambridge City Council,Childcare Vouchers Limited,10028300,15/05/2018,005878,5000,Salary Sacrifice Schemes Holding Account,60106,Childcare Admin Vouchers,9331.00
http://statistics.data.gov.uk/id/local-authority/12UB,Cambridge City Council,Children's Scrapstore,10028400,27/04/2018,006321,1052,Children & Young People's Service,61400,Goods For Resale,13691.50
http://statistics.data.gov.uk/id/local-authority/12UB,Cambridge City Council,Children's Scrapstore,10028400,27/04/2018,006319,1052,Children & Young People's Service,60115,Staff Development And Training,900.00
http://statistics.data.gov.uk/id/local-authority/12UB,Cambridge City Council,Chinese Families Together,10028600,31/05/2018,006828,1057,Community Development Voluntary Support,64600,Grants And Contributions,3450.00
http://statistics.data.gov.uk/id/local-authority/12UB,Cambridge City Council,Chubb Fire & Security Limited,10029100,07/02/2018,006239,8005,Depot Management - Indirect,60201,Cyclical/Planned Maintenance - Building,879.72
http://statistics.data.gov.uk/id/local-authority/12UB,Cambridge City Council,Chubb Fire & Security Limited,10029100,12/04/2018,005010,6104,Independent Living Services,62005,"Advertising, Publicity And Marketing",5320.50
http://statistics.data.gov.uk/id/local-authority/12UB,Cambridge City Council,Church of The Good Shepherd,10029200,07/05/2018,006131,1353,Elections,60402,Premises Hire - Facilities,550.00
http://statistics.data.gov.uk/id/local-authority/12UB,Cambridge City Council,Churchill Contract Services Ltd,10029300,31/03/2018,005571,5024,E_invoicing Suspense Accounts,69100,Expenditure In Holding Account Awaiting Allocation,101069.63
http://statistics.data.gov.uk/id/local-authority/12UB,Cambridge City Council,Circling the Square Ltd,10186700,19/05/2018,006442,100006,Local Centres Improvement Programme - Arbury Court,70002,CAPEX - Building Contractor/Works,10333.00
http://statistics.data.gov.uk/id/local-authority/12UB,Cambridge City Council,City Electrical Factors Ltd,10029900,09/04/2018,005725,9900,General Fund Balance Sheet,11600,Consumable Stores,591.84
http://statistics.data.gov.uk/id/local-authority/12UB,Cambridge City Council,City Electrical Factors Ltd,10029900,16/04/2018,005725,9900,General Fund Balance Sheet,11600,Consumable Stores,591.84
http://statistics.data.gov.uk/id/local-authority/12UB,Cambridge City Council,Clare Hayes Music Services,10162400,11/05/2018,005959,1251,Culture and Community,62400,Consultancy Fees,1328.93
http://statistics.data.gov.uk/id/local-authority/12UB,Cambridge City Council,Clare Hayes Music Services,10162400,11/05/2018,005759,1251,Culture and Community,62900,Events,1000.00
http://statistics.data.gov.uk/id/local-authority/12UB,Cambridge City Council,Coast and Counties Contractors Ltd,10165000,27/03/2018,004725,1774,"Cambridge Road Retail Park, Haverhill",60503,Grounds Maintenance,1850.00
http://statistics.data.gov.uk/id/local-authority/12UB,Cambridge City Council,Cobalt Telephone Technologies Limited,10031400,30/04/2018,005215,1656,Adam & Eve Street Car Park,63900,Miscellaneous Expenses,517.83
http://statistics.data.gov.uk/id/local-authority/12UB,Cambridge City Council,Colin Stevens,10134400,01/05/2018,006172,1251,Culture and Community,62800,Design And Photographic Costs,643.20
http://statistics.data.gov.uk/id/local-authority/12UB,Cambridge City Council,Comensura Ltd,10031900,11/04/2018,005069,5024,E_invoicing Suspense Accounts,69100,Expenditure In Holding Account Awaiting Allocation,43589.56
http://statistics.data.gov.uk/id/local-authority/12UB,Cambridge City Council,Comensura Ltd,10031900,02/05/2018,005541,5024,E_invoicing Suspense Accounts,69100,Expenditure In Holding Account Awaiting Allocation,1478.97
http://statistics.data.gov.uk/id/local-authority/12UB,Cambridge City Council,Comensura Ltd,10031900,13/05/2018,006620,5024,E_invoicing Suspense Accounts,69100,Expenditure In Holding Account Awaiting Allocation,45980.04
http://statistics.data.gov.uk/id/local-authority/12UB,Cambridge City Council,Comensura Ltd,10031900,29/04/2018,005539,5024,E_invoicing Suspense Accounts,69100,Expenditure In Holding Account Awaiting Allocation,50874.13
http://statistics.data.gov.uk/id/local-authority/12UB,Cambridge City Council,Comensura Ltd,10031900,09/05/2018,005537,5024,E_invoicing Suspense Accounts,69100,Expenditure In Holding Account Awaiting Allocation,49765.28
http://statistics.data.gov.uk/id/local-authority/12UB,Cambridge City Council,Comensura Ltd,10031900,23/05/2018,006619,5024,E_invoicing Suspense Accounts,69100,Expenditure In Holding Account Awaiting Allocation,52643.67
http://statistics.data.gov.uk/id/local-authority/12UB,Cambridge City Council,Compton & Casburn Ltd,10117600,15/05/2018,006090,6207,Repairs Day to Day,60233,Housing Repairs - Work Given To External Contractors,720.00
http://statistics.data.gov.uk/id/local-authority/12UB,Cambridge City Council,Compton & Casburn Ltd,10117600,15/05/2018,006085,6207,Repairs Day to Day,60233,Housing Repairs - Work Given To External Contractors,520.00
http://statistics.data.gov.uk/id/local-authority/12UB,Cambridge City Council,Conamar Building Services Ltd,10136200,03/05/2018,006117,100143,Mandela House refurbishment (OAS),70002,CAPEX - Building Contractor/Works,226798.85
http://statistics.data.gov.uk/id/local-authority/12UB,Cambridge City Council,COPE,10033300,11/05/2018,005475,1057,Community Development Voluntary Support,64600,Grants And Contributions,3750.00
http://statistics.data.gov.uk/id/local-authority/12UB,Cambridge City Council,COPE,10033300,11/05/2018,005475,1057,Community Development Voluntary Support,64600,Grants And Contributions,700.00
http://statistics.data.gov.uk/id/local-authority/12UB,Cambridge City Council,COPRG Cambs Older Peoples Reference Group,10033400,01/05/2018,004910,1057,Community Development Voluntary Support,64600,Grants And Contributions,2000.00
http://statistics.data.gov.uk/id/local-authority/12UB,Cambridge City Council,Cornerstone Barristers,10073800,23/04/2018,006210,1801,Local Taxation,63200,Legal Fees,4500.00
http://statistics.data.gov.uk/id/local-authority/12UB,Cambridge City Council,Coulson Group Ltd,10188600,17/05/2018,006616,1651,Grand Arcade Car Park,60201,Cyclical/Planned Maintenance - Building,1902.96
http://statistics.data.gov.uk/id/local-authority/12UB,Cambridge City Council,Countryside Properties (UK) Ltd,10033800,09/05/2018,006568,100020,Development Of land at Clay Farm,70002,CAPEX - Building Contractor/Works,9587.45
http://statistics.data.gov.uk/id/local-authority/12UB,Cambridge City Council,Countryside Properties (UK) Ltd,10033800,09/05/2018,006568,100020,Development Of land at Clay Farm,70002,CAPEX - Building Contractor/Works,776.89
http://statistics.data.gov.uk/id/local-authority/12UB,Cambridge City Council,Countryside Properties (UK) Ltd,10033800,09/05/2018,006568,100020,Development Of land at Clay Farm,70010,CAPEX - Other Professional Fees,1784.11
http://statistics.data.gov.uk/id/local-authority/12UB,Cambridge City Council,Countryside Properties (UK) Ltd,10033800,09/05/2018,006568,100020,Development Of land at Clay Farm,70002,CAPEX - Building Contractor/Works,632.10
http://statistics.data.gov.uk/id/local-authority/12UB,Cambridge City Council,Countryside Properties (UK) Ltd,10033800,09/05/2018,006568,100020,Development Of land at Clay Farm,70013,CAPEX - Landscaping,807.95
http://statistics.data.gov.uk/id/local-authority/12UB,Cambridge City Council,Countryside Properties (UK) Ltd,10033800,09/05/2018,006568,100020,Development Of land at Clay Farm,70019,CAPEX - Section 106/CIL payable,25895.83
http://statistics.data.gov.uk/id/local-authority/12UB,Cambridge City Council,Crawford Associates,10034000,06/04/2018,005020,6116,School Court,61702,"Maintenance - Equipment, Furniture And Materials",952.00
http://statistics.data.gov.uk/id/local-authority/12UB,Cambridge City Council,Croyland Building Surveyors Ltd,10034500,08/05/2018,005960,100145,Cowley Road Compound ex-Park and Ride site (OAS),70010,CAPEX - Other Professional Fees,4533.65
http://statistics.data.gov.uk/id/local-authority/12UB,Cambridge City Council,D & T Industries Ltd,10187100,07/02/2018,006377,200005,Relocation Grant (Owner Occupiers),70015,CAPEX - Grants Paid,582.66
http://statistics.data.gov.uk/id/local-authority/12UB,Cambridge City Council,D Carman BSSR Ltd,10118100,09/05/2018,005620,6207,Repairs Day to Day,60233,Housing Repairs - Work Given To External Contractors,1417.38
http://statistics.data.gov.uk/id/local-authority/12UB,Cambridge City Council,D Carman BSSR Ltd,10118100,26/04/2018,004687,6207,Repairs Day to Day,60233,Housing Repairs - Work Given To External Contractors,639.38
http://statistics.data.gov.uk/id/local-authority/12UB,Cambridge City Council,D Carman BSSR Ltd,10118100,14/05/2018,005988,6207,Repairs Day to Day,60233,Housing Repairs - Work Given To External Contractors,2889.00
http://statistics.data.gov.uk/id/local-authority/12UB,Cambridge City Council,D Carman BSSR Ltd,10118100,15/05/2018,006115,6207,Repairs Day to Day,60233,Housing Repairs - Work Given To External Contractors,1213.55
http://statistics.data.gov.uk/id/local-authority/12UB,Cambridge City Council,D Carman BSSR Ltd,10118100,14/05/2018,005993,6207,Repairs Day to Day,60233,Housing Repairs - Work Given To External Contractors,2889.00
http://statistics.data.gov.uk/id/local-authority/12UB,Cambridge City Council,D Carman BSSR Ltd,10118100,14/05/2018,005996,6207,Repairs Day to Day,60233,Housing Repairs - Work Given To External Contractors,2889.00
http://statistics.data.gov.uk/id/local-authority/12UB,Cambridge City Council,D Carman BSSR Ltd,10118100,14/05/2018,006205,1759,Gwydir St Workshops/Offices,60201,Cyclical/Planned Maintenance - Building,1220.00
http://statistics.data.gov.uk/id/local-authority/12UB,Cambridge City Council,D Carman BSSR Ltd,10118100,14/05/2018,006205,1759,Gwydir St Workshops/Offices,60201,Cyclical/Planned Maintenance - Building,2860.00
http://statistics.data.gov.uk/id/local-authority/12UB,Cambridge City Council,D Carman BSSR Ltd,10118100,14/05/2018,006205,1759,Gwydir St Workshops/Offices,60201,Cyclical/Planned Maintenance - Building,3125.00
http://statistics.data.gov.uk/id/local-authority/12UB,Cambridge City Council,D Carman BSSR Ltd,10118100,14/05/2018,005986,6207,Repairs Day to Day,60233,Housing Repairs - Work Given To External Contractors,2889.00
http://statistics.data.gov.uk/id/local-authority/12UB,Cambridge City Council,D Carman BSSR Ltd,10118100,03/05/2018,005186,6207,Repairs Day to Day,60233,Housing Repairs - Work Given To External Contractors,1873.31
http://statistics.data.gov.uk/id/local-authority/12UB,Cambridge City Council,D Carman BSSR Ltd,10118100,14/05/2018,005994,6207,Repairs Day to Day,60233,Housing Repairs - Work Given To External Contractors,2889.00
http://statistics.data.gov.uk/id/local-authority/12UB,Cambridge City Council,D Carman BSSR Ltd,10118100,22/05/2018,006580,6207,Repairs Day to Day,54300,Rechargeable Repairs Income (S),4613.16
http://statistics.data.gov.uk/id/local-authority/12UB,Cambridge City Council,D Carman BSSR Ltd,10118100,22/05/2018,006591,6207,Repairs Day to Day,60233,Housing Repairs - Work Given To External Contractors,1015.67
http://statistics.data.gov.uk/id/local-authority/12UB,Cambridge City Council,D Carman BSSR Ltd,10118100,14/05/2018,005989,6207,Repairs Day to Day,60233,Housing Repairs - Work Given To External Contractors,2889.00
http://statistics.data.gov.uk/id/local-authority/12UB,Cambridge City Council,D Carman BSSR Ltd,10118100,03/05/2018,005206,6207,Repairs Day to Day,60233,Housing Repairs - Work Given To External Contractors,2615.28
http://statistics.data.gov.uk/id/local-authority/12UB,Cambridge City Council,D Carman BSSR Ltd,10118100,14/05/2018,005997,6207,Repairs Day to Day,60218,Housing Repairs - Electrical Supply / Air Cooling / Lighting,2889.00
http://statistics.data.gov.uk/id/local-authority/12UB,Cambridge City Council,D Carman BSSR Ltd,10118100,03/05/2018,005140,6207,Repairs Day to Day,60233,Housing Repairs - Work Given To External Contractors,585.56
http://statistics.data.gov.uk/id/local-authority/12UB,Cambridge City Council,D Carman BSSR Ltd,10118100,09/05/2018,005623,6207,Repairs Day to Day,60233,Housing Repairs - Work Given To External Contractors,832.12
http://statistics.data.gov.uk/id/local-authority/12UB,Cambridge City Council,D Carman BSSR Ltd,10118100,14/05/2018,005984,6207,Repairs Day to Day,60233,Housing Repairs - Work Given To External Contractors,2889.00
http://statistics.data.gov.uk/id/local-authority/12UB,Cambridge City Council,D Carman BSSR Ltd,10118100,14/05/2018,005991,6207,Repairs Day to Day,60233,Housing Repairs - Work Given To External Contractors,2889.00
http://statistics.data.gov.uk/id/local-authority/12UB,Cambridge City Council,D Carman BSSR Ltd,10118100,14/05/2018,005987,6207,Repairs Day to Day,60233,Housing Repairs - Work Given To External Contractors,2889.00
http://statistics.data.gov.uk/id/local-authority/12UB,Cambridge City Council,D Carman BSSR Ltd,10118100,26/04/2018,004602,6207,Repairs Day to Day,60233,Housing Repairs - Work Given To External Contractors,952.65
http://statistics.data.gov.uk/id/local-authority/12UB,Cambridge City Council,D Carman BSSR Ltd,10118100,30/04/2018,004788,6207,Repairs Day to Day,60233,Housing Repairs - Work Given To External Contractors,1725.75
http://statistics.data.gov.uk/id/local-authority/12UB,Cambridge City Council,D Carman BSSR Ltd,10118100,08/05/2018,005301,6207,Repairs Day to Day,60233,Housing Repairs - Work Given To External Contractors,515.73
http://statistics.data.gov.uk/id/local-authority/12UB,Cambridge City Council,D Carman BSSR Ltd,10118100,26/04/2018,004609,6207,Repairs Day to Day,60233,Housing Repairs - Work Given To External Contractors,1612.91
http://statistics.data.gov.uk/id/local-authority/12UB,Cambridge City Council,D Carman BSSR Ltd,10118100,26/04/2018,004696,6207,Repairs Day to Day,60233,Housing Repairs - Work Given To External Contractors,740.54
http://statistics.data.gov.uk/id/local-authority/12UB,Cambridge City Council,D Carman BSSR Ltd,10118100,26/04/2018,004611,6207,Repairs Day to Day,54300,Rechargeable Repairs Income (S),1037.52
http://statistics.data.gov.uk/id/local-authority/12UB,Cambridge City Council,D Carman BSSR Ltd,10118100,04/04/2018,004640,6203,Technical Services,62400,Consultancy Fees,4620.00
http://statistics.data.gov.uk/id/local-authority/12UB,Cambridge City Council,D Carman BSSR Ltd,10118100,26/04/2018,004601,6207,Repairs Day to Day,60233,Housing Repairs - Work Given To External Contractors,788.66
http://statistics.data.gov.uk/id/local-authority/12UB,Cambridge City Council,D Carman BSSR Ltd,10118100,26/04/2018,004618,6207,Repairs Day to Day,60233,Housing Repairs - Work Given To External Contractors,1475.19
http://statistics.data.gov.uk/id/local-authority/12UB,Cambridge City Council,D Carman BSSR Ltd,10118100,08/05/2018,005282,6207,Repairs Day to Day,60233,Housing Repairs - Work Given To External Contractors,568.22
http://statistics.data.gov.uk/id/local-authority/12UB,Cambridge City Council,D Carman BSSR Ltd,10118100,22/05/2018,006593,6207,Repairs Day to Day,60218,Housing Repairs - Electrical Supply / Air Cooling / Lighting,884.58
http://statistics.data.gov.uk/id/local-authority/12UB,Cambridge City Council,D F Stewart Services Ltd,10035300,08/05/2018,006213,1768,Other Industrial Properties,62400,Consultancy Fees,880.00
http://statistics.data.gov.uk/id/local-authority/12UB,Cambridge City Council,David Powell t/a D J Kitchens,10137900,07/05/2018,005306,6207,Repairs Day to Day,60233,Housing Repairs - Work Given To External Contractors,1260.00
http://statistics.data.gov.uk/id/local-authority/12UB,Cambridge City Council,David Powell t/a D J Kitchens,10137900,14/05/2018,005804,6207,Repairs Day to Day,60233,Housing Repairs - Work Given To External Contractors,640.00
http://statistics.data.gov.uk/id/local-authority/12UB,Cambridge City Council,David Powell t/a D J Kitchens,10137900,20/05/2018,006334,6207,Repairs Day to Day,60233,Housing Repairs - Work Given To External Contractors,820.00
http://statistics.data.gov.uk/id/local-authority/12UB,Cambridge City Council,Dawling Ltd T/A J & J Drake,10118000,11/05/2018,005847,6200,Building Maintenance Response - Direct,62401,Subcontractors,1890.00
http://statistics.data.gov.uk/id/local-authority/12UB,Cambridge City Council,Debenhams Plc,10175900,02/05/2018,005188,5077,Collection Fund - Business,69402,Collection Fund-NNDR Refund,53745.25
http://statistics.data.gov.uk/id/local-authority/12UB,Cambridge City Council,Deloitte LLP,10172700,02/05/2018,005169,5077,Collection Fund - Business,69402,Collection Fund-NNDR Refund,133601.54
http://statistics.data.gov.uk/id/local-authority/12UB,Cambridge City Council,Denis Wilson Court Social Club,10171700,01/05/2018,004899,1057,Community Development Voluntary Support,64600,Grants And Contributions,500.00
http://statistics.data.gov.uk/id/local-authority/12UB,Cambridge City Council,Dennis Eagle Ltd,10036900,09/05/2018,005736,1032,Garage- External Work,61703,"Purchase - Equipment, Furniture And Materials",725.02
http://statistics.data.gov.uk/id/local-authority/12UB,Cambridge City Council,Dennis Eagle Ltd,10036900,22/05/2018,006500,1031,Fleet Management - Operational,61703,"Purchase - Equipment, Furniture And Materials",857.08
http://statistics.data.gov.uk/id/local-authority/12UB,Cambridge City Council,Diners Club International,10037600,28/04/2018,004794,5024,E_invoicing Suspense Accounts,69100,Expenditure In Holding Account Awaiting Allocation,1572.85
http://statistics.data.gov.uk/id/local-authority/12UB,Cambridge City Council,Drainage Facilities Management Ltd,10179400,18/05/2018,006570,400029,Hobsons Conduit Routine Works,60501,Cleaning Services,1000.00
http://statistics.data.gov.uk/id/local-authority/12UB,Cambridge City Council,DTZ,10039100,13/04/2018,005819,1651,Grand Arcade Car Park,60303,Electricity,3325.65
http://statistics.data.gov.uk/id/local-authority/12UB,Cambridge City Council,DTZ,10039100,18/05/2018,006475,1651,Grand Arcade Car Park,60303,Electricity,2983.79
http://statistics.data.gov.uk/id/local-authority/12UB,Cambridge City Council,E Rand & Sons Ltd,10039600,23/04/2018,005096,1032,Garage- External Work,61703,"Purchase - Equipment, Furniture And Materials",1313.29
http://statistics.data.gov.uk/id/local-authority/12UB,Cambridge City Council,E.On Energy/Powergen,10039700,23/04/2018,005467,100142,Relocation of services to 130 Cowley Road (OAS),70024,CAPEX - Other Capital Expenditure,1203.00
http://statistics.data.gov.uk/id/local-authority/12UB,Cambridge City Council,Eddie's Trust,10171100,01/05/2018,004905,1057,Community Development Voluntary Support,64600,Grants And Contributions,2000.00
http://statistics.data.gov.uk/id/local-authority/12UB,Cambridge City Council,EDF Energy,10040500,26/02/2018,005145,6102,Temporary Accommodation,60303,Electricity,946.76
http://statistics.data.gov.uk/id/local-authority/12UB,Cambridge City Council,Edmundson Electrical Ltd,10040600,30/04/2018,005100,9900,General Fund Balance Sheet,11600,Consumable Stores,1242.75
http://statistics.data.gov.uk/id/local-authority/12UB,Cambridge City Council,Edmundson Electrical Ltd,10040600,11/05/2018,006146,9900,General Fund Balance Sheet,11600,Consumable Stores,1242.75
http://statistics.data.gov.uk/id/local-authority/12UB,Cambridge City Council,Edmundson Electrical Ltd,10040600,18/01/2018,005935,9900,General Fund Balance Sheet,11600,Consumable Stores,1235.19
http://statistics.data.gov.uk/id/local-authority/12UB,Cambridge City Council,Elior UK PLC,10040900,30/04/2018,005259,6123,Ditchburn Place,61902,Catering Services,12208.80
http://statistics.data.gov.uk/id/local-authority/12UB,Cambridge City Council,Elliott Engineering,10041100,12/05/2018,006257,1856,Streets & Open Spaces (Operations) - Indirect Costs,61703,"Purchase - Equipment, Furniture And Materials",1379.91
http://statistics.data.gov.uk/id/local-authority/12UB,Cambridge City Council,EMS Lifts Ltd,10041800,09/04/2018,005089,6205,Citywide Schemes,60234,Housing Repairs - Servicing Specialist Disabled Equipment,505.00
http://statistics.data.gov.uk/id/local-authority/12UB,Cambridge City Council,EMS Lifts Ltd,10041800,17/04/2018,004953,6208,Voids,60220,Housing Repairs - Work To Void Properties,903.00
http://statistics.data.gov.uk/id/local-authority/12UB,Cambridge City Council,Encore PMG Ltd,,23/04/2018,006354,6135,"Virido, Clay Farm New Build",60401,Service Charges,13374.05
http://statistics.data.gov.uk/id/local-authority/12UB,Cambridge City Council,Encore PMG Ltd,,23/04/2018,006326,6135,"Virido, Clay Farm New Build",60401,Service Charges,9694.66
http://statistics.data.gov.uk/id/local-authority/12UB,Cambridge City Council,Encore PMG Ltd,,23/04/2018,006355,6135,"Virido, Clay Farm New Build",60401,Service Charges,15764.47
http://statistics.data.gov.uk/id/local-authority/12UB,Cambridge City Council,Encore PMG Ltd,,23/04/2018,006345,6135,"Virido, Clay Farm New Build",60401,Service Charges,18246.82
http://statistics.data.gov.uk/id/local-authority/12UB,Cambridge City Council,Engineering & Design Plastics Ltd,10042100,09/05/2018,006397,1860,Bill Posting & Distribution,61702,"Maintenance - Equipment, Furniture And Materials",517.10
http://statistics.data.gov.uk/id/local-authority/12UB,Cambridge City Council,Enviro Technology Services PLC,10042700,27/04/2018,006790,1404,Scientific Team,61702,"Maintenance - Equipment, Furniture And Materials",603.00
http://statistics.data.gov.uk/id/local-authority/12UB,Cambridge City Council,Enviro Technology Services PLC,10042700,30/04/2018,004912,1404,Scientific Team,61702,"Maintenance - Equipment, Furniture And Materials",3777.50
http://statistics.data.gov.uk/id/local-authority/12UB,Cambridge City Council,ESPO,10043700,26/04/2018,006633,5024,E_invoicing Suspense Accounts,69100,Expenditure In Holding Account Awaiting Allocation,25153.02
http://statistics.data.gov.uk/id/local-authority/12UB,Cambridge City Council,ESPO,10043700,26/04/2018,006633,5024,E_invoicing Suspense Accounts,69100,Expenditure In Holding Account Awaiting Allocation,1655.18
http://statistics.data.gov.uk/id/local-authority/12UB,Cambridge City Council,Euclid Limited,10044300,23/02/2018,004793,1712,Taxicard Service,62001,Printing,525.35
http://statistics.data.gov.uk/id/local-authority/12UB,Cambridge City Council,F Vindis & Sons,10175800,02/05/2018,005184,5077,Collection Fund - Business,69402,Collection Fund-NNDR Refund,10787.35
http://statistics.data.gov.uk/id/local-authority/12UB,Cambridge City Council,FCE Ltd,10045500,02/05/2018,005435,1752,Dales Brewery,60266,Rechargeable Repairs,650.00
http://statistics.data.gov.uk/id/local-authority/12UB,Cambridge City Council,FCE Ltd,10045500,02/05/2018,005435,1759,Gwydir St Workshops/Offices,60266,Rechargeable Repairs,975.00
http://statistics.data.gov.uk/id/local-authority/12UB,Cambridge City Council,Fire Security (Sprinkler Installations) Ltd,10126300,20/04/2018,004592,100150,Grand Arcade and Queen Anne Terrace car parks sprinkler Syst,70002,CAPEX - Building Contractor/Works,55028.62
http://statistics.data.gov.uk/id/local-authority/12UB,Cambridge City Council,Forever Active Forum Ltd,10046500,01/05/2018,004906,1057,Community Development Voluntary Support,64600,Grants And Contributions,2500.00
http://statistics.data.gov.uk/id/local-authority/12UB,Cambridge City Council,Foster & Shackell,10118400,26/04/2018,006003,200001,Mandatory Disabled Facilities Grants (Tenants),70015,CAPEX - Grants Paid,4500.00
http://statistics.data.gov.uk/id/local-authority/12UB,Cambridge City Council,Foster & Shackell,10118400,26/04/2018,005992,200002,Mandatory Disabled Facilities Grants (Owner Occupiers),70015,CAPEX - Grants Paid,6574.00
http://statistics.data.gov.uk/id/local-authority/12UB,Cambridge City Council,Foster Property Maintenance Ltd,10046700,16/05/2018,006261,5024,E_invoicing Suspense Accounts,69100,Expenditure In Holding Account Awaiting Allocation,74316.47
http://statistics.data.gov.uk/id/local-authority/12UB,Cambridge City Council,Freeths LLP,10128500,16/03/2018,006245,6012,City Homes Expenditure,62400,Consultancy Fees,1250.00
http://statistics.data.gov.uk/id/local-authority/12UB,Cambridge City Council,Friends of Midsummer Common,10182100,25/04/2018,006056,1057,Community Development Voluntary Support,64600,Grants And Contributions,650.00
http://statistics.data.gov.uk/id/local-authority/12UB,Cambridge City Council,Friends With Disabilities,10047400,01/05/2018,004898,1057,Community Development Voluntary Support,64600,Grants And Contributions,1672.00
http://statistics.data.gov.uk/id/local-authority/12UB,Cambridge City Council,Frimstone Ltd,10047500,30/04/2018,005646,1031,Fleet Management - Operational,61102,Transport Recharge,513.75
http://statistics.data.gov.uk/id/local-authority/12UB,Cambridge City Council,Frontline Fabrication & Welding Co Ltd,10128000,26/04/2018,005837,100123,[Part A] Upgrade Nightingale Avenue play area (S106),70002,CAPEX - Building Contractor/Works,6995.00
http://statistics.data.gov.uk/id/local-authority/12UB,Cambridge City Council,Frontline Fabrication & Welding Co Ltd,10128000,21/04/2018,005836,100187,"Histon Rd Rec play area: paths, surfacing & landscaping (S10",70002,CAPEX - Building Contractor/Works,4500.00
http://statistics.data.gov.uk/id/local-authority/12UB,Cambridge City Council,Frontline Fabrication & Welding Co Ltd,10128000,21/04/2018,005821,1866,Open Space Asset Maintenance,61702,"Maintenance - Equipment, Furniture And Materials",4500.00
http://statistics.data.gov.uk/id/local-authority/12UB,Cambridge City Council,Frontline Fabrication & Welding Co Ltd,10128000,27/04/2018,006308,100001,Environmental Improvements Programme - North Area,70002,CAPEX - Building Contractor/Works,2995.00
http://statistics.data.gov.uk/id/local-authority/12UB,Cambridge City Council,Frontline Fabrication & Welding Co Ltd,10128000,29/03/2018,004638,1868,Play Maintenance,61702,"Maintenance - Equipment, Furniture And Materials",6000.00
http://statistics.data.gov.uk/id/local-authority/12UB,Cambridge City Council,Fuellink Systems Ltd,10047700,23/04/2018,005247,1031,Fleet Management - Operational,61102,Transport Recharge,10634.00
http://statistics.data.gov.uk/id/local-authority/12UB,Cambridge City Council,Furnitubes International Limited,10047900,21/03/2018,006167,100088,Cherry Hinton Grounds Improvements Phase 2 (S106),70002,CAPEX - Building Contractor/Works,11625.00
http://statistics.data.gov.uk/id/local-authority/12UB,Cambridge City Council,G & S Hutchinson Ltd,10119100,04/05/2018,005386,100145,Cowley Road Compound ex-Park and Ride site (OAS),70002,CAPEX - Building Contractor/Works,97471.51
http://statistics.data.gov.uk/id/local-authority/12UB,Cambridge City Council,Gallagher Bassett International Ltd,10048200,11/05/2018,006872,8009,Insurance Fund,67302,Insurance Claim,6745.71
http://statistics.data.gov.uk/id/local-authority/12UB,Cambridge City Council,Gallagher Bassett International Ltd,10048200,09/04/2018,005768,8009,Insurance Fund,67302,Insurance Claim,9045.00
http://statistics.data.gov.uk/id/local-authority/12UB,Cambridge City Council,Gallagher Bassett International Ltd,10048200,08/03/2018,004765,8009,Insurance Fund,67302,Insurance Claim,6320.40
http://statistics.data.gov.uk/id/local-authority/12UB,Cambridge City Council,Gaskin Brothers Ltd,10118700,21/05/2018,006682,1100,Sport & Recreation Administration,60201,Cyclical/Planned Maintenance - Building,575.00
http://statistics.data.gov.uk/id/local-authority/12UB,Cambridge City Council,Geesink Norba Ltd,10181200,29/01/2018,006154,1032,Garage- External Work,61703,"Purchase - Equipment, Furniture And Materials",964.76
http://statistics.data.gov.uk/id/local-authority/12UB,Cambridge City Council,Gerald Fleuss,10049400,03/04/2018,005030,1708,Urban Design & Conservation,62900,Events,1190.00
http://statistics.data.gov.uk/id/local-authority/12UB,Cambridge City Council,Gibbs & Dandy,10049500,29/03/2018,005100,9900,General Fund Balance Sheet,11600,Consumable Stores,1018.50
http://statistics.data.gov.uk/id/local-authority/12UB,Cambridge City Council,Glasswells Ltd,10118900,03/05/2018,005338,6207,Repairs Day to Day,60233,Housing Repairs - Work Given To External Contractors,590.00
http://statistics.data.gov.uk/id/local-authority/12UB,Cambridge City Council,Global Self Drive Ltd,10049900,01/05/2018,005516,6201,Building Services - Indirect,60909,Vehicle Hire,763.00
http://statistics.data.gov.uk/id/local-authority/12UB,Cambridge City Council,Global Self Drive Ltd,10049900,01/05/2018,005522,6201,Building Services - Indirect,60909,Vehicle Hire,550.00
http://statistics.data.gov.uk/id/local-authority/12UB,Cambridge City Council,Global Self Drive Ltd,10049900,01/05/2018,005520,6201,Building Services - Indirect,60909,Vehicle Hire,682.00
http://statistics.data.gov.uk/id/local-authority/12UB,Cambridge City Council,Glo-Bell London Ltd,10119000,14/05/2018,006190,8018,Admin Building Allocation,60201,Cyclical/Planned Maintenance - Building,1374.36
http://statistics.data.gov.uk/id/local-authority/12UB,Cambridge City Council,Good Homes Alliance,10187400,24/04/2018,006477,1706,Planning Policy,62400,Consultancy Fees,1125.00
http://statistics.data.gov.uk/id/local-authority/12UB,Cambridge City Council,Good Homes Alliance,10187400,24/04/2018,006477,1506,Housing Development Agency,64800,Membership And Subscriptions,1125.00
http://statistics.data.gov.uk/id/local-authority/12UB,Cambridge City Council,Gresswell,10132800,19/04/2018,005907,100022,Clay Farm Community Centre -Phase 2 (Construction),70002,CAPEX - Building Contractor/Works,1120.00
http://statistics.data.gov.uk/id/local-authority/12UB,Cambridge City Council,Gulliver's Truck Hire Ltd,10052600,19/04/2018,006696,1855,Street Cleaning - Direct,60909,Vehicle Hire,604.00
http://statistics.data.gov.uk/id/local-authority/12UB,Cambridge City Council,H & M Hennes Ltd,10175200,02/05/2018,005170,5077,Collection Fund - Business,69402,Collection Fund-NNDR Refund,28777.25
http://statistics.data.gov.uk/id/local-authority/12UB,Cambridge City Council,Hanover & Princess Court Residents Association,10053200,11/05/2018,005476,1057,Community Development Voluntary Support,64600,Grants And Contributions,945.00
http://statistics.data.gov.uk/id/local-authority/12UB,Cambridge City Council,HDRA T/A Garden Organic,10178200,11/05/2018,005720,1209,Sustainability Grants,64600,Grants And Contributions,4000.00
http://statistics.data.gov.uk/id/local-authority/12UB,Cambridge City Council,Headway Cambridgeshire,10054000,01/05/2018,004895,1057,Community Development Voluntary Support,64600,Grants And Contributions,1000.00
http://statistics.data.gov.uk/id/local-authority/12UB,Cambridge City Council,Heasell Electromechanical Services Ltd,10119400,30/04/2018,005764,1001,Cambridge Crematorium,60503,Grounds Maintenance,1474.80
http://statistics.data.gov.uk/id/local-authority/12UB,Cambridge City Council,Heasell Electromechanical Services Ltd,10119400,30/04/2018,005763,1001,Cambridge Crematorium,60503,Grounds Maintenance,1025.96
http://statistics.data.gov.uk/id/local-authority/12UB,Cambridge City Council,HM Revenue & Customs,10144201,23/05/2018,006366,9900,General Fund Balance Sheet,10013,CCC General Account Bank Account,578350.31
http://statistics.data.gov.uk/id/local-authority/12UB,Cambridge City Council,HM Revenue & Customs,10144201,10/05/2018,005409,9900,General Fund Balance Sheet,21003,Construction Industry Tax (Cis),6132.13
http://statistics.data.gov.uk/id/local-authority/12UB,Cambridge City Council,Home-Start Cambridgeshire,10055700,01/05/2018,004908,1057,Community Development Voluntary Support,64600,Grants And Contributions,5000.00
http://statistics.data.gov.uk/id/local-authority/12UB,Cambridge City Council,Hotel Chocolat Ltd,10175000,02/05/2018,005172,5077,Collection Fund - Business,69402,Collection Fund-NNDR Refund,68740.72
http://statistics.data.gov.uk/id/local-authority/12UB,Cambridge City Council,Howden Joinery Ltd,10056300,15/03/2018,005246,6200,Building Maintenance Response - Direct,61703,"Purchase - Equipment, Furniture And Materials",2593.26
http://statistics.data.gov.uk/id/local-authority/12UB,Cambridge City Council,Huntingdonshire District Council,10056900,02/05/2018,005932,200002,Mandatory Disabled Facilities Grants (Owner Occupiers),70015,CAPEX - Grants Paid,70128.00
http://statistics.data.gov.uk/id/local-authority/12UB,Cambridge City Council,Icon Sign and Design Ltd,10140400,27/04/2018,005445,1661,Parking Administration,62005,"Advertising, Publicity And Marketing",1800.00
http://statistics.data.gov.uk/id/local-authority/12UB,Cambridge City Council,Icon Sign and Design Ltd,10140400,27/04/2018,005445,1661,Parking Administration,62005,"Advertising, Publicity And Marketing",900.00
http://statistics.data.gov.uk/id/local-authority/12UB,Cambridge City Council,Icon Sign and Design Ltd,10140400,27/04/2018,005445,1661,Parking Administration,62005,"Advertising, Publicity And Marketing",600.00
http://statistics.data.gov.uk/id/local-authority/12UB,Cambridge City Council,Icon Sign and Design Ltd,10140400,03/05/2018,005877,1862,Open Space Asset Management,60300,Signs Erecting & Removal,520.00
http://statistics.data.gov.uk/id/local-authority/12UB,Cambridge City Council,Icon Sign and Design Ltd,10140400,17/05/2018,006456,1651,Grand Arcade Car Park,60300,Signs Erecting & Removal,1250.00
http://statistics.data.gov.uk/id/local-authority/12UB,Cambridge City Council,Infinite You Limited,10058400,19/03/2018,004671,1300,Customer Access Strategy - Customer Service Centre,60116,Staff Recruitment Costs,560.00
http://statistics.data.gov.uk/id/local-authority/12UB,Cambridge City Council,Instill Education Ltd,10178900,02/05/2018,005171,5077,Collection Fund - Business,69402,Collection Fund-NNDR Refund,30275.39
http://statistics.data.gov.uk/id/local-authority/12UB,Cambridge City Council,J B Barnes T/A Town & Country Tree Surgery,10119600,23/05/2018,006773,1750,Property Services,60503,Grounds Maintenance,876.00
http://statistics.data.gov.uk/id/local-authority/12UB,Cambridge City Council,Jade Security Services Ltd,10060400,31/03/2018,004634,1661,Parking Administration,63800,Security Services (Excluding Premises),2119.00
http://statistics.data.gov.uk/id/local-authority/12UB,Cambridge City Council,Jade Security Services Ltd,10060400,30/04/2018,006505,1661,Parking Administration,53004,Fees & Charges Income (B),2047.50
http://statistics.data.gov.uk/id/local-authority/12UB,Cambridge City Council,James Button & Co,10060600,26/03/2018,006798,1419,Environmental Health Operational Support,64800,Membership And Subscriptions,680.00
http://statistics.data.gov.uk/id/local-authority/12UB,Cambridge City Council,JDI Solutions Ltd,10061100,02/05/2018,005523,1202,Corporate Marketing,64073,Ict Maintenance And Support,1687.50
http://statistics.data.gov.uk/id/local-authority/12UB,Cambridge City Council,JDI Solutions Ltd,10061100,10/05/2018,005815,1202,Corporate Marketing,64073,Ict Maintenance And Support,615.00
http://statistics.data.gov.uk/id/local-authority/12UB,Cambridge City Council,Kaba Ltd,10155900,24/05/2018,006776,300035,Ditchburn Place,70002,CAPEX - Building Contractor/Works,1368.56
http://statistics.data.gov.uk/id/local-authority/12UB,Cambridge City Council,Keith Hunte T/A Spider HR,10063400,03/05/2018,005222,8008,Shared Payroll Service,62400,Consultancy Fees,1100.00
http://statistics.data.gov.uk/id/local-authority/12UB,Cambridge City Council,Kershaw Contracting Services Ltd,10063800,30/04/2018,005662,300007,Asbestos Removal,70003,CAPEX - Building Contractor/Works - Voids & Emergencies,1000.00
http://statistics.data.gov.uk/id/local-authority/12UB,Cambridge City Council,Kestrel Fencing,10119900,28/03/2018,005439,6110,Estate Management (South),60503,Grounds Maintenance,678.78
http://statistics.data.gov.uk/id/local-authority/12UB,Cambridge City Council,Kestrel Fencing,10119900,30/04/2018,006555,100218,Bramblefields nature reserve: improve biodiversity  & access,10001,Cash - Bank Account,2230.45
http://statistics.data.gov.uk/id/local-authority/12UB,Cambridge City Council,Khidmat Sisters,10165500,01/05/2018,004890,1057,Community Development Voluntary Support,64600,Grants And Contributions,550.00
http://statistics.data.gov.uk/id/local-authority/12UB,Cambridge City Council,LAVAT Consulting Limited,10065800,08/05/2018,005621,1506,Housing Development Agency,62400,Consultancy Fees,3900.00
http://statistics.data.gov.uk/id/local-authority/12UB,Cambridge City Council,LGSS - Cambridgeshire Pension Fund,10022801,23/05/2018,006364,9900,General Fund Balance Sheet,10013,CCC General Account Bank Account,442108.82
http://statistics.data.gov.uk/id/local-authority/12UB,Cambridge City Council,Longbeach Estates Ltd,10175600,02/05/2018,005180,5077,Collection Fund - Business,69402,Collection Fund-NNDR Refund,11403.05
http://statistics.data.gov.uk/id/local-authority/12UB,Cambridge City Council,Luna Studio Ltd,10164400,25/04/2018,004997,1251,Culture and Community,62800,Design And Photographic Costs,798.30
http://statistics.data.gov.uk/id/local-authority/12UB,Cambridge City Council,Luna Studio Ltd,10164400,17/05/2018,006433,1251,Culture and Community,62800,Design And Photographic Costs,798.30
http://statistics.data.gov.uk/id/local-authority/12UB,Cambridge City Council,Luna Studio Ltd,10164400,17/05/2018,006433,1251,Culture and Community,62800,Design And Photographic Costs,798.30
http://statistics.data.gov.uk/id/local-authority/12UB,Cambridge City Council,Manit Contractors Ltd,10120700,27/04/2018,004907,100006,Local Centres Improvement Programme - Arbury Court,70002,CAPEX - Building Contractor/Works,21284.17
http://statistics.data.gov.uk/id/local-authority/12UB,Cambridge City Council,Meadows Children & Family Wing,10070500,26/04/2018,006027,1057,Community Development Voluntary Support,64600,Grants And Contributions,15125.00
http://statistics.data.gov.uk/id/local-authority/12UB,Cambridge City Council,Meadows Children & Family Wing,10070500,11/05/2018,005472,1057,Community Development Voluntary Support,64600,Grants And Contributions,3000.00
http://statistics.data.gov.uk/id/local-authority/12UB,Cambridge City Council,Mears Ltd,10121400,29/03/2018,005136,6211,Gas Servicing,60225,Housing Repairs - Gas Maintenance Contract,68530.77
http://statistics.data.gov.uk/id/local-authority/12UB,Cambridge City Council,Mears Ltd,10121400,29/03/2018,005136,6211,Gas Servicing,60225,Housing Repairs - Gas Maintenance Contract,2805.65
http://statistics.data.gov.uk/id/local-authority/12UB,Cambridge City Council,Mears Ltd,10121400,03/05/2018,005546,6211,Gas Servicing,60225,Housing Repairs - Gas Maintenance Contract,75551.96
http://statistics.data.gov.uk/id/local-authority/12UB,Cambridge City Council,Mears Ltd,10121400,03/05/2018,005546,6211,Gas Servicing,60225,Housing Repairs - Gas Maintenance Contract,2710.20
http://statistics.data.gov.uk/id/local-authority/12UB,Cambridge City Council,Menagerie Theatre Company,10167700,02/05/2018,005354,1057,Community Development Voluntary Support,64600,Grants And Contributions,1500.00
http://statistics.data.gov.uk/id/local-authority/12UB,Cambridge City Council,Mercer Tree Services Ltd,10071200,29/03/2018,005990,1876,Arboriculture,64040,Tree Works,6450.00
http://statistics.data.gov.uk/id/local-authority/12UB,Cambridge City Council,Mercer Tree Services Ltd,10071200,14/05/2018,006808,1876,Arboriculture,64040,Tree Works,1275.00
http://statistics.data.gov.uk/id/local-authority/12UB,Cambridge City Council,Mercer Tree Services Ltd,10071200,14/05/2018,006808,1885,Reverse Agency (formerly Unclassified Routine),64040,Tree Works,1275.00
http://statistics.data.gov.uk/id/local-authority/12UB,Cambridge City Council,Mercer Tree Services Ltd,10071200,10/04/2018,006812,1876,Arboriculture,64040,Tree Works,4200.00
http://statistics.data.gov.uk/id/local-authority/12UB,Cambridge City Council,Mercer Tree Services Ltd,10071200,02/05/2018,006810,100088,Cherry Hinton Grounds Improvements Phase 2 (S106),70002,CAPEX - Building Contractor/Works,1406.25
http://statistics.data.gov.uk/id/local-authority/12UB,Cambridge City Council,Mercer Tree Services Ltd,10071200,18/05/2018,006801,1876,Arboriculture,64040,Tree Works,1150.00
http://statistics.data.gov.uk/id/local-authority/12UB,Cambridge City Council,Mercer Tree Services Ltd,10071200,08/05/2018,006806,1876,Arboriculture,64040,Tree Works,650.00
http://statistics.data.gov.uk/id/local-authority/12UB,Cambridge City Council,Mercer Tree Services Ltd,10071200,29/03/2018,006017,100088,Cherry Hinton Grounds Improvements Phase 2 (S106),70002,CAPEX - Building Contractor/Works,6800.00
http://statistics.data.gov.uk/id/local-authority/12UB,Cambridge City Council,Mercer Tree Services Ltd,10071200,22/02/2018,006013,1876,Arboriculture,64040,Tree Works,2040.00
http://statistics.data.gov.uk/id/local-authority/12UB,Cambridge City Council,Mercer Tree Services Ltd,10071200,09/01/2018,006011,1876,Arboriculture,64040,Tree Works,1140.00
http://statistics.data.gov.uk/id/local-authority/12UB,Cambridge City Council,Michael I Holdsworth Ltd,10071700,01/05/2018,004791,1063,The Meadows Community Centre,61900,Catering And Vending Supplies,507.37
http://statistics.data.gov.uk/id/local-authority/12UB,Cambridge City Council,Microsoft Research Ltd,10175700,02/05/2018,005182,5077,Collection Fund - Business,69402,Collection Fund-NNDR Refund,28943.66
http://statistics.data.gov.uk/id/local-authority/12UB,Cambridge City Council,MLM Consulting Engineers Ltd,10072500,30/04/2018,006699,100143,Mandela House refurbishment (OAS),70010,CAPEX - Other Professional Fees,2240.00
http://statistics.data.gov.uk/id/local-authority/12UB,Cambridge City Council,MLTS Ltd,10072600,09/04/2018,004773,100071,Improvements to Gwydir Enterprise Centre,70010,CAPEX - Other Professional Fees,520.00
http://statistics.data.gov.uk/id/local-authority/12UB,Cambridge City Council,MLTS Ltd,10072600,09/04/2018,004773,100071,Improvements to Gwydir Enterprise Centre,70010,CAPEX - Other Professional Fees,895.00
http://statistics.data.gov.uk/id/local-authority/12UB,Cambridge City Council,MLTS Ltd,10072600,21/05/2018,006530,300011,Roof Covering,70010,CAPEX - Other Professional Fees,1040.00
http://statistics.data.gov.uk/id/local-authority/12UB,Cambridge City Council,Mook Grafix Ltd,10072800,04/05/2018,005922,1654,Grafton Centre East Car Park,60201,Cyclical/Planned Maintenance - Building,555.00
http://statistics.data.gov.uk/id/local-authority/12UB,Cambridge City Council,Mott Macdonald Ltd,10073101,02/05/2018,005146,5077,Collection Fund - Business,69402,Collection Fund-NNDR Refund,25051.04
http://statistics.data.gov.uk/id/local-authority/12UB,Cambridge City Council,Mowell & Co Ltd,10121800,18/05/2018,006465,1102,Leisure Contract Client Costs,60201,Cyclical/Planned Maintenance - Building,2150.00
http://statistics.data.gov.uk/id/local-authority/12UB,Cambridge City Council,Museum of Cambridge,10074200,25/04/2018,006070,1057,Community Development Voluntary Support,64600,Grants And Contributions,8750.00
http://statistics.data.gov.uk/id/local-authority/12UB,Cambridge City Council,N & C Building Products Ltd,10074300,20/04/2018,005100,6200,Building Maintenance Response - Direct,61703,"Purchase - Equipment, Furniture And Materials",1365.43
http://statistics.data.gov.uk/id/local-authority/12UB,Cambridge City Council,N & C Building Products Ltd,10074300,20/04/2018,005100,6200,Building Maintenance Response - Direct,61703,"Purchase - Equipment, Furniture And Materials",1401.87
http://statistics.data.gov.uk/id/local-authority/12UB,Cambridge City Council,Napit Registration Ltd,10074500,21/05/2018,006487,6201,Building Services - Indirect,64800,Membership And Subscriptions,576.00
http://statistics.data.gov.uk/id/local-authority/12UB,Cambridge City Council,Nemco Utilities Ltd,10075300,30/04/2018,004840,6205,Citywide Schemes,60235,Housing Repairs - Other Premises Related Costs,1760.91
http://statistics.data.gov.uk/id/local-authority/12UB,Cambridge City Council,Neopost Ltd,10137601,06/05/2018,006837,6004,Leasehold Property Management,64100,Postage And Courier Services,500.00
http://statistics.data.gov.uk/id/local-authority/12UB,Cambridge City Council,Neopost Ltd,10137601,06/05/2018,006837,6012,City Homes Expenditure,64100,Postage And Courier Services,500.00
http://statistics.data.gov.uk/id/local-authority/12UB,Cambridge City Council,New International Encounter,10161400,01/05/2018,004893,1057,Community Development Voluntary Support,64600,Grants And Contributions,2688.00
http://statistics.data.gov.uk/id/local-authority/12UB,Cambridge City Council,Next PLC,10075800,02/05/2018,005168,5077,Collection Fund - Business,69402,Collection Fund-NNDR Refund,45411.75
http://statistics.data.gov.uk/id/local-authority/12UB,Cambridge City Council,North Cambridge Organisers,10186600,18/05/2018,006440,1057,Community Development Voluntary Support,64600,Grants And Contributions,1599.00
http://statistics.data.gov.uk/id/local-authority/12UB,Cambridge City Council,Northgate Vehicle Hire Ltd,10076800,30/04/2018,006328,1052,Children & Young People's Service,60909,Vehicle Hire,822.00
http://statistics.data.gov.uk/id/local-authority/12UB,Cambridge City Council,Nuaire Ltd,10122400,20/04/2018,005725,9900,General Fund Balance Sheet,11600,Consumable Stores,1151.45
http://statistics.data.gov.uk/id/local-authority/12UB,Cambridge City Council,Nuture Landscapes Ltd,10132000,30/04/2018,006293,1774,"Cambridge Road Retail Park, Haverhill",60503,Grounds Maintenance,851.89
http://statistics.data.gov.uk/id/local-authority/12UB,Cambridge City Council,O Hesling-Gordon,10181600,30/04/2018,005981,9900,General Fund Balance Sheet,20119,Other Creditors - Other Entities And Individuals,1344.65
http://statistics.data.gov.uk/id/local-authority/12UB,Cambridge City Council,Oblique Arts,10159100,18/05/2018,006428,1057,Community Development Voluntary Support,64600,Grants And Contributions,2250.00
http://statistics.data.gov.uk/id/local-authority/12UB,Cambridge City Council,Ocean Media Group Ltd,10077500,09/04/2018,006264,1510,Housing Strategy,64300,Conference Expenses,820.00
http://statistics.data.gov.uk/id/local-authority/12UB,Cambridge City Council,Orchard Park Community Primary School,10178400,09/05/2018,005647,1517,Syrian Resettlement,64300,Conference Expenses,3600.00
http://statistics.data.gov.uk/id/local-authority/12UB,Cambridge City Council,P G Horticulture Ltd,10167800,10/05/2018,006323,1862,Open Space Asset Management,60503,Grounds Maintenance,768.10
http://statistics.data.gov.uk/id/local-authority/12UB,Cambridge City Council,P G Horticulture Ltd,10167800,09/05/2018,005983,1876,Arboriculture,64040,Tree Works,2004.67
http://statistics.data.gov.uk/id/local-authority/12UB,Cambridge City Council,P G Horticulture Ltd,10167800,09/05/2018,005983,100088,Cherry Hinton Grounds Improvements Phase 2 (S106),70002,CAPEX - Building Contractor/Works,1002.33
http://statistics.data.gov.uk/id/local-authority/12UB,Cambridge City Council,Panther Taxis Ltd,10079600,30/04/2018,005293,1712,Taxicard Service,63900,Miscellaneous Expenses,3778.35
http://statistics.data.gov.uk/id/local-authority/12UB,Cambridge City Council,Parkeon Ltd,10079800,10/05/2018,006390,100147,Lammas Land Car Parking Infrastructure,70017,CAPEX - Purchase of Plant Machinery & Equipment,3336.00
http://statistics.data.gov.uk/id/local-authority/12UB,Cambridge City Council,Pearlcatchers Ltd,10157800,08/05/2018,005962,1212,Office Accommodation Strategy Phase 2 - Revenue Set Up Costs,62400,Consultancy Fees,14900.00
http://statistics.data.gov.uk/id/local-authority/12UB,Cambridge City Council,Penna PLC,10080400,11/05/2018,006156,1506,Housing Development Agency,60116,Staff Recruitment Costs,1432.82
http://statistics.data.gov.uk/id/local-authority/12UB,Cambridge City Council,Penna PLC,10080400,28/02/2018,004616,6203,Technical Services,60116,Staff Recruitment Costs,2131.32
http://statistics.data.gov.uk/id/local-authority/12UB,Cambridge City Council,Penna PLC,10080400,20/03/2018,006141,1419,Environmental Health Operational Support,60116,Staff Recruitment Costs,975.00
http://statistics.data.gov.uk/id/local-authority/12UB,Cambridge City Council,Penna PLC,10080400,20/03/2018,006142,1419,Environmental Health Operational Support,60116,Staff Recruitment Costs,975.00
http://statistics.data.gov.uk/id/local-authority/12UB,Cambridge City Council,Penna PLC,10080400,28/02/2018,004628,6203,Technical Services,60011,Agency Staff,2131.32
http://statistics.data.gov.uk/id/local-authority/12UB,Cambridge City Council,Penna PLC,10080400,08/02/2018,004699,1506,Housing Development Agency,60116,Staff Recruitment Costs,4073.82
http://statistics.data.gov.uk/id/local-authority/12UB,Cambridge City Council,Penna PLC,10080400,28/02/2018,004600,6203,Technical Services,60011,Agency Staff,2131.32
http://statistics.data.gov.uk/id/local-authority/12UB,Cambridge City Council,Penna PLC,10080400,20/02/2018,004702,8006,Accountancy and Support Services,60116,Staff Recruitment Costs,1259.10
http://statistics.data.gov.uk/id/local-authority/12UB,Cambridge City Council,Pennon Water Services Ltd T/A Cambridge Water Business,10080500,20/04/2018,005532,5024,E_invoicing Suspense Accounts,69100,Expenditure In Holding Account Awaiting Allocation,776.84
http://statistics.data.gov.uk/id/local-authority/12UB,Cambridge City Council,Pennon Water Services Ltd T/A Cambridge Water Business,10080500,17/05/2018,006628,5024,E_invoicing Suspense Accounts,69100,Expenditure In Holding Account Awaiting Allocation,954.34
http://statistics.data.gov.uk/id/local-authority/12UB,Cambridge City Council,People Asset Management Ltd,10145100,31/03/2018,005378,8001,Human Resources Operations (Staff-General),60111,Occupational Health,2085.00
http://statistics.data.gov.uk/id/local-authority/12UB,Cambridge City Council,People Asset Management Ltd,10145100,31/03/2018,005378,8001,Human Resources Operations (Staff-General),60111,Occupational Health,573.00
http://statistics.data.gov.uk/id/local-authority/12UB,Cambridge City Council,Pestbusters (Midlands) Ltd,10081000,13/04/2018,004613,6114,Ditton Court,60207,Health And Safety Supplies And Services,1780.00
http://statistics.data.gov.uk/id/local-authority/12UB,Cambridge City Council,Peter Dann Ltd,10081100,30/04/2018,005760,100142,Relocation of services to 130 Cowley Road (OAS),70010,CAPEX - Other Professional Fees,2515.00
http://statistics.data.gov.uk/id/local-authority/12UB,Cambridge City Council,Peter Dann Ltd,10081100,11/04/2018,006904,100143,Mandela House refurbishment (OAS),70010,CAPEX - Other Professional Fees,927.55
http://statistics.data.gov.uk/id/local-authority/12UB,Cambridge City Council,Peter Dann Ltd,10081100,30/04/2018,005514,1758,Other Commercial Properties,62400,Consultancy Fees,557.50
http://statistics.data.gov.uk/id/local-authority/12UB,Cambridge City Council,Peter Dann Ltd,10081100,11/04/2018,004960,1758,Other Commercial Properties,62400,Consultancy Fees,593.50
http://statistics.data.gov.uk/id/local-authority/12UB,Cambridge City Council,PHS Group Ltd,10082000,06/04/2018,005086,1766,Orwell House Offices-Internal,60501,Cleaning Services,740.00
http://statistics.data.gov.uk/id/local-authority/12UB,Cambridge City Council,Places4People Ltd,10082300,03/04/2018,004952,1706,Planning Policy,62400,Consultancy Fees,1636.25
http://statistics.data.gov.uk/id/local-authority/12UB,Cambridge City Council,Places4People Ltd,10082300,03/04/2018,004952,1706,Planning Policy,53001,Fees & Charges Income (S),1404.70
http://statistics.data.gov.uk/id/local-authority/12UB,Cambridge City Council,Playground Developments Ltd T/A Dt Leisure,10122800,07/03/2018,006096,1866,Open Space Asset Maintenance,60503,Grounds Maintenance,4725.00
http://statistics.data.gov.uk/id/local-authority/12UB,Cambridge City Council,Playground Developments Ltd T/A Dt Leisure,10122800,01/05/2018,005483,100123,[Part A] Upgrade Nightingale Avenue play area (S106),70002,CAPEX - Building Contractor/Works,2400.00
http://statistics.data.gov.uk/id/local-authority/12UB,Cambridge City Council,Pocock & Shaw Ltd,10138300,02/05/2018,005508,6004,Leasehold Property Management,62400,Consultancy Fees,575.00
http://statistics.data.gov.uk/id/local-authority/12UB,Cambridge City Council,Power Control Panels Ltd,10123000,29/03/2018,006337,6207,Repairs Day to Day,60218,Housing Repairs - Electrical Supply / Air Cooling / Lighting,2386.87
http://statistics.data.gov.uk/id/local-authority/12UB,Cambridge City Council,Power Control Panels Ltd,10123000,25/05/2018,006823,9901,Housing Revenue Account Balance Sheet,30003,Hra Earmarked Reserves Balance,1333.32
http://statistics.data.gov.uk/id/local-authority/12UB,Cambridge City Council,Power Control Panels Ltd,10123000,27/02/2018,005144,9901,Housing Revenue Account Balance Sheet,30003,Hra Earmarked Reserves Balance,1333.32
